Workbook

Sheet 2018-2019
BR1: Data | BS1: Sarbatoare
BR2: 2018-11-30 | BS2: Sf Andrei
BR3: 2018-12-01 | BS3: Ziua Nationala
BR4: 2018-12-25 | BS4: Craciun prima zi
BR5: 2018-12-26 | BS5: Craciun a doua zi
BR6: 2019-01-01 | BS6: Anul nou prima zi
BR7: 2019-01-02 | BS7: Anul nou a doua zi
BB8: parteneri adiacenti | BC8: UR | BO8: parteneri adiacenti | BP8: UR | BR8: 2019-01-24 | BS8: Ziua unirii
A9: EVIDENȚA LIMITĂRILOR ȘI/SAU ÎNTRERUPERILOR PLANIFICATE ȘI NEPLANIFICATE pentru anul gazier 2018 - 2019 / RECORD OF THE PLANNED AND UNPLANNED LIMITATIONS AND/OR INTERRUPTIONS related to the gas year 2018 - 2019 | AQ9: Lucrari neprogramate | BA9: NU6 | BB9: =SUBTOTAL(9,AR:AR) -> 69 | BC9: =SUBTOTAL(9,AU:AU) -> 1941 | BE9: Lucrari programate | BN9: NU5 | BO9: =SUBTOTAL(9,BF:BF) -> 8 | BP9: =SUBTOTAL(9,BI:BI) -> 310 | BR9: 2019-04-26 | BS9: Vinerea Mare
AQ10: Partener adiacent | AT10: UR | BA10: NUafectati | BB10: =SUBTOTAL(9,AS:AS) -> 69 | BC10: =SUBTOTAL(9,AV:AV) -> 1941 | BE10: Partener adiacent | BH10: UR | BN10: NUafectati | BO10: =SUBTOTAL(9,BG:BG) -> 8 | BP10: =SUBTOTAL(9,BJ:BJ) -> 310 | BR10: 2019-04-29 | BS10: Paste
A11: Nr. crt. / Item No. | B11: Tipul limitării/întreruperii / Type of limitation/interruption | D11: Denumire lucrare/motiv limitare și/sau întrerupere / Name of the works/reason for the limitation and/or interruption | E11: Locația limitării/întreruperii / Location of the limitation/interruption | L11: Punct de ieșire/intrare afectat / Affected exit/entry point | T11: Cod punct relevant / Code of the relevant point | U11: Utilizator ST afectat / Affected TS user | W11: Perioada planificată de execuție a lucrării / Planned period for the execution of the works | X11: Data și ora limitării/întreruperii / Date and hour of the limitation/interruption | Z11: Data și ora reluării prestării serviciului / Date and hour the service supply is resumed | AB11: Exploatarea Teritorială / Regional Office | AC11: Observații / Comments | AD11: Justificarea modificării perioadei planificate de execuție a lucrări | AE11: Data și ora efectivă de limitare/întrerupere | AG11: Data și ora efectivă de reluare a prestării serviciului | AI11: Data și ora informării UR | AK11: Data și ora informării partenerului adiacent | AM11: Foaia de manevră | AN11: A fost afectat producătorul (în cazul PM) sau consumatorul final (în cazul SM)? (DA/NU) | AO11: Observatii | AQ11: Numar de ore de la producerea intreruperii / limitarii pana la anuntarea partenerului adiacent (trebuie sa fie mai mic decat 6) | AR11: NU6 | AS11: NUafectati | AT11: Numar de ore de la producerea intreruperii / limitarii pana la anuntarea UR (trebuie sa fie mai mic decat 6) | AU11: NU6 | AV11: NUafectati | AW11: Durata intreruperii / limitarii [ore] (daca este mai mare de 24, trebuie sa fie completata celula aferenta de pe coloana AZ) | AX11: NU24 | AY11: Nuafectati | AZ11: Partener adiacent informat din 12 in 12 ore, daca durata mai mare de 24h (DA/NU) | BA11: NU6 | BB11: =BB9+BC9 -> 2010 | BC11: IP51 | BE11: Numar de zile lucratoare de anuntare partener adiacent pana la limitare / intrerupere (trebuie sa fie mai mare de 5) | BF11: NU5 | BG11: NUafectati | BH11: Numar de zile de anuntare UR pana la limitare / intrerupere (trebuie sa fie mai mare de 5) | BI11: NU5 | BJ11: NUafectati | BK11: Numar ore intre data anuntata si cea efectiva de reluare (trebuie sa fie mai mic sau egal cu 0) | BL11: NUreluate | BM11: NUafectati | BN11: NU5 | BO11: =BO9+BP9 -> 318 | BP11: IP61 | BR11: 2019-05-01 | BS11: Ziua muncii
E12: Siruta / Siruta code | F12: Localitate / Locality | G12: Județ / County | H12: Coordonate GPS început / GPS coordinates-beginning | J12: Coordonate GPS sfârșit / GPS coordinates-end | L12: Puncte de ieșire din SNT / NTS exit points | P12: Puncte de intrare în SNT / NTS entry points | BA12: NUafectati | BB12: =BB10+BC10 -> 2010 | BC12: =IFERROR(BB11/BB12,1) -> 1 | BN12: NUafectati | BO12: =BO10+BP10 -> 318 | BP12: =IF(BO12=0,1,BO11/BO12) -> 1 | BR12: 2019-06-01 | BS12: Ziua copilului
B13: Neplanificată / Unplanned | C13: Planificată / Planned | L13: Limitare / Limitation | N13: Întrerupere / Interruption | P13: Limitare / Limitation | R13: Întrerupere / Interruption | X13: Data / Date | Y13: Ora / Hour | Z13: Data / Date | AA13: Ora / Hour | AE13: Data | AF13: Ora | AG13: Data | AH13: Ora | AI13: Data | AJ13: Ora | AK13: Data | AL13: Ora | BA13: NU24 | BB13: =SUBTOTAL(9,AX:AX) -> 11 | BC13: IP52 | BN13: NUreluare | BO13: =SUBTOTAL(9,BL:BL) -> 318 | BP13: IP62 | BR13: 2019-06-17 | BS13: Rusalii
H14: X1 | I14: Y1 | J14: X2 | K14: Y2 | L14: Cod / Code | M14: Denumire / Name | N14: Cod / Code | O14: Denumire / Name | P14: Cod / Code | Q14: Denumire / Name | R14: Cod / Code | S14: Denumire / Name | U14: Utilizator de rețea / Network User | V14: Partener adiacent / Adjacent Partner | BA14: NUafectati | BB14: =SUBTOTAL(9,AY:AY) -> 11 | BC14: =IFERROR(BB13/BB14,1) -> 1 | BN14: NUafectati | BO14: =SUBTOTAL(9,BM:BM) -> 318 | BP14: =IF(BO14=0,1,BO13/BO14) -> 1 | BR14: 2019-08-15 | BS14: Adormirea Maicii Domnului
A15: 0 | B15: 1 | C15: 2 | D15: 3 | E15: 4 | F15: 5 | G15: 6 | H15: 7 | I15: 8 | J15: 9 | K15: 10 | L15: 11 | M15: 12 | N15: 13 | O15: 14 | P15: 15 | Q15: 16 | R15: 17 | S15: 18 | T15: 19 | U15: 20 | W15: 21 | X15: 22 | Y15: 23 | Z15: 24 | AA15: 25 | AB15: 26 | AC15: 27 | AD15: 28 | AE15: 29 | AF15: 30 | AG15: 31 | AH15: 32 | AI15: 33 | AJ15: 34 | AK15: 35 | AL15: 36 | AM15: 37 | AN15: 38 | AO15: 39
A16: =SUM(1,$A15) -> 1 | B16: X | C16: - | D16: Înlocuire instalație tehnologică la SRM Gănești | E16: 116938 | F16: Gănești | G16: Mureș | H16: 450776.6393 | I16: 537967.6217 | J16: 450776.6393 | K16: 537967.6217 | L16: - | M16: - | N16: SM0662D0 | O16: Gănești | P16: - | Q16: - | R16: - | S16: - | T16: SM-SD001 | U16: Engie, Electrica Furnizare, Premier Energy Trading, Premier Energy, Restart Energy, Wiee, E.On Energie, E.ON Gaz Furnizare, Petrom Gas, CEZ Vânzare, Enel Energie, Gas&Power, Gaz Est, MET România, Nova Power, Energy Distribution, CPL Concordia, Hargaz, Prisma Serv, Conef Gaz, Distrigaz Vest, Next Energy, CIS Gaz, Aderro GP, Tinmar, Enel Muntenia, RWE Supply, Cyeb, Entrex, Petrom, Electric&Gas, Pado Group, Design Proiect, Hermes, Eva Energy, Gazmir, SST Grup, Energy Gas Provider, RWE Energie, ICCO Energ, Delagaz&Energie, Mihoc Oil, Gaz Vest, Top Gas Network | V16: Delgaz Grid | W16: - | X16: 2018-10-02 | Y16: 09:00:00 | Z16: 2018-10-02 | AA16: 17:00:00 | AB16: Mediaș | AC16: Efectuată | AD16: - | AE16: 2018-10-02 | AF16: 09:00:00 | AG16: 2018-10-02 | AH16: 17:00:00 | AI16: 2018-10-02 | AJ16: 09:36:00 | AK16: 2018-10-02 | AL16: 09:22:00 | AM16: 8047/01.10.2018 | AN16: DA | AQ16: =IF(B16="X",IF(AN16="","Afectat sau NU?",IF(AN16="DA",IF(((AK16+AL16)-(AE16+AF16))*24<-720,"Neinformat",((AK16+AL16)-(AE16+AF16))*24),"Nu a fost afectat producator/consumator")),"") -> 0.3666666666 | AR16: =IF(B16="X",IF(AN16="DA",IF(AQ16<6,LEN(TRIM(V16))-LEN(SUBSTITUTE(V16,CHAR(44),""))+1,0),"-"),"") -> 1 | AS16: =IF(B16="X",IF(AN16="DA",LEN(TRIM(V16))-LEN(SUBSTITUTE(V16,CHAR(44),""))+1,"-"),"") -> 1 | AT16: =IF(B16="X",IF(AN16="","Afectat sau NU?",IF(AN16="DA",IF(((AI16+AJ16)-(AE16+AF16))*24<-720,"Neinformat",((AI16+AJ16)-(AE16+AF16))*24),"Nu a fost afectat producator/consumator")),"") -> 0.6 | AU16: =IF(B16="X",IF(AN16="DA",IF(AT16<6,LEN(TRIM(U16))-LEN(SUBSTITUTE(U16,CHAR(44),""))+1,0),"-"),"") -> 44 | AV16: =IF(B16="X",IF(AN16="DA",LEN(TRIM(U16))-LEN(SUBSTITUTE(U16,CHAR(44),""))+1,"-"),"") -> 44 | AW16: =IF(B16="X",IF(AN16="","Afectat sau NU?",IF(AN16="DA",((AG16+AH16)-(AE16+AF16))*24,"Nu a fost afectat producator/consumator")),"") -> 8 | AX16: =IF(B16="X",IF(AN16="DA",IF(AW16>24,IF(AZ16="NU",0,LEN(TRIM(V16))-LEN(SUBSTITUTE(V16,CHAR(44),""))+1),0),"-"),"") -> 0 | AY16: =IF(B16="X",IF(AN16="DA",IF(AW16>24,LEN(TRIM(V16))-LEN(SUBSTITUTE(V16,CHAR(44),""))+1,0),"-"),"") -> 0 | BE16: =IF(C16="X",IF(AN16="","Afectat sau NU?",IF(AN16="DA",IF(AK16="","Neinformat",NETWORKDAYS(AK16+AL16,AE16+AF16,$BR$2:$BR$14)-2),"Nu a fost afectat producator/consumator")),"") ->  | BF16: =IF(C16="X",IF(AN16="DA",IF(AND(BE16>=5,AK16<>""),LEN(TRIM(V16))-LEN(SUBSTITUTE(V16,CHAR(44),""))+1,0),"-"),"") ->  | BG16: =IF(C16="X",IF(AN16="DA",LEN(TRIM(V16))-LEN(SUBSTITUTE(V16,CHAR(44),""))+1,"-"),"") ->  | BH16: =IF(C16="X",IF(AN16="","Afectat sau NU?",IF(AN16="DA",IF(AI16="","Neinformat",NETWORKDAYS(AI16+AJ16,AE16+AF16,$BR$2:$BR$14)-2),"Nu a fost afectat producator/consumator")),"") ->  | BI16: =IF(C16="X",IF(AN16="DA",IF(AND(BH16>=5,AI16<>""),LEN(TRIM(U16))-LEN(SUBSTITUTE(U16,CHAR(44),""))+1,0),"-"),"") ->  | BJ16: =IF(C16="X",IF(AN16="DA",LEN(TRIM(U16))-LEN(SUBSTITUTE(U16,CHAR(44),""))+1,"-"),"") ->  | BK16: =IF(C16="X",IF(AN16="","Afectat sau NU?",IF(AN16="DA",((AG16+AH16)-(Z16+AA16))*24,"Nu a fost afectat producator/consumator")),"") ->  | BL16: =IF(C16="X",IF(AN16<>"DA","-",IF(AND(AN16="DA",BK16<=0),LEN(TRIM(V16))-LEN(SUBSTITUTE(V16,CHAR(44),""))+1+LEN(TRIM(U16))-LEN(SUBSTITUTE(U16,CHAR(44),""))+1,0)),"") ->  | BM16: =IF(C16="X",IF(AN16="DA",LEN(TRIM(V16))-LEN(SUBSTITUTE(V16,CHAR(44),""))+1+LEN(TRIM(U16))-LEN(SUBSTITUTE(U16,CHAR(44),""))+1,"-"),"") -> 
A17: 2 | B17: X | C17: - | D17: Relocare PM 12 Depo Extras Mureș și cuplare în 24” Corunca - Coroi, fir I, zona Corunca | E17: 119242 | F17: Corunca | G17: Mureș | H17: 470480.433 | I17: 544999.7292 | J17: 470480.433 | K17: 544999.7292 | L17: - | M17: - | N17: SM1155D0 | O17: Corunca Înmagazinat | P17: - | Q17: - | R17: - | S17: - | T17: SM1155D0 | U17: Distrigaz Vest, Engie, E.On Gaz Furnizare | V17: DepoMureș | W17: - | X17: 2018-10-04 | Y17: 06:00:00 | Z17: 2018-10-04 | AA17: 18:00:00 | AB17: Mediaș | AC17: Efectuată | AD17: - | AE17: 2018-10-04 | AF17: 06:00:00 | AG17: 2018-10-04 | AH17: 19:45:00 | AI17: 2018-10-04 | AJ17: 11:40:00 | AK17: 2018-10-04 | AL17: 11:28:00 | AM17: 8112/02.10.2018 | AN17: DA | AQ17: =IF(B17="X",IF(AN17="","Afectat sau NU?",IF(AN17="DA",IF(((AK17+AL17)-(AE17+AF17))*24<-720,"Neinformat",((AK17+AL17)-(AE17+AF17))*24),"Nu a fost afectat producator/consumator")),"") -> 5.466666667 | AR17: =IF(B17="X",IF(AN17="DA",IF(AQ17<6,LEN(TRIM(V17))-LEN(SUBSTITUTE(V17,CHAR(44),""))+1,0),"-"),"") -> 1 | AS17: =IF(B17="X",IF(AN17="DA",LEN(TRIM(V17))-LEN(SUBSTITUTE(V17,CHAR(44),""))+1,"-"),"") -> 1 | AT17: =IF(B17="X",IF(AN17="","Afectat sau NU?",IF(AN17="DA",IF(((AI17+AJ17)-(AE17+AF17))*24<-720,"Neinformat",((AI17+AJ17)-(AE17+AF17))*24),"Nu a fost afectat producator/consumator")),"") -> 5.666666667 | AU17: =IF(B17="X",IF(AN17="DA",IF(AT17<6,LEN(TRIM(U17))-LEN(SUBSTITUTE(U17,CHAR(44),""))+1,0),"-"),"") -> 3 | AV17: =IF(B17="X",IF(AN17="DA",LEN(TRIM(U17))-LEN(SUBSTITUTE(U17,CHAR(44),""))+1,"-"),"") -> 3 | AW17: =IF(B17="X",IF(AN17="","Afectat sau NU?",IF(AN17="DA",((AG17+AH17)-(AE17+AF17))*24,"Nu a fost afectat producator/consumator")),"") -> 13.75 | AX17: =IF(B17="X",IF(AN17="DA",IF(AW17>24,IF(AZ17="NU",0,LEN(TRIM(V17))-LEN(SUBSTITUTE(V17,CHAR(44),""))+1),0),"-"),"") -> 0 | AY17: =IF(B17="X",IF(AN17="DA",IF(AW17>24,LEN(TRIM(V17))-LEN(SUBSTITUTE(V17,CHAR(44),""))+1,0),"-"),"") -> 0 | BE17: =IF(C17="X",IF(AN17="","Afectat sau NU?",IF(AN17="DA",IF(AK17="","Neinformat",NETWORKDAYS(AK17+AL17,AE17+AF17,$BR$2:$BR$14)-2),"Nu a fost afectat producator/consumator")),"") ->  | BF17: =IF(C17="X",IF(AN17="DA",IF(AND(BE17>=5,AK17<>""),LEN(TRIM(V17))-LEN(SUBSTITUTE(V17,CHAR(44),""))+1,0),"-"),"") ->  | BG17: =IF(C17="X",IF(AN17="DA",LEN(TRIM(V17))-LEN(SUBSTITUTE(V17,CHAR(44),""))+1,"-"),"") ->  | BH17: =IF(C17="X",IF(AN17="","Afectat sau NU?",IF(AN17="DA",IF(AI17="","Neinformat",NETWORKDAYS(AI17+AJ17,AE17+AF17,$BR$2:$BR$14)-2),"Nu a fost afectat producator/consumator")),"") ->  | BI17: =IF(C17="X",IF(AN17="DA",IF(AND(BH17>=5,AI17<>""),LEN(TRIM(U17))-LEN(SUBSTITUTE(U17,CHAR(44),""))+1,0),"-"),"") ->  | BJ17: =IF(C17="X",IF(AN17="DA",LEN(TRIM(U17))-LEN(SUBSTITUTE(U17,CHAR(44),""))+1,"-"),"") ->  | BK17: =IF(C17="X",IF(AN17="","Afectat sau NU?",IF(AN17="DA",((AG17+AH17)-(Z17+AA17))*24,"Nu a fost afectat producator/consumator")),"") ->  | BL17: =IF(C17="X",IF(AN17<>"DA","-",IF(AND(AN17="DA",BK17<=0),LEN(TRIM(V17))-LEN(SUBSTITUTE(V17,CHAR(44),""))+1+LEN(TRIM(U17))-LEN(SUBSTITUTE(U17,CHAR(44),""))+1,0)),"") ->  | BM17: =IF(C17="X",IF(AN17="DA",LEN(TRIM(V17))-LEN(SUBSTITUTE(V17,CHAR(44),""))+1+LEN(TRIM(U17))-LEN(SUBSTITUTE(U17,CHAR(44),""))+1,"-"),"") -> 
A18: 3 | B18: X | C18: - | D18: Întrerupere accidentală SRM Slatina | E18: 125347 | F18: Slatina | G18: Olt | H18: 451493 | I18: 328149 | J18: 451493 | K18: 328149 | L18: - | M18: - | N18: SM0947D2 | O18: Slatina | P18: - | Q18: - | R18: - | S18: - | T18: SM-SD001 | U18: Engie, Electrica Furnizare, Premier Energy Trading, Premier Energy, Restart Energy, Wiee, E.On Energie, Petrom Gas, CEZ Vânzare, Enel Energie, Gas&Power, Gaz Est, MET România, Nova Power, Euro Seven Industry, Oligop, Energy Distribution, Electrocentrale Constanța, Hargaz, Conef Gaz, Megaconstruct, Distrigaz Vest, Electrocentrale București, Next Energy, CIS Gaz, Transenergo, Aderro GP, Tinmar, Enel Muntenia, RWE Supply, Romgaz, Cyeb, Entrex, Petrom, Electric&Gas, Hermes, Eva Energy, Gas Energy Echoterm, Energy Gas Provider, RWE Energie, ICCO Energ, Delagaz, Top Gas Network, Covi Construct | V18: Distrigaz Sud Rețele | W18: - | X18: 2018-10-04 | Y18: 16:45:00 | Z18: 2018-10-04 | AA18: 18:30:00 | AB18: Craiova | AC18: Efectuată | AD18: - | AE18: 2018-10-04 | AF18: 16:45:00 | AG18: 2018-10-04 | AH18: 18:30:00 | AI18: 2018-10-04 | AJ18: 21:11:00 | AK18: 2018-10-04 | AL18: 20:41:00 | AM18: - | AN18: DA | AQ18: =IF(B18="X",IF(AN18="","Afectat sau NU?",IF(AN18="DA",IF(((AK18+AL18)-(AE18+AF18))*24<-720,"Neinformat",((AK18+AL18)-(AE18+AF18))*24),"Nu a fost afectat producator/consumator")),"") -> 3.933333333 | AR18: =IF(B18="X",IF(AN18="DA",IF(AQ18<6,LEN(TRIM(V18))-LEN(SUBSTITUTE(V18,CHAR(44),""))+1,0),"-"),"") -> 1 | AS18: =IF(B18="X",IF(AN18="DA",LEN(TRIM(V18))-LEN(SUBSTITUTE(V18,CHAR(44),""))+1,"-"),"") -> 1 | AT18: =IF(B18="X",IF(AN18="","Afectat sau NU?",IF(AN18="DA",IF(((AI18+AJ18)-(AE18+AF18))*24<-720,"Neinformat",((AI18+AJ18)-(AE18+AF18))*24),"Nu a fost afectat producator/consumator")),"") -> 4.433333333 | AU18: =IF(B18="X",IF(AN18="DA",IF(AT18<6,LEN(TRIM(U18))-LEN(SUBSTITUTE(U18,CHAR(44),""))+1,0),"-"),"") -> 44 | AV18: =IF(B18="X",IF(AN18="DA",LEN(TRIM(U18))-LEN(SUBSTITUTE(U18,CHAR(44),""))+1,"-"),"") -> 44 | AW18: =IF(B18="X",IF(AN18="","Afectat sau NU?",IF(AN18="DA",((AG18+AH18)-(AE18+AF18))*24,"Nu a fost afectat producator/consumator")),"") -> 1.75 | AX18: =IF(B18="X",IF(AN18="DA",IF(AW18>24,IF(AZ18="NU",0,LEN(TRIM(V18))-LEN(SUBSTITUTE(V18,CHAR(44),""))+1),0),"-"),"") -> 0 | AY18: =IF(B18="X",IF(AN18="DA",IF(AW18>24,LEN(TRIM(V18))-LEN(SUBSTITUTE(V18,CHAR(44),""))+1,0),"-"),"") -> 0 | BE18: =IF(C18="X",IF(AN18="","Afectat sau NU?",IF(AN18="DA",IF(AK18="","Neinformat",NETWORKDAYS(AK18+AL18,AE18+AF18,$BR$2:$BR$14)-2),"Nu a fost afectat producator/consumator")),"") ->  | BF18: =IF(C18="X",IF(AN18="DA",IF(AND(BE18>=5,AK18<>""),LEN(TRIM(V18))-LEN(SUBSTITUTE(V18,CHAR(44),""))+1,0),"-"),"") ->  | BG18: =IF(C18="X",IF(AN18="DA",LEN(TRIM(V18))-LEN(SUBSTITUTE(V18,CHAR(44),""))+1,"-"),"") ->  | BH18: =IF(C18="X",IF(AN18="","Afectat sau NU?",IF(AN18="DA",IF(AI18="","Neinformat",NETWORKDAYS(AI18+AJ18,AE18+AF18,$BR$2:$BR$14)-2),"Nu a fost afectat producator/consumator")),"") ->  | BI18: =IF(C18="X",IF(AN18="DA",IF(AND(BH18>=5,AI18<>""),LEN(TRIM(U18))-LEN(SUBSTITUTE(U18,CHAR(44),""))+1,0),"-"),"") ->  | BJ18: =IF(C18="X",IF(AN18="DA",LEN(TRIM(U18))-LEN(SUBSTITUTE(U18,CHAR(44),""))+1,"-"),"") ->  | BK18: =IF(C18="X",IF(AN18="","Afectat sau NU?",IF(AN18="DA",((AG18+AH18)-(Z18+AA18))*24,"Nu a fost afectat producator/consumator")),"") ->  | BL18: =IF(C18="X",IF(AN18<>"DA","-",IF(AND(AN18="DA",BK18<=0),LEN(TRIM(V18))-LEN(SUBSTITUTE(V18,CHAR(44),""))+1+LEN(TRIM(U18))-LEN(SUBSTITUTE(U18,CHAR(44),""))+1,0)),"") ->  | BM18: =IF(C18="X",IF(AN18="DA",LEN(TRIM(V18))-LEN(SUBSTITUTE(V18,CHAR(44),""))+1+LEN(TRIM(U18))-LEN(SUBSTITUTE(U18,CHAR(44),""))+1,"-"),"") -> 
A19: 4 | B19: X | C19: - | D19: Devierea conducte 20” Bazna - Turda și 10” Avrămești - Chețani, zona autostrăzii A3 Brașov-Oradea | E19: 116046 | F19: Chețani | G19: Mureș | H19: 427421.66 | I19: 551604.23 | J19: 427421.66 | K19: 551604.23 | L19: - | M19: - | N19: SM0651D0 | O19: Chețani II | P19: - | Q19: - | R19: - | S19: - | T19: SM-SD001 | U19: Engie, Electrica Furnizare, Premier Energy Trading, Premier Energy, Restart Energy, Wiee, E.On Energie, E.ON Gaz Furnizare, Petrom Gas, CEZ Vânzare, Enel Energie, Gas&Power, Gaz Est, MET România, Nova Power, Energy Distribution, CPL Concordia, Hargaz, Prisma Serv, Conef Gaz, Distrigaz Vest, Next Energy, CIS Gaz, Aderro GP, Tinmar, Enel Muntenia, RWE Supply, Cyeb, Entrex, Petrom, Electric&Gas, Pado Group, Design Proiect, Hermes, Eva Energy, Gazmir, SST Grup, Tetarom, Energy Gas Provider, RWE Energie, ICCO Energ, Delagaz, Mihoc Oil, Gaz Vest, Top Gas Network | V19: Delgaz Grid | W19: - | X19: 2018-10-08 | Y19: 08:15:00 | Z19: 2018-10-09 | AA19: 18:00:00 | AB19: Cluj | AC19: Efectuată | AD19: - | AE19: 2018-10-08 | AF19: 08:15:00 | AG19: 2018-10-09 | AH19: 21:00:00 | AI19: 2018-10-08 | AJ19: 08:36:00 | AK19: 2018-10-08 | AL19: 08:20:00 | AM19: 11285/04.10.2018 | AN19: DA | AQ19: =IF(B19="X",IF(AN19="","Afectat sau NU?",IF(AN19="DA",IF(((AK19+AL19)-(AE19+AF19))*24<-720,"Neinformat",((AK19+AL19)-(AE19+AF19))*24),"Nu a fost afectat producator/consumator")),"") -> 0.08333333326 | AR19: =IF(B19="X",IF(AN19="DA",IF(AQ19<6,LEN(TRIM(V19))-LEN(SUBSTITUTE(V19,CHAR(44),""))+1,0),"-"),"") -> 1 | AS19: =IF(B19="X",IF(AN19="DA",LEN(TRIM(V19))-LEN(SUBSTITUTE(V19,CHAR(44),""))+1,"-"),"") -> 1 | AT19: =IF(B19="X",IF(AN19="","Afectat sau NU?",IF(AN19="DA",IF(((AI19+AJ19)-(AE19+AF19))*24<-720,"Neinformat",((AI19+AJ19)-(AE19+AF19))*24),"Nu a fost afectat producator/consumator")),"") -> 0.3499999999 | AU19: =IF(B19="X",IF(AN19="DA",IF(AT19<6,LEN(TRIM(U19))-LEN(SUBSTITUTE(U19,CHAR(44),""))+1,0),"-"),"") -> 45 | AV19: =IF(B19="X",IF(AN19="DA",LEN(TRIM(U19))-LEN(SUBSTITUTE(U19,CHAR(44),""))+1,"-"),"") -> 45 | AW19: =IF(B19="X",IF(AN19="","Afectat sau NU?",IF(AN19="DA",((AG19+AH19)-(AE19+AF19))*24,"Nu a fost afectat producator/consumator")),"") -> 36.75 | AX19: =IF(B19="X",IF(AN19="DA",IF(AW19>24,IF(AZ19="NU",0,LEN(TRIM(V19))-LEN(SUBSTITUTE(V19,CHAR(44),""))+1),0),"-"),"") -> 1 | AY19: =IF(B19="X",IF(AN19="DA",IF(AW19>24,LEN(TRIM(V19))-LEN(SUBSTITUTE(V19,CHAR(44),""))+1,0),"-"),"") -> 1 | AZ19: DA | BF19: =IF(C19="X",IF(AN19="DA",IF(AND(BE19>=5,AK19<>""),LEN(TRIM(V19))-LEN(SUBSTITUTE(V19,CHAR(44),""))+1,0),"-"),"") ->  | BG19: =IF(C19="X",IF(AN19="DA",LEN(TRIM(V19))-LEN(SUBSTITUTE(V19,CHAR(44),""))+1,"-"),"") ->  | BI19: =IF(C19="X",IF(AN19="DA",IF(AND(BH19>=5,AI19<>""),LEN(TRIM(U19))-LEN(SUBSTITUTE(U19,CHAR(44),""))+1,0),"-"),"") ->  | BJ19: =IF(C19="X",IF(AN19="DA",LEN(TRIM(U19))-LEN(SUBSTITUTE(U19,CHAR(44),""))+1,"-"),"") ->  | BK19: =IF(C19="X",IF(AN19="","Afectat sau NU?",IF(AN19="DA",((AG19+AH19)-(Z19+AA19))*24,"Nu a fost afectat producator/consumator")),"") ->  | BL19: =IF(C19="X",IF(AN19<>"DA","-",IF(AND(AN19="DA",BK19<=0),LEN(TRIM(V19))-LEN(SUBSTITUTE(V19,CHAR(44),""))+1+LEN(TRIM(U19))-LEN(SUBSTITUTE(U19,CHAR(44),""))+1,0)),"") ->  | BM19: =IF(C19="X",IF(AN19="DA",LEN(TRIM(V19))-LEN(SUBSTITUTE(V19,CHAR(44),""))+1+LEN(TRIM(U19))-LEN(SUBSTITUTE(U19,CHAR(44),""))+1,"-"),"") -> 
A20: 5 | B20: X | C20: - | D20: Devierea conducte 20” Bazna - Turda și 10” Avrămești - Chețani, zona autostrăzii A3 Brașov-Oradea | E20: 114710 | F20: Luduș | G20: Cluj | H20: 429417.39 | I20: 560010.37 | J20: 429417.39 | K20: 560010.37 | L20: - | M20: - | N20: - | O20: - | P20: PM0122 | Q20: Luduș | R20: - | S20: - | T20: PM-PP001 | U20: Romgaz | V20: Romgaz | W20: - | X20: 2018-10-09 | Y20: 08:20:00 | Z20: 2018-10-10 | AA20: 18:00:00 | AB20: Cluj | AC20: Efectuată | AD20: - | AE20: 2018-10-09 | AF20: 08:20:00 | AG20: 2018-10-10 | AH20: 22:45:00 | AI20: 2018-10-09 | AJ20: 09:08:00 | AK20: 2018-10-09 | AL20: 08:36:00 | AM20: 11285/04.10.2018 | AN20: DA | AQ20: 0.2666666667 | AR20: 1 | AS20: 1 | AT20: 0.8000000002 | AU20: 1 | AV20: 1 | AW20: 38.41666667 | AX20: 1 | AY20: 1 | AZ20: DA
A21: 6 | B21: X | C21: - | D21: Devierea conducte 20” Bazna - Turda și 10” Avrămești - Chețani, zona autostrăzii A3 Brașov-Oradea | E21: 116046 | F21: Grindeni | G21: Cluj | H21: 426418.0571 | I21: 555027.3705 | J21: 426418.0571 | K21: 555027.3705 | L21: - | M21: - | N21: SM0657D0 | O21: Grindeni | P21: - | Q21: - | R21: - | S21: - | T21: SM-SD001 | U21: Engie, Electrica Furnizare, Premier Energy Trading, Premier Energy, Restart Energy, Wiee, E.On Energie, E.ON Gaz Furnizare, Petrom Gas, CEZ Vânzare, Enel Energie, Gas&Power, Gaz Est, MET România, Nova Power, Energy Distribution, CPL Concordia, Hargaz, Prisma Serv, Conef Gaz, Distrigaz Vest, Next Energy, CIS Gaz, Aderro GP, Tinmar, Enel Muntenia, RWE Supply, Cyeb, Entrex, Petrom, Electric&Gas, Pado Group, Design Proiect, Hermes, Eva Energy, Gazmir, SST Grup, Tetarom, Energy Gas Provider, RWE Energie, ICCO Energ, Delagaz, Mihoc Oil, Gaz Vest, Top Gas Network | V21: Delgaz Grid | W21: - | X21: 2018-10-09 | Y21: 08:20:00 | Z21: 2018-10-09 | AA21: 18:00:00 | AB21: Cluj | AC21: Efectuată | AD21: - | AE21: 2018-10-09 | AF21: 08:20:00 | AG21: 2018-10-09 | AH21: 18:00:00 | AI21: 2018-10-09 | AJ21: 09:01:00 | AK21: 2018-10-09 | AL21: 08:40:00 | AM21: 11285/04.10.2018 | AN21: DA | AQ21: 0.3333333334 | AR21: 1 | AS21: 1 | AT21: 0.6833333335 | AU21: 45 | AV21: 45 | AW21: 9.666666667 | AX21: 0 | AY21: 0
A22: 7 | B22: X | C22: - | D22: Dezafectare separator orizontal și eliminarea unui cupon de conductă de pe conducta DN 250mm Calacea-Mașloc din zona SPC Orțișoara | E22: 158653 | F22: Sânandrei | G22: Timiș | H22: 202718.7 | I22: 491658.33 | J22: 202718.7 | K22: 491658.33 | L22: - | M22: - | N22: SM1020D1 | O22: SIRD Sânandrei | P22: - | Q22: - | R22: - | S22: - | T22: SM-SD001 | U22: Engie, Restart Energy, E.On Energie, Petrom Gas, CEZ Vânzare, Enel Energie, Gaz Est, MET România, Energy Distribution, Gaz Vest, Distrigaz Vest, Tinmar, Electric&Gas, Energy Gas Provider, RWE Energie, Gas&Power, Premier Energy | V22: Gaz Vest | W22: - | X22: 2018-10-10 | Y22: 10:15:00 | Z22: 2018-10-10 | AA22: 18:00:00 | AB22: Arad | AC22: Efectuată | AD22: - | AE22: 2018-10-10 | AF22: 10:15:00 | AG22: 2018-10-10 | AH22: 16:25:00 | AI22: 2018-10-10 | AJ22: 10:56:00 | AK22: 2018-10-10 | AL22: 10:32:00 | AM22: 8182/28.09.2018 | AN22: DA | AQ22: 0.2833333332 | AR22: 1 | AS22: 1 | AT22: 0.6833333333 | AU22: 17 | AV22: 17 | AW22: 6.166666667 | AX22: 0 | AY22: 0
A23: 8 | B23: X | C23: - | D23: Dezafectare separator orizontal și eliminarea unui cupon de conductă de pe conducta DN 250mm Calacea-Mașloc din zona SPC Orțișoara | E23: 158653 | F23: Sânandrei | G23: Timiș | H23: 202718.7 | I23: 491658.33 | J23: 202718.7 | K23: 491658.33 | L23: - | M23: - | N23: SM1020D0 | O23: Sânandrei | P23: - | Q23: - | R23: - | S23: - | T23: SM-SD001 | U23: Engie, Restart Energy, E.On Energie, Petrom Gas, CEZ Vânzare, Enel Energie, Gaz Est, MET România, Energy Distribution, Gaz Vest, Distrigaz Vest, Tinmar, Electric&Gas, Energy Gas Provider, RWE Energie, Gas&Power, Premier Energy | V23: Gaz Vest | W23: - | X23: 2018-10-10 | Y23: 10:15:00 | Z23: 2018-10-10 | AA23: 18:00:00 | AB23: Arad | AC23: Efectuată | AD23: - | AE23: 2018-10-10 | AF23: 10:15:00 | AG23: 2018-10-10 | AH23: 16:25:00 | AI23: 2018-10-10 | AJ23: 10:56:00 | AK23: 2018-10-10 | AL23: 10:32:00 | AM23: 8182/28.09.2018 | AN23: DA | AQ23: 0.2833333332 | AR23: 1 | AS23: 1 | AT23: 0.6833333333 | AU23: 17 | AV23: 17 | AW23: 6.166666667 | AX23: 0 | AY23: 0
A24: 9 | B24: X | C24: - | D24: Dezafectare separator orizontal și eliminarea unui cupon de conductă de pe conducta DN 250mm Calacea-Mașloc din zona SPC Orțișoara | E24: 158653 | F24: Cărani | G24: Timiș | H24: 203263.74 | I24: 497564.73 | J24: 203263.74 | K24: 497564.73 | L24: - | M24: - | N24: SM1008D0 | O24: Cărani | P24: - | Q24: - | R24: - | S24: - | T24: SM-SD001 | U24: Engie, Restart Energy, E.On Energie, Petrom Gas, CEZ Vânzare, Enel Energie, Gaz Est, MET România, Energy Distribution, Gaz Vest, Distrigaz Vest, Tinmar, Electric&Gas, Energy Gas Provider, RWE Energie, Gas&Power, Premier Energy | V24: Gaz Vest | W24: - | X24: 2018-10-10 | Y24: 09:30:00 | Z24: 2018-10-10 | AA24: 18:00:00 | AB24: Arad | AC24: Efectuată | AD24: - | AE24: 2018-10-10 | AF24: 09:30:00 | AG24: 2018-10-10 | AH24: 16:15:00 | AI24: 2018-10-10 | AJ24: 13:38:00 | AK24: 2018-10-10 | AL24: 10:08:00 | AM24: 8182/28.09.2018 | AN24: DA | AQ24: =IF(B24="X",IF(AN24="","Afectat sau NU?",IF(AN24="DA",IF(((AK24+AL24)-(AE24+AF24))*24<-720,"Neinformat",((AK24+AL24)-(AE24+AF24))*24),"Nu a fost afectat producator/consumator")),"") -> 0.6333333333 | AR24: =IF(B24="X",IF(AN24="DA",IF(AQ24<6,LEN(TRIM(V24))-LEN(SUBSTITUTE(V24,CHAR(44),""))+1,0),"-"),"") -> 1 | AS24: =IF(B24="X",IF(AN24="DA",LEN(TRIM(V24))-LEN(SUBSTITUTE(V24,CHAR(44),""))+1,"-"),"") -> 1 | AT24: =IF(B24="X",IF(AN24="","Afectat sau NU?",IF(AN24="DA",IF(((AI24+AJ24)-(AE24+AF24))*24<-720,"Neinformat",((AI24+AJ24)-(AE24+AF24))*24),"Nu a fost afectat producator/consumator")),"") -> 4.133333333 | AU24: =IF(B24="X",IF(AN24="DA",IF(AT24<6,LEN(TRIM(U24))-LEN(SUBSTITUTE(U24,CHAR(44),""))+1,0),"-"),"") -> 17 | AV24: =IF(B24="X",IF(AN24="DA",LEN(TRIM(U24))-LEN(SUBSTITUTE(U24,CHAR(44),""))+1,"-"),"") -> 17 | AW24: =IF(B24="X",IF(AN24="","Afectat sau NU?",IF(AN24="DA",((AG24+AH24)-(AE24+AF24))*24,"Nu a fost afectat producator/consumator")),"") -> 6.75 | AX24: =IF(B24="X",IF(AN24="DA",IF(AW24>24,IF(AZ24="NU",0,LEN(TRIM(V24))-LEN(SUBSTITUTE(V24,CHAR(44),""))+1),0),"-"),"") -> 0 | AY24: =IF(B24="X",IF(AN24="DA",IF(AW24>24,LEN(TRIM(V24))-LEN(SUBSTITUTE(V24,CHAR(44),""))+1,0),"-"),"") -> 0
A25: 10 | B25: X | C25: - | D25: Eliminare dop de sare de pe conducta 10” Țeline - Sighișoara și montare ansamblu filtrare impurități | E25: 144401 | F25: Țeline | G25: Sibiu | H25: 493019 | I25: 509674 | J25: 488369 | K25: 518128 | L25: - | M25: - | N25: - | O25: - | P25: - | Q25: - | R25: PM0156 | S25: Țeline | T25: PM-PP001 | U25: Romgaz | V25: Romgaz | W25: - | X25: 2018-10-09 | Y25: 08:45:00 | Z25: 2018-10-11 | AA25: 16:00:00 | AB25: Brașov | AC25: Efectuată | AD25: - | AE25: 2018-10-09 | AF25: 08:45:00 | AG25: 2018-10-11 | AH25: 16:00:00 | AI25: 2018-10-09 | AJ25: 10:39:00 | AK25: 2018-10-09 | AL25: 09:05:00 | AM25: 3988/08.10.2018 | AN25: DA | AO25: Notificarea PA a fost făcută în scris - Convenție | AQ25: =IF(B25="X",IF(AN25="","Afectat sau NU?",IF(AN25="DA",IF(((AK25+AL25)-(AE25+AF25))*24<-720,"Neinformat",((AK25+AL25)-(AE25+AF25))*24),"Nu a fost afectat producator/consumator")),"") -> 0.3333333332 | AR25: =IF(B25="X",IF(AN25="DA",IF(AQ25<6,LEN(TRIM(V25))-LEN(SUBSTITUTE(V25,CHAR(44),""))+1,0),"-"),"") -> 1 | AS25: =IF(B25="X",IF(AN25="DA",LEN(TRIM(V25))-LEN(SUBSTITUTE(V25,CHAR(44),""))+1,"-"),"") -> 1 | AT25: =IF(B25="X",IF(AN25="","Afectat sau NU?",IF(AN25="DA",IF(((AI25+AJ25)-(AE25+AF25))*24<-720,"Neinformat",((AI25+AJ25)-(AE25+AF25))*24),"Nu a fost afectat producator/consumator")),"") -> 1.9 | AU25: =IF(B25="X",IF(AN25="DA",IF(AT25<6,LEN(TRIM(U25))-LEN(SUBSTITUTE(U25,CHAR(44),""))+1,0),"-"),"") -> 1 | AV25: =IF(B25="X",IF(AN25="DA",LEN(TRIM(U25))-LEN(SUBSTITUTE(U25,CHAR(44),""))+1,"-"),"") -> 1 | AW25: =IF(B25="X",IF(AN25="","Afectat sau NU?",IF(AN25="DA",((AG25+AH25)-(AE25+AF25))*24,"Nu a fost afectat producator/consumator")),"") -> 55.25 | AX25: =IF(B25="X",IF(AN25="DA",IF(AW25>24,IF(AZ25="NU",0,LEN(TRIM(V25))-LEN(SUBSTITUTE(V25,CHAR(44),""))+1),0),"-"),"") -> 1 | AY25: =IF(B25="X",IF(AN25="DA",IF(AW25>24,LEN(TRIM(V25))-LEN(SUBSTITUTE(V25,CHAR(44),""))+1,0),"-"),"") -> 1 | AZ25: DA
A26: 11 | B26: X | C26: - | D26: Cuplare instalație tehnologică nouă a SRMP Timișoara I | E26: 155243 | F26: Timișoara | G26: Timiș | H26: 210735.38 | I26: 478039.45 | J26: 210735.38 | K26: 478039.45 | L26: - | M26: - | N26: SM0334D0 | O26: Timișoara I | P26: - | Q26: - | R26: - | S26: - | T26: SM-SD001 | U26: Engie, Electrica Furnizare, Premier Energy Trading, Premier Energy, Restart Energy, Wiee, E.On Energie, E.ON Gaz Furnizare, Petrom Gas, CEZ Vânzare, Enel Energie, Gas&Power, Gaz Est, MET România, Nova Power, Energy Distribution, CPL Concordia, Hargaz, Prisma Serv, Conef Gaz, Distrigaz Vest, Next Energy, CIS Gaz, Aderro GP, Tinmar, Enel Energie Muntenia, RWE Supply, Cyeb, Entrex, Petrom, Electric&Gas, Pado Group, Design Proiect, Hermes, Eva Energy, Gazmir, SST Grup, Tetarom, Energy Gas Provider, RWE Energie, ICCO Energ, Delagaz, Mihoc Oil, Gaz Vest, Top Gas Network | V26: Delgaz Grid | W26: - | X26: 2018-10-11 | Y26: 09:18:00 | Z26: 2018-10-12 | AA26: 18:00:00 | AB26: Arad | AC26: Efectuată | AD26: - | AE26: 2018-10-11 | AF26: 09:18:00 | AG26: 2018-10-11 | AH26: 18:30:00 | AI26: 2018-10-11 | AJ26: 09:36:00 | AK26: 2018-10-11 | AL26: 09:18:00 | AM26: 8633/09.10.2018 | AN26: DA | AQ26: =IF(B26="X",IF(AN26="","Afectat sau NU?",IF(AN26="DA",IF(((AK26+AL26)-(AE26+AF26))*24<-720,"Neinformat",((AK26+AL26)-(AE26+AF26))*24),"Nu a fost afectat producator/consumator")),"") -> 0 | AR26: =IF(B26="X",IF(AN26="DA",IF(AQ26<6,LEN(TRIM(V26))-LEN(SUBSTITUTE(V26,CHAR(44),""))+1,0),"-"),"") -> 1 | AS26: =IF(B26="X",IF(AN26="DA",LEN(TRIM(V26))-LEN(SUBSTITUTE(V26,CHAR(44),""))+1,"-"),"") -> 1 | AT26: =IF(B26="X",IF(AN26="","Afectat sau NU?",IF(AN26="DA",IF(((AI26+AJ26)-(AE26+AF26))*24<-720,"Neinformat",((AI26+AJ26)-(AE26+AF26))*24),"Nu a fost afectat producator/consumator")),"") -> 0.3000000001 | AU26: =IF(B26="X",IF(AN26="DA",IF(AT26<6,LEN(TRIM(U26))-LEN(SUBSTITUTE(U26,CHAR(44),""))+1,0),"-"),"") -> 45 | AV26: =IF(B26="X",IF(AN26="DA",LEN(TRIM(U26))-LEN(SUBSTITUTE(U26,CHAR(44),""))+1,"-"),"") -> 45 | AW26: =IF(B26="X",IF(AN26="","Afectat sau NU?",IF(AN26="DA",((AG26+AH26)-(AE26+AF26))*24,"Nu a fost afectat producator/consumator")),"") -> 9.2 | AX26: =IF(B26="X",IF(AN26="DA",IF(AW26>24,IF(AZ26="NU",0,LEN(TRIM(V26))-LEN(SUBSTITUTE(V26,CHAR(44),""))+1),0),"-"),"") -> 0 | AY26: =IF(B26="X",IF(AN26="DA",IF(AW26>24,LEN(TRIM(V26))-LEN(SUBSTITUTE(V26,CHAR(44),""))+1,0),"-"),"") -> 0
A27: 12 | B27: X | C27: - | D27: Lucrări de mentenanță în SRM Noul Săsesc | E27: 144731 | F27: Nou Săsesc | G27: Sibiu | H27: 469574.98 | I27: 511481.71 | J27: 469574.98 | K27: 511481.71 | L27: - | M27: - | N27: SM0765D0 | O27: Nou Săsesc | P27: - | Q27: - | R27: - | S27: - | T27: SM-SD001 | U27: Engie, Electrica Furnizare, Premier Energy Trading, Premier Energy, Restart Energy, Wiee, E.On Energie, E.ON Gaz Furnizare, Petrom Gas, CEZ Vânzare, Enel Energie, Gas&Power, Gaz Est, MET România, Nova Power, Energy Distribution, CPL Concordia, Hargaz, Prisma Serv, Conef Gaz, Distrigaz Vest, Next Energy, CIS Gaz, Aderro GP, Tinmar, Enel Energie Muntenia, RWE Supply, Cyeb, Entrex, Petrom, Electric&Gas, Pado Group, Design Proiect, Hermes, Eva Energy, Gazmir, SST Grup, Tetarom, Energy Gas Provider, RWE Energie, ICCO Energ, Delagaz, Mihoc Oil, Gaz Vest, Top Gas Network | V27: Delgaz Grid | W27: - | X27: 2018-10-11 | Y27: 09:00:00 | Z27: 2018-10-11 | AA27: 14:00:00 | AB27: Mediaș | AC27: Efectuată | AD27: - | AE27: 2018-10-11 | AF27: 09:00:00 | AG27: 2018-10-11 | AH27: 14:30:00 | AI27: 2018-10-11 | AJ27: 09:53:00 | AK27: 2018-10-11 | AL27: 09:33:00 | AM27: 8346/09.10.2018 | AN27: DA | AQ27: =IF(B27="X",IF(AN27="","Afectat sau NU?",IF(AN27="DA",IF(((AK27+AL27)-(AE27+AF27))*24<-720,"Neinformat",((AK27+AL27)-(AE27+AF27))*24),"Nu a fost afectat producator/consumator")),"") -> 0.55 | AR27: =IF(B27="X",IF(AN27="DA",IF(AQ27<6,LEN(TRIM(V27))-LEN(SUBSTITUTE(V27,CHAR(44),""))+1,0),"-"),"") -> 1 | AS27: =IF(B27="X",IF(AN27="DA",LEN(TRIM(V27))-LEN(SUBSTITUTE(V27,CHAR(44),""))+1,"-"),"") -> 1 | AT27: =IF(B27="X",IF(AN27="","Afectat sau NU?",IF(AN27="DA",IF(((AI27+AJ27)-(AE27+AF27))*24<-720,"Neinformat",((AI27+AJ27)-(AE27+AF27))*24),"Nu a fost afectat producator/consumator")),"") -> 0.8833333334 | AU27: =IF(B27="X",IF(AN27="DA",IF(AT27<6,LEN(TRIM(U27))-LEN(SUBSTITUTE(U27,CHAR(44),""))+1,0),"-"),"") -> 45 | AV27: =IF(B27="X",IF(AN27="DA",LEN(TRIM(U27))-LEN(SUBSTITUTE(U27,CHAR(44),""))+1,"-"),"") -> 45 | AW27: =IF(B27="X",IF(AN27="","Afectat sau NU?",IF(AN27="DA",((AG27+AH27)-(AE27+AF27))*24,"Nu a fost afectat producator/consumator")),"") -> 5.5 | AX27: =IF(B27="X",IF(AN27="DA",IF(AW27>24,IF(AZ27="NU",0,LEN(TRIM(V27))-LEN(SUBSTITUTE(V27,CHAR(44),""))+1),0),"-"),"") -> 0 | AY27: =IF(B27="X",IF(AN27="DA",IF(AW27>24,LEN(TRIM(V27))-LEN(SUBSTITUTE(V27,CHAR(44),""))+1,0),"-"),"") -> 0
A28: 13 | B28: X | C28: - | D28: Înlocuire robinet separator de lichid la SRM Certeze | E28: 137407 | F28: Certeze | G28: Satu Mare | H28: 385764.67 | I28: 714173.95 | J28: 385764.67 | K28: 714173.95 | L28: - | M28: - | N28: SM1215D0 | O28: Certeze | P28: - | Q28: - | R28: - | S28: - | T28: SM-SD001 | U28: Engie, Restart Energy, E.On Energie, Petrom Gas, CEZ Vânzare, Enel Energie, Gaz Est, MET România, Energy Distribution, GAZ Vest, Distrigaz Vest, Tinmar, Electric&Gas, Energy Gas Provider, RWE Energie, GAS&Power, Premier Energy | V28: Gaz Vest | W28: - | X28: 2018-10-16 | Y28: 11:10:00 | Z28: 2018-10-16 | AA28: 14:00:00 | AB28: Cluj | AC28: Efectuată | AD28: - | AE28: 2018-10-16 | AF28: 11:10:00 | AG28: 2018-10-16 | AH28: 13:45:00 | AI28: 2018-10-16 | AJ28: 11:33:00 | AK28: 2018-10-16 | AL28: 11:19:00 | AM28: 11604/15.10.2018 | AN28: DA | AQ28: =IF(B28="X",IF(AN28="","Afectat sau NU?",IF(AN28="DA",IF(((AK28+AL28)-(AE28+AF28))*24<-720,"Neinformat",((AK28+AL28)-(AE28+AF28))*24),"Nu a fost afectat producator/consumator")),"") -> 0.15 | AR28: =IF(B28="X",IF(AN28="DA",IF(AQ28<6,LEN(TRIM(V28))-LEN(SUBSTITUTE(V28,CHAR(44),""))+1,0),"-"),"") -> 1 | AS28: =IF(B28="X",IF(AN28="DA",LEN(TRIM(V28))-LEN(SUBSTITUTE(V28,CHAR(44),""))+1,"-"),"") -> 1 | AT28: =IF(B28="X",IF(AN28="","Afectat sau NU?",IF(AN28="DA",IF(((AI28+AJ28)-(AE28+AF28))*24<-720,"Neinformat",((AI28+AJ28)-(AE28+AF28))*24),"Nu a fost afectat producator/consumator")),"") -> 0.3833333332 | AU28: =IF(B28="X",IF(AN28="DA",IF(AT28<6,LEN(TRIM(U28))-LEN(SUBSTITUTE(U28,CHAR(44),""))+1,0),"-"),"") -> 17 | AV28: =IF(B28="X",IF(AN28="DA",LEN(TRIM(U28))-LEN(SUBSTITUTE(U28,CHAR(44),""))+1,"-"),"") -> 17 | AW28: =IF(B28="X",IF(AN28="","Afectat sau NU?",IF(AN28="DA",((AG28+AH28)-(AE28+AF28))*24,"Nu a fost afectat producator/consumator")),"") -> 2.583333333 | AX28: =IF(B28="X",IF(AN28="DA",IF(AW28>24,IF(AZ28="NU",0,LEN(TRIM(V28))-LEN(SUBSTITUTE(V28,CHAR(44),""))+1),0),"-"),"") -> 0 | AY28: =IF(B28="X",IF(AN28="DA",IF(AW28>24,LEN(TRIM(V28))-LEN(SUBSTITUTE(V28,CHAR(44),""))+1,0),"-"),"") -> 0
A29: 14 | B29: X | C29: - | D29: Reparatia defectelor de coroziune pe conducta Dn500 Avram Iancu-Arad II din zona Zerind, Chisineu Cris si Parc Socodor | E29: 27285 | F29: Avram Iancu | G29: Bihor | H29: 231769.69 | I29: 565272.24 | J29: 233493.462 | K29: 580485.38 | L29: - | M29: - | N29: SM0359D0 | O29: Avram Iancu | P29: - | Q29: - | R29: - | S29: - | T29: SM-SD001 | U29: Engie, Electrica Furnizare, Premier Energy Trading, Premier Energy, Restart Energy, Wiee, E.On Energie, E.On Gaz Furnizare, Petrom Gas, CEZ Vânzare, Enel Energie, Gas&Power, Gaz Est, MET România, Nova Power, Energy Distribution, CPL Concordia, Hargaz, Prisma Serv, Conef Gaz, Distrigaz Vest, Next Energy, CIS Gaz, Aderro Gp, Tinmar, Enel Energie Muntenia, RWE Supply, Cyeb, Entrex, Petrom, Electric&Gas, Pado Group, Design Proiect, Hermes, Eva Energy, Gazmir, SST Grup, Tetarom, Energy Gas Provider, RWE Energie, Icco Energ, Delagaz, Mihoc Oil, Gaz Vest, Top Gas Network | V29: Delgaz Grid | W29: - | X29: 2018-10-18 | Y29: 09:10:00 | Z29: 2018-10-19 | AA29: 18:00:00 | AB29: Arad | AC29: Efectuată | AD29: - | AE29: 2018-10-18 | AF29: 09:10:00 | AG29: 2018-10-19 | AH29: 13:20:00 | AI29: 2018-10-18 | AJ29: 10:25:00 | AK29: 2018-10-18 | AL29: 09:48:00 | AM29: 8943/16.10.2018 | AN29: DA | AO29: Mailurile de notificare PA ne-au fost transmise ulterior, în 22.01.2019 | AQ29: =IF(B29="X",IF(AN29="","Afectat sau NU?",IF(AN29="DA",IF(((AK29+AL29)-(AE29+AF29))*24<-720,"Neinformat",((AK29+AL29)-(AE29+AF29))*24),"Nu a fost afectat producator/consumator")),"") -> 0.6333333333 | AR29: =IF(B29="X",IF(AN29="DA",IF(AQ29<6,LEN(TRIM(V29))-LEN(SUBSTITUTE(V29,CHAR(44),""))+1,0),"-"),"") -> 1 | AS29: =IF(B29="X",IF(AN29="DA",LEN(TRIM(V29))-LEN(SUBSTITUTE(V29,CHAR(44),""))+1,"-"),"") -> 1 | AT29: =IF(B29="X",IF(AN29="","Afectat sau NU?",IF(AN29="DA",IF(((AI29+AJ29)-(AE29+AF29))*24<-720,"Neinformat",((AI29+AJ29)-(AE29+AF29))*24),"Nu a fost afectat producator/consumator")),"") -> 1.25 | AU29: =IF(B29="X",IF(AN29="DA",IF(AT29<6,LEN(TRIM(U29))-LEN(SUBSTITUTE(U29,CHAR(44),""))+1,0),"-"),"") -> 45 | AV29: =IF(B29="X",IF(AN29="DA",LEN(TRIM(U29))-LEN(SUBSTITUTE(U29,CHAR(44),""))+1,"-"),"") -> 45 | AW29: =IF(B29="X",IF(AN29="","Afectat sau NU?",IF(AN29="DA",((AG29+AH29)-(AE29+AF29))*24,"Nu a fost afectat producator/consumator")),"") -> 28.16666667 | AX29: =IF(B29="X",IF(AN29="DA",IF(AW29>24,IF(AZ29="NU",0,LEN(TRIM(V29))-LEN(SUBSTITUTE(V29,CHAR(44),""))+1),0),"-"),"") -> 1 | AY29: =IF(B29="X",IF(AN29="DA",IF(AW29>24,LEN(TRIM(V29))-LEN(SUBSTITUTE(V29,CHAR(44),""))+1,0),"-"),"") -> 1 | AZ29: DA
A30: 15 | B30: X | C30: - | D30: Reparatia defectelor de coroziune pe conducta Dn500 Avram Iancu-Arad II din zona Zerind, Chisineu Cris si Parc Socodor | E30: 9459 | F30: Chișineu Criș | G30: Arad | H30: 231769.69 | I30: 565272.24 | J30: 233493.462 | K30: 580485.38 | L30: - | M30: - | N30: SM0356D0 | O30: SC Maricom Chișineu-Criș III | P30: - | Q30: - | R30: - | S30: - | T30: SM-SD001 | U30: Engie, Electrica Furnizare, Premier Energy Trading, Premier Energy, Restart Energy, Wiee, E.On Energie, E.On Gaz Furnizare, Petrom Gas, CEZ Vânzare, Enel Energie, Gas&Power, Gaz Est, MET România, Nova Power, Energy Distribution, CPL Concordia, Hargaz, Prisma Serv, Conef Gaz, Distrigaz Vest, Next Energy, CIS Gaz, Aderro Gp, Tinmar, Enel Energie Muntenia, RWE Supply, Cyeb, Entrex, Petrom, Electric&Gas, Pado Group, Design Proiect, Hermes, Eva Energy, Gazmir, SST Grup, Tetarom, Energy Gas Provider, RWE Energie, Icco Energ, Delagaz, Mihoc Oil, Gaz Vest, Top Gas Network | V30: Delgaz Grid | W30: - | X30: 2018-10-18 | Y30: 09:10:00 | Z30: 2018-10-19 | AA30: 18:00:00 | AB30: Arad | AC30: Efectuată | AD30: - | AE30: 2018-10-18 | AF30: 09:10:00 | AG30: 2018-10-19 | AH30: 13:05:00 | AI30: 2018-10-18 | AJ30: 10:25:00 | AK30: 2018-10-18 | AL30: 09:48:00 | AM30: 8943/16.10.2018 | AN30: DA | AO30: Mailurile de notificare PA ne-au fost transmise ulterior, în 22.01.2019 | AQ30: 0.6333333333 | AR30: 1 | AS30: 1 | AT30: 1.25 | AU30: 45 | AV30: 45 | AW30: 27.91666667 | AX30: 1 | AY30: 1 | AZ30: DA
A31: 16 | B31: X | C31: - | D31: Reparatia defectelor de coroziune pe conducta Dn500 Avram Iancu-Arad II din zona Zerind, Chisineu Cris si Parc Socodor | E31: 9459 | F31: Chișineu Criș | G31: Arad | H31: 233939.59 | I31: 564386.59 | J31: 233939.59 | K31: 564386.59 | L31: - | M31: - | N31: SM0357D0 | O31: Chișineu-Criș I | P31: - | Q31: - | R31: - | S31: - | T31: SM-SD001 | U31: Engie, Electrica Furnizare, Premier Energy Trading, Premier Energy, Restart Energy, Wiee, E.On Energie, E.On Gaz Furnizare, Petrom Gas, CEZ Vânzare, Enel Energie, Gas&Power, Gaz Est, MET România, Nova Power, Energy Distribution, CPL Concordia, Hargaz, Prisma Serv, Conef Gaz, Distrigaz Vest, Next Energy, CIS Gaz, Aderro Gp, Tinmar, Enel Energie Muntenia, RWE Supply, Cyeb, Entrex, Petrom, Electric&Gas, Pado Group, Design Proiect, Hermes, Eva Energy, Gazmir, SST Grup, Tetarom, Energy Gas Provider, RWE Energie, Icco Energ, Delagaz, Mihoc Oil, Gaz Vest, Top Gas Network | V31: Delgaz Grid | W31: - | X31: 2018-10-18 | Y31: 09:10:00 | Z31: 2018-10-19 | AA31: 18:00:00 | AB31: Arad | AC31: Efectuată | AD31: - | AE31: 2018-10-18 | AF31: 09:10:00 | AG31: 2018-10-19 | AH31: 13:15:00 | AI31: 2018-10-18 | AJ31: 10:25:00 | AK31: 2018-10-18 | AL31: 09:48:00 | AM31: 8943/16.10.2018 | AN31: NU | AQ31: =IF(B31="X",IF(AN31="","Afectat sau NU?",IF(AN31="DA",IF(((AK31+AL31)-(AE31+AF31))*24<-720,"Neinformat",((AK31+AL31)-(AE31+AF31))*24),"Nu a fost afectat producator/consumator")),"") -> Nu a fost afectat producator/consumator | AR31: =IF(B31="X",IF(AN31="DA",IF(AQ31<6,LEN(TRIM(V31))-LEN(SUBSTITUTE(V31,CHAR(44),""))+1,0),"-"),"") -> - | AS31: =IF(B31="X",IF(AN31="DA",LEN(TRIM(V31))-LEN(SUBSTITUTE(V31,CHAR(44),""))+1,"-"),"") -> - | AT31: =IF(B31="X",IF(AN31="","Afectat sau NU?",IF(AN31="DA",IF(((AI31+AJ31)-(AE31+AF31))*24<-720,"Neinformat",((AI31+AJ31)-(AE31+AF31))*24),"Nu a fost afectat producator/consumator")),"") -> Nu a fost afectat producator/consumator | AU31: =IF(B31="X",IF(AN31="DA",IF(AT31<6,LEN(TRIM(U31))-LEN(SUBSTITUTE(U31,CHAR(44),""))+1,0),"-"),"") -> - | AV31: =IF(B31="X",IF(AN31="DA",LEN(TRIM(U31))-LEN(SUBSTITUTE(U31,CHAR(44),""))+1,"-"),"") -> - | AW31: =IF(B31="X",IF(AN31="","Afectat sau NU?",IF(AN31="DA",((AG31+AH31)-(AE31+AF31))*24,"Nu a fost afectat producator/consumator")),"") -> Nu a fost afectat producator/consumator | AX31: =IF(B31="X",IF(AN31="DA",IF(AW31>24,IF(AZ31="NU",0,LEN(TRIM(V31))-LEN(SUBSTITUTE(V31,CHAR(44),""))+1),0),"-"),"") -> - | AY31: =IF(B31="X",IF(AN31="DA",IF(AW31>24,LEN(TRIM(V31))-LEN(SUBSTITUTE(V31,CHAR(44),""))+1,0),"-"),"") -> -
A32: 17 | B32: X | C32: - | D32: Reparatia defectelor de coroziune pe conducta Dn500 Avram Iancu-Arad II din zona Zerind, Chisineu Cris si Parc Socodor | E32: 12849 | F32: Zerind | G32: Arad | H32: 231769.69 | I32: 565272.24 | J32: 233493.462 | K32: 580485.38 | L32: - | M32: - | N32: SM0868D0 | O32: Zerind | P32: - | Q32: - | R32: - | S32: - | T32: SM-SD001 | U32: Engie, Restart Energy, E.ON Energie, Petrom Gas, CEZ Vânzare, Enel Energie, Gaz Est, Met Romania, Energy Distribution, Gaz Vest, Distrigaz Vest, Tinmar, Electric&Gas, Energy Gas Provider, RWE Energie, Gas&Power, Premier Energy | V32: Gaz Vest | W32: - | X32: 2018-10-18 | Y32: 09:10:00 | Z32: 2018-10-19 | AA32: 18:00:00 | AB32: Arad | AC32: Efectuată | AD32: - | AE32: 2018-10-18 | AF32: 09:10:00 | AG32: 2018-10-19 | AH32: 12:36:00 | AI32: 2018-10-18 | AJ32: 10:35:00 | AK32: 2018-10-18 | AL32: 09:54:00 | AM32: 8943/16.10.2018 | AN32: DA | AO32: Mailurile de notificare PA ne-au fost transmise ulterior, în 22.01.2019 | AQ32: 0.7333333333 | AR32: 1 | AS32: 1 | AT32: 1.416666667 | AU32: 17 | AV32: 17 | AW32: 27.43333333 | AX32: 1 | AY32: 1 | AZ32: DA
A33: 18 | B33: X | C33: - | D33: Reparatia defectelor de coroziune pe conducta Dn500 Avram Iancu-Arad II din zona Zerind, Chisineu Cris si Parc Socodor | E33: 9547 | F33: Ineu | G33: Arad | H33: 256278.42 | I33: 552609.2 | J33: 256278.42 | K33: 552609.2 | L33: SM0915D0 | M33: Ineu | N33: - | O33: - | P33: - | Q33: - | R33: - | S33: - | T33: SM-SD001 | U33: Engie, Restart Energy, E.ON Energie, Petrom Gas, CEZ Vânzare, Enel Energie, Gaz Est, Met Romania, Energy Distribution, Gaz Vest, Distrigaz Vest, Tinmar, Electric&Gas, Energy Gas Provider, RWE Energie, Gas&Power, Premier Energy | V33: Gaz Vest | W33: - | X33: 2018-10-18 | Y33: 09:00:00 | Z33: 2018-10-19 | AA33: 18:00:00 | AB33: Arad | AC33: Efectuată | AD33: - | AE33: 2018-10-18 | AF33: 09:10:00 | AG33: 2018-10-19 | AH33: 12:55:00 | AI33: 2018-10-18 | AJ33: 10:35:00 | AK33: 2018-10-18 | AL33: 09:54:00 | AM33: 8943/16.10.2018 | AN33: NU | AQ33: Nu a fost afectat producator/consumator | AR33: - | AS33: - | AT33: Nu a fost afectat producator/consumator | AU33: - | AV33: - | AW33: Nu a fost afectat producator/consumator | AX33: - | AY33: -
A34: 19 | B34: X | C34: - | D34: Înlocuirea a două tronsoane de conductă pe 3” racord SRM Săcădate | E34: 144054 | F34: Săcădate | G34: Sibiu | H34: 452369.283 | I34: 473784.6748 | J34: 452369.283 | K34: 473784.6748 | L34: - | M34: - | N34: SM0796D0 | O34: Săcădate | P34: - | Q34: - | R34: - | S34: - | T34: SM-SD001 | U34: Engie, Electrica Furnizare, Premier Energy Trading, Premier Energy, Restart Energy, Wiee, E.On Energie, E.On Gaz Furnizare, Petrom Gas, CEZ Vânzare, Enel Energie, Gas&Power, Gaz Est, MET România, Nova Power, Energy Distribution, CPL Concordia, Hargaz, Prisma Serv, Conef Gaz, Distrigaz Vest, Next Energy, CIS Gaz, Aderro Gp, Tinmar, Enel Energie Muntenia, RWE Supply, Cyeb, Entrex, Petrom, Electric&Gas, Pado Group, Design Proiect, Hermes, Eva Energy, Gazmir, SST Grup, Tetarom, Energy Gas Provider, RWE Energie, Icco Energ, Delagaz, Mihoc Oil, Gaz Vest, Top Gas Network | V34: Delgaz Grid | W34: - | X34: 2018-10-19 | Y34: 09:03:00 | Z34: 2018-10-19 | AA34: 16:00:00 | AB34: Mediaș | AC34: Efectuată | AD34: - | AE34: 2018-10-19 | AF34: 09:03:00 | AG34: 2018-10-19 | AH34: 15:30:00 | AI34: 2018-10-19 | AJ34: 12:08:00 | AK34: 2018-10-19 | AL34: 09:48:00 | AM34: 8578/17.10.2018 | AN34: DA | AQ34: 0.75 | AR34: 1 | AS34: 1 | AT34: 3.083333333 | AU34: 45 | AV34: 45 | AW34: 6.45 | AX34: 0 | AY34: 0
A35: 20 | B35: X | C35: - | D35: Lucrări urgente în sistemul de distribuție - SRM Brașov IV | E35: 40198 | F35: Brașov | G35: Brașov | H35: 543024 | I35: 463918 | J35: 543024 | K35: 463918 | L35: - | M35: - | N35: SM1135D0 | O35: Brașov IV | P35: - | Q35: - | R35: - | S35: - | T35: SM-SD001 | U35: Engie, Electrica Furnizare, Premier Energy Trading, Premier Energy, Restart Energy, Wiee, E.On Energie, Petrom Gas, CEZ Vânzare, Enel Energie, Gas&Power, Gaz Est, MET România, Nova Power, Euro Seven Industry, Oligop, Energy Distribution, Electrocentrale Constanta, Hargaz, Conef Gaz, Megaconstruct, Distrigaz Vest, Electrocentrale Bucuresti, Next Energy, CIS Gaz, Transenergo, Aderro GP, Tinmar, Enel Muntenia, RWE Supply, Romgaz, Cyeb, Entrex, Petrom, Electric&Gas, Hermes, Eva Energy, Gas Energy Echoterm, Energy Gas Provider, RWE Energie, ICCO Energ, Delagaz, Top Gas Network, Covi Construct | V35: Distrigaz Sud Rețele | W35: - | X35: 2018-10-19 | Y35: 10:10:00 | Z35: 2018-10-19 | AA35: 14:00:00 | AB35: Brașov | AC35: Efectuată | AD35: - | AE35: 2018-10-19 | AF35: 10:10:00 | AG35: 2018-10-19 | AH35: 13:00:00 | AI35: 2018-10-19 | AJ35: 12:12:00 | AK35: 2018-10-19 | AL35: 10:56:00 | AM35: - | AN35: NU | AQ35: =IF(B35="X",IF(AN35="","Afectat sau NU?",IF(AN35="DA",IF(((AK35+AL35)-(AE35+AF35))*24<-720,"Neinformat",((AK35+AL35)-(AE35+AF35))*24),"Nu a fost afectat producator/consumator")),"") -> Nu a fost afectat producator/consumator | AR35: =IF(B35="X",IF(AN35="DA",IF(AQ35<6,LEN(TRIM(V35))-LEN(SUBSTITUTE(V35,CHAR(44),""))+1,0),"-"),"") -> - | AS35: =IF(B35="X",IF(AN35="DA",LEN(TRIM(V35))-LEN(SUBSTITUTE(V35,CHAR(44),""))+1,"-"),"") -> - | AT35: =IF(B35="X",IF(AN35="","Afectat sau NU?",IF(AN35="DA",IF(((AI35+AJ35)-(AE35+AF35))*24<-720,"Neinformat",((AI35+AJ35)-(AE35+AF35))*24),"Nu a fost afectat producator/consumator")),"") -> Nu a fost afectat producator/consumator | AU35: =IF(B35="X",IF(AN35="DA",IF(AT35<6,LEN(TRIM(U35))-LEN(SUBSTITUTE(U35,CHAR(44),""))+1,0),"-"),"") -> - | AV35: =IF(B35="X",IF(AN35="DA",LEN(TRIM(U35))-LEN(SUBSTITUTE(U35,CHAR(44),""))+1,"-"),"") -> - | AW35: =IF(B35="X",IF(AN35="","Afectat sau NU?",IF(AN35="DA",((AG35+AH35)-(AE35+AF35))*24,"Nu a fost afectat producator/consumator")),"") -> Nu a fost afectat producator/consumator | AX35: =IF(B35="X",IF(AN35="DA",IF(AW35>24,IF(AZ35="NU",0,LEN(TRIM(V35))-LEN(SUBSTITUTE(V35,CHAR(44),""))+1),0),"-"),"") -> - | AY35: =IF(B35="X",IF(AN35="DA",IF(AW35>24,LEN(TRIM(V35))-LEN(SUBSTITUTE(V35,CHAR(44),""))+1,0),"-"),"") -> -
A36: 21 | B36: X | C36: - | D36: Punerea în siguranță a conductei 10” racord alimentare SRM Breaza | E36: 131121 | F36: Breaza de Sus | G36: Prahova | H36: 551059 | I36: 410660 | J36: 551059 | K36: 410660 | L36: - | M36: - | N36: SM0085D1 | O36: Breaza PH | P36: - | Q36: - | R36: - | S36: - | T36: SM-SD001 | U36: Engie, Electrica Furnizare, Premier Energy Trading, Premier Energy, Restart Energy, Wiee, E.On Energie, Petrom Gas, CEZ Vânzare, Enel Energie, Gas&Power, Gaz Est, MET România, Nova Power, Euro Seven Industry, Oligop, Energy Distribution, Electrocentrale Constanta, Hargaz, Conef Gaz, Megaconstruct, Distrigaz Vest, Electrocentrale Bucuresti, Next Energy, CIS Gaz, Transenergo, Aderro GP, Tinmar, Enel Muntenia, RWE Supply, Romgaz, Cyeb, Entrex, Petrom, Electric&Gas, Hermes, Eva Energy, Gas Energy Echoterm, Energy Gas Provider, RWE Energie, ICCO Energ, Delagaz, Top Gas Network, Covi Construct | V36: Distrigaz Sud Rețele | W36: - | X36: 2018-10-24 | Y36: 08:15:00 | Z36: 2018-10-24 | AA36: 16:00:00 | AB36: București | AC36: Efectuată | AD36: - | AE36: 2018-10-24 | AF36: 08:15:00 | AG36: 2018-10-24 | AH36: 15:55:00 | AI36: 2018-10-24 | AJ36: 09:12:00 | AK36: 2018-10-24 | AL36: 08:23:00 | AM36: 6883/22.10.2018 | AN36: DA | AO36: Notificări telefonice către UR, conform mail din 22.01.2019 de la dl. Bunea către dl. Cosma | AQ36: 0.1333333334 | AR36: 1 | AS36: 1 | AT36: 0.95 | AU36: 44 | AV36: 44 | AW36: 7.666666667 | AX36: 0 | AY36: 0
A37: 22 | B37: X | C37: - | D37: Punerea în siguranță a conductei 10” racord alimentare SRM Breaza | E37: 131121 | F37: Breaza | G37: Prahova | H37: 551059 | I37: 410660 | J37: 551059 | K37: 410660 | L37: - | M37: - | N37: SM0085D2 | O37: Hidrojet Breaza | P37: - | Q37: - | R37: - | S37: - | T37: SM-CF001 | U37: Engie | V37: SC Hidrojet SA | W37: - | X37: 2018-10-24 | Y37: 08:16:00 | Z37: 2018-10-24 | AA37: 16:00:00 | AB37: București | AC37: Efectuată | AD37: - | AE37: 2018-10-24 | AF37: 08:16:00 | AG37: 2018-10-24 | AH37: 15:55:00 | AI37: 2018-10-24 | AJ37: 09:08:00 | AK37: 2018-10-24 | AL37: 08:27:00 | AM37: 6883/22.10.2018 | AN37: DA | AQ37: 0.1833333332 | AR37: 1 | AS37: 1 | AT37: 0.8666666667 | AU37: 1 | AV37: 1 | AW37: 7.65 | AX37: 0 | AY37: 0
A38: 23 | B38: X | C38: - | D38: Montare îmbinare elecroizolantă pe racord SRM Bârghiș | E38: 144232 | F38: Bârghiș | G38: Sibiu | H38: 464305.68 | I38: 499196.58 | J38: 464305.68 | K38: 499196.58 | L38: - | M38: - | N38: SM0787D0 | O38: Bârghiș | P38: - | Q38: - | R38: - | S38: - | T38: SM-SD001 | U38: Engie, Electrica Furnizare, Premier Energy Trading, Premier Energy, Restart Energy, Wiee, E.On Energie, E.On Gaz Furnizare, Petrom Gas, CEZ Vânzare, Enel Energie, Gas&Power, Gaz Est, MET România, Nova Power, Energy Distribution, CPL Concordia, Hargaz, Prisma Serv, Conef Gaz, Distrigaz Vest, Next Energy, CIS Gaz, Aderro Gp, Tinmar, Enel Energie Muntenia, RWE Supply, Cyeb, Entrex, Petrom, Electric&Gas, Pado Group, Design Proiect, Hermes, Eva Energy, Gazmir, SST Grup, Tetarom, Energy Gas Provider, RWE Energie, Icco Energ, Delagaz, Mihoc Oil, Gaz Vest, Top Gas Network | V38: Delgaz Grid | W38: - | X38: 2018-10-25 | Y38: 10:00:00 | Z38: 2018-10-25 | AA38: 14:00:00 | AB38: Mediaș | AC38: Efectuată | AD38: - | AE38: 2018-10-25 | AF38: 10:00:00 | AG38: 2018-10-25 | AH38: 14:00:00 | AI38: 2018-10-25 | AJ38: 13:08:00 | AK38: 2018-10-25 | AL38: 12:58:00 | AM38: 8665/19.10.2018 | AN38: DA | AQ38: 2.966666667 | AR38: 1 | AS38: 1 | AT38: 3.133333333 | AU38: 45 | AV38: 45 | AW38: 4 | AX38: 0 | AY38: 0
A39: 24 | B39: X | C39: - | D39: Înlocuire SRM Alum Menziken cu capacitatea de 1000 mc/h cu SRM de capacitate 2000 mc/h | E39: 138084 | F39: Medieșu Aurit | G39: Satu Mare | H39: 359455.9744 | I39: 698833.3869 | J39: 359455.9744 | K39: 698833.3869 | L39: - | M39: - | N39: SM1189D0 | O39: SC Alu Menziken Medieșu Aurit | P39: - | Q39: - | R39: - | S39: - | T39: SM-CF001 | U39: Tinmar | V39: SC Alu Menziken SRL | W39: - | X39: 2018-10-26 | Y39: 14:30:00 | Z39: 2018-10-26 | AA39: 16:00:00 | AB39: Cluj | AC39: Efectuată | AD39: - | AE39: 2018-10-26 | AF39: 14:30:00 | AG39: 2018-10-26 | AH39: 18:35:00 | AI39: 2018-10-26 | AJ39: 15:20:00 | AK39: 2018-10-26 | AL39: 15:03:00 | AM39: 12016/25.10.2018 | AN39: DA | AQ39: 0.55 | AR39: 1 | AS39: 1 | AT39: 0.8333333334 | AU39: 1 | AV39: 1 | AW39: 4.083333333 | AX39: 0 | AY39: 0
A40: 25 | B40: X | C40: - | D40: Lucrări de mentenanță pe 10” Calacea - Mașloc, zona Calacea | E40: 158653 | F40: Cărani | G40: Timiș | H40: 196499.87 | I40: 499887.93 | J40: 196499.87 | K40: 499887.93 | L40: - | M40: - | N40: - | O40: - | P40: - | Q40: - | R40: PM0079 | S40: Cărani | T40: PM-PP001 | U40: Amromco, Petrom | V40: Amromco, Petrom | W40: - | X40: 2018-10-31 | Y40: 07:20:00 | Z40: 2018-10-31 | AA40: 12:00:00 | AB40: Arad | AC40: Efectuată | AD40: - | AE40: 2018-10-31 | AF40: 07:20:00 | AG40: 2018-10-31 | AH40: 16:45:00 | AI40: 2018-10-31 | AJ40: 07:38:00 | AK40: 2018-10-31 | AL40: 07:28:00 | AM40: 9419/29.10.2018 | AN40: DA | AQ40: 0.1333333334 | AR40: 2 | AS40: 2 | AT40: 0.3000000001 | AU40: 2 | AV40: 2 | AW40: 9.416666667 | AX40: 0 | AY40: 0
A41: 26 | B41: X | C41: - | D41: Avarie prin perforare pe 16” Bărbuncești - Albești, amonte de robinetul RV121 | E41: 49661 | F41: Bărbuncești | G41: Buzău | H41: 625768.2 | I41: 414382.55 | J41: 625768.2 | K41: 414382.55 | L41: - | M41: - | N41: - | O41: - | P41: - | Q41: - | R41: PM0032 | S41: Bărbuncești | T41: PM-PP001 | U41: Petrom | V41: Petrom | W41: - | X41: 2018-11-01 | Y41: 16:20:00 | Z41: 2018-11-02 | AA41: 19:00:00 | AB41: Brăila | AC41: Efectuată | AD41: - | AE41: 2018-11-01 | AF41: 16:20:00 | AG41: 2018-11-02 | AH41: 04:30:00 | AI41: 2018-11-01 | AJ41: 22:00:00 | AK41: 2018-11-01 | AL41: 17:13:00 | AM41: 8694/01.11.2018 | AN41: DA | AQ41: 0.8833333334 | AR41: 1 | AS41: 1 | AT41: 5.666666667 | AU41: 1 | AV41: 1 | AW41: 12.16666667 | AX41: 0 | AY41: 0
A42: 27 | B42: X | C42: - | D42: Avarie prin perforare pe conducta Dn 500 Recaș - Timișoara I, Fir III | E42: 158314 | F42: Recaș | G42: Timiș | H42: 228618.48 | I42: 484544.56 | J42: 228618.48 | K42: 484544.56 | L42: - | M42: - | N42: SM0332D0 | O42: Recaș | P42: - | Q42: - | R42: - | S42: - | T42: SM-SD001 | U42: Engie, Restart Energy, E.On Energie, Petrom Gas, CEZ Vânzare, Enel Energie, Gaz Est, MET România, Energy Distribution, Gaz Vest, Distrigaz Vest, Tinmar, Electric&Gas, Energy Gas Provider, RWE Energie, GAS&Power, Premier Energy, Enel Energie Muntenia | V42: Gaz Vest | W42: - | X42: 2018-11-06 | Y42: 15:30:00 | Z42: 2018-11-06 | AA42: 21:00:00 | AB42: Arad | AC42: Efectuată | AD42: - | AE42: 2018-11-06 | AF42: 17:30:00 | AG42: 2018-11-07 | AH42: 10:55:00 | AI42: 2018-11-06 | AJ42: 18:08:00 | AK42: 2018-11-06 | AL42: 15:24:00 | AM42: 9812/06.11.2018 | AN42: DA | AQ42: =IF(B42="X",IF(AN42="","Afectat sau NU?",IF(AN42="DA",IF(((AK42+AL42)-(AE42+AF42))*24<-720,"Neinformat",((AK42+AL42)-(AE42+AF42))*24),"Nu a fost afectat producator/consumator")),"") -> -2.1 | AR42: =IF(B42="X",IF(AN42="DA",IF(AQ42<6,LEN(TRIM(V42))-LEN(SUBSTITUTE(V42,CHAR(44),""))+1,0),"-"),"") -> 1 | AS42: =IF(B42="X",IF(AN42="DA",LEN(TRIM(V42))-LEN(SUBSTITUTE(V42,CHAR(44),""))+1,"-"),"") -> 1 | AT42: =IF(B42="X",IF(AN42="","Afectat sau NU?",IF(AN42="DA",IF(((AI42+AJ42)-(AE42+AF42))*24<-720,"Neinformat",((AI42+AJ42)-(AE42+AF42))*24),"Nu a fost afectat producator/consumator")),"") -> 0.6333333335 | AU42: =IF(B42="X",IF(AN42="DA",IF(AT42<6,LEN(TRIM(U42))-LEN(SUBSTITUTE(U42,CHAR(44),""))+1,0),"-"),"") -> 18 | AV42: =IF(B42="X",IF(AN42="DA",LEN(TRIM(U42))-LEN(SUBSTITUTE(U42,CHAR(44),""))+1,"-"),"") -> 18 | AW42: =IF(B42="X",IF(AN42="","Afectat sau NU?",IF(AN42="DA",((AG42+AH42)-(AE42+AF42))*24,"Nu a fost afectat producator/consumator")),"") -> 17.41666667 | AX42: =IF(B42="X",IF(AN42="DA",IF(AW42>24,IF(AZ42="NU",0,LEN(TRIM(V42))-LEN(SUBSTITUTE(V42,CHAR(44),""))+1),0),"-"),"") -> 0 | AY42: =IF(B42="X",IF(AN42="DA",IF(AW42>24,LEN(TRIM(V42))-LEN(SUBSTITUTE(V42,CHAR(44),""))+1,0),"-"),"") -> 0
A43: 28 | B43: X | C43: - | D43: Avarie prin perforare pe conducta Dn 500 Recaș - Timișoara I, Fir III | E43: 158314 | F43: Izvin | G43: Timiș | H43: 224757.12 | I43: 484415.43 | J43: 224757.12 | K43: 484415.43 | L43: - | M43: - | N43: SM0331D0 | O43: Izvin | P43: - | Q43: - | R43: - | S43: - | T43: SM-SD001 | U43: Engie, Restart Energy, E.On Energie, Petrom Gas, CEZ Vânzare, Enel Energie, Gaz Est, MET România, Energy Distribution, Gaz Vest, Distrigaz Vest, Tinmar, Electric&Gas, Energy Gas Provider, RWE Energie, GAS&Power, Premier Energy, Enel Energie Muntenia | V43: Gaz Vest | W43: - | X43: 2018-11-06 | Y43: 15:30:00 | Z43: 2018-11-06 | AA43: 21:00:00 | AB43: Arad | AC43: Efectuată | AD43: - | AE43: 2018-11-06 | AF43: 17:30:00 | AG43: 2018-11-07 | AH43: 09:20:00 | AI43: 2018-11-06 | AJ43: 18:08:00 | AK43: 2018-11-06 | AL43: 15:24:00 | AM43: 9812/06.11.2018 | AN43: DA | AQ43: -2.1 | AR43: 1 | AS43: 1 | AT43: 0.6333333335 | AU43: 18 | AV43: 18 | AW43: 15.83333333 | AX43: 0 | AY43: 0
A44: 29 | B44: X | C44: - | D44: Cuplare instalație tehnologică nouă la SRM Zagna Vădeni | E44: 44391 | F44: Vădeni | G44: Brăila | H44: 728793.89 | I44: 433063.82 | J44: 728793.89 | K44: 433063.82 | L44: - | M44: - | N44: SM0532D0 | O44: Zagna Vădeni | P44: - | Q44: - | R44: - | S44: - | T44: SM-SD001 | U44: Engie, Electrica Furnizare, Premier Energy Trading, Premier Energy, Restart Energy, WIEE, E.On Energie, Petrom Gas, CEZ Vânzare, Enel Energie, Gas&Power, Gaz Est, MET România, Nova Power, Euro Seven Industry, Oligop, Energy Distribution, Electrocentrale Constanța, Hargaz, Conef Gaz, Megaconstruct, Distrigaz Vest, Electrocentrale București, Next Energy, CIS Gaz, Transenergo, Aderro GP, Tinmar, Enel Energie Muntenia, RWE Supply, Romgaz, Cyeb, Entrex, Petrom, Electric&Gas, Hermes, Eva Energy, Gas Energy Echoterm, Energy Gas Provider, RWE Energie, ICCO Energ, Delagaz, Top Gas Network, Covi Construct | V44: Distrigaz Sud Rețele | W44: - | X44: 2018-11-07 | Y44: 08:10:00 | Z44: 2018-11-07 | AA44: 18:00:00 | AB44: Brăila | AC44: Efectuată | AD44: - | AE44: 2018-11-07 | AF44: 08:10:00 | AG44: 2018-11-07 | AH44: 16:40:00 | AI44: 2018-11-07 | AJ44: 08:50:00 | AK44: 2018-11-07 | AL44: 08:24:00 | AM44: 8780/05.11.2018 | AN44: DA | AQ44: 0.2333333332 | AR44: 1 | AS44: 1 | AT44: 0.6666666666 | AU44: 44 | AV44: 44 | AW44: 8.5 | AX44: 0 | AY44: 0
A45: 30 | B45: X | C45: - | D45: Montare interconectare între conductele de transport gaze 24” Corunca - Coroi Fir I și Fir II | E45: 117925 | F45: Corunca | G45: Mureș | H45: 470081.6 | I45: 557211.68 | J45: 470081.6 | K45: 557211.68 | L45: - | M45: - | N45: - | O45: - | P45: - | Q45: - | R45: PM0126 | S45: Corunca P10 | T45: PM-PP001 | U45: Romgaz | V45: Romgaz | W45: - | X45: 2018-11-19 | Y45: 09:40:00 | Z45: 2018-11-19 | AA45: 18:00:00 | AB45: Mediaș | AC45: Efectuată | AD45: - | AE45: 2018-11-19 | AF45: 09:40:00 | AG45: 2018-11-19 | AH45: 19:00:00 | AI45: 2018-11-19 | AJ45: 11:03:00 | AK45: 2018-11-19 | AL45: 10:43:00 | AM45: 9462/15.11.2018 | AN45: DA | AQ45: 1.05 | AR45: 1 | AS45: 1 | AT45: 1.383333333 | AU45: 1 | AV45: 1 | AW45: 9.333333333 | AX45: 0 | AY45: 0
A46: 31 | B46: X | C46: - | D46: Refulare apă de condens din conducta 8" racord alimentare SRM Uriu | E46: 35269 | F46: Uriu | G46: Bistrița - Năsăud | H46: 429098.23 | I46: 633695.49 | J46: 429098.23 | K46: 633695.49 | L46: - | M46: - | N46: SM1214D0 | O46: Uriu | P46: - | Q46: - | R46: - | S46: - | T46: SM-SD001 | U46: Engie, Electrica Furnizare, Premier Energy Trading, Restart Energy, E.On Energie, E.On Gaz Furnizare, Petrom Gas, CEZ Vânzare, Enel Energie, Gas&Power, Gaz Est, MET România, Nova Power, CPL Concordia, Tinmar, Enel Energie Muntenia, Electric&Gas, Energy Gas Provider, RWE Energie, Premier Energy, Aderro GP, Eva Energy | V46: CPL Concordia Filiala Cluj România | W46: - | X46: 2018-11-21 | Y46: 12:15:00 | Z46: 2018-11-21 | AA46: 14:30:00 | AB46: Cluj | AC46: Efectuată | AD46: - | AE46: 2018-11-21 | AF46: 12:15:00 | AG46: 2018-11-21 | AH46: 12:53:00 | AI46: 2018-11-21 | AJ46: 13:29:00 | AK46: 2018-11-21 | AL46: 12:35:00 | AM46: 12953/20.11.2018 | AN46: NU | AQ46: Nu a fost afectat producator/consumator | AR46: - | AS46: - | AT46: Nu a fost afectat producator/consumator | AU46: - | AV46: - | AW46: Nu a fost afectat producator/consumator | AX46: - | AY46: -
A47: 32 | B47: X | C47: - | D47: Montare robinetul sferic pe conducta 20” Inel Ploiești, tronson Blejoi - Teleajen | E47: 130543 | F47: Ploiești | G47: Prahova | H47: 385348.28 | I47: 581447 | J47: 385348.28 | K47: 581447 | L47: - | M47: - | N47: SM0130D1 | O47: SC Vega Ploiești | P47: - | Q47: - | R47: - | S47: - | T47: SM-CF001 | U47: Petrom Gas | V47: SC Rompetrol Vega Ploiești | W47: - | X47: 2018-11-20 | Y47: 12:10:00 | Z47: 2018-11-22 | AA47: 18:00:00 | AB47: București | AC47: Efectuată | AD47: - | AE47: 2018-11-20 | AF47: 12:10:00 | AG47: 2018-11-22 | AH47: 17:00:00 | AI47: 2018-11-20 | AJ47: 12:48:00 | AK47: 2018-11-20 | AL47: 12:39:00 | AM47: 7585/16.11.2018 | AN47: DA | AQ47: 0.4833333333 | AR47: 1 | AS47: 1 | AT47: 0.6333333333 | AU47: 1 | AV47: 1 | AW47: 52.83333333 | AX47: 1 | AY47: 1 | AZ47: DA
A48: 33 | B48: X | C48: - | D48: Înlocuirea contorului cu turbină în cadrul SRM Recaș | E48: 158323 | F48: Recaș | G48: Timiș | H48: 230258 | I48: 487626 | J48: 230258 | K48: 487626 | L48: - | M48: - | N48: SM0332D0 | O48: Recaș | P48: - | Q48: - | R48: - | S48: - | T48: SM-SD001 | U48: Engie, Restart Energy, E.On Energie, Petrom Gas, CEZ Vânzare, Enel Energie, Gaz Est, Met România, Energy Distribution, Gaz Vest, Distrigaz Vest, Tinmar, Electric&Gas, Energy Gas Provider, RWE Energie, Gas&Power, Premier Energy, Enel Energie Muntenia | V48: Gaz Vest | W48: - | X48: 2018-11-28 | Y48: 10:58:00 | Z48: 2018-11-28 | AA48: 12:00:00 | AB48: Arad | AC48: Efectuată | AD48: - | AE48: 2018-11-28 | AF48: 10:58:00 | AG48: 2018-11-28 | AH48: 11:20:00 | AI48: 2018-11-28 | AJ48: 11:34:00 | AK48: 2018-11-28 | AL48: 11:00:00 | AM48: fără FM | AN48: DA | AQ48: =IF(B48="X",IF(AN48="","Afectat sau NU?",IF(AN48="DA",IF(((AK48+AL48)-(AE48+AF48))*24<-720,"Neinformat",((AK48+AL48)-(AE48+AF48))*24),"Nu a fost afectat producator/consumator")),"") -> 0.03333333344 | AR48: =IF(B48="X",IF(AN48="DA",IF(AQ48<6,LEN(TRIM(V48))-LEN(SUBSTITUTE(V48,CHAR(44),""))+1,0),"-"),"") -> 1 | AS48: =IF(B48="X",IF(AN48="DA",LEN(TRIM(V48))-LEN(SUBSTITUTE(V48,CHAR(44),""))+1,"-"),"") -> 1 | AT48: =IF(B48="X",IF(AN48="","Afectat sau NU?",IF(AN48="DA",IF(((AI48+AJ48)-(AE48+AF48))*24<-720,"Neinformat",((AI48+AJ48)-(AE48+AF48))*24),"Nu a fost afectat producator/consumator")),"") -> 0.6 | AU48: =IF(B48="X",IF(AN48="DA",IF(AT48<6,LEN(TRIM(U48))-LEN(SUBSTITUTE(U48,CHAR(44),""))+1,0),"-"),"") -> 18 | AV48: =IF(B48="X",IF(AN48="DA",LEN(TRIM(U48))-LEN(SUBSTITUTE(U48,CHAR(44),""))+1,"-"),"") -> 18 | AW48: =IF(B48="X",IF(AN48="","Afectat sau NU?",IF(AN48="DA",((AG48+AH48)-(AE48+AF48))*24,"Nu a fost afectat producator/consumator")),"") -> 0.3666666666 | AX48: =IF(B48="X",IF(AN48="DA",IF(AW48>24,IF(AZ48="NU",0,LEN(TRIM(V48))-LEN(SUBSTITUTE(V48,CHAR(44),""))+1),0),"-"),"") -> 0 | AY48: =IF(B48="X",IF(AN48="DA",IF(AW48>24,LEN(TRIM(V48))-LEN(SUBSTITUTE(V48,CHAR(44),""))+1,0),"-"),"") -> 0
A49: 34 | B49: X | C49: - | D49: Întrerupere accidentală SRM Certeze | E49: 137407 | F49: Certeze | G49: Satu Mare | H49: 385764.32 | I49: 714173.72 | J49: 385764.32 | K49: 714173.72 | L49: - | M49: - | N49: SM1215D0 | O49: Certeze | P49: - | Q49: - | R49: - | S49: - | T49: SM-SD001 | U49: CEZ Vânzare, Distrigaz Vest, Engie, E.On Energie, Electric&Gas, Energy Distribution, Enel Energie, Enel Energie Muntenia, Gas&Power, Gaz Est, Gaz Vest, Met România, Premier Energy, Petrom Gas, Energy Gas Provider, Restart Energy, RWE Energie, Tinmar | V49: Gaz Vest | W49: - | X49: 2018-11-30 | Y49: 09:25:00 | Z49: 2018-11-30 | AA49: 14:00:00 | AB49: Cluj | AC49: Efectuată | AD49: - | AE49: 2018-11-30 | AF49: 09:25:00 | AG49: 2018-11-30 | AH49: 12:10:00 | AI49: 2018-11-30 | AJ49: 10:26:00 | AK49: 2018-11-30 | AL49: 10:16:00 | AM49: fără FM | AN49: DA | AQ49: 0.85 | AR49: 1 | AS49: 1 | AT49: 1.016666667 | AU49: 18 | AV49: 18 | AW49: 2.75 | AX49: 0 | AY49: 0
A50: 35 | B50: X | C50: - | D50: Întrerupere accidentală SRM Cristur HD | E50: 86687 | F50: Cristur | G50: Hunedoara | H50: 340555 | I50: 484359 | J50: 340555 | K50: 484359 | L50: - | M50: - | N50: SM1184D0 | O50: Cristur HD | P50: - | Q50: - | R50: - | S50: - | T50: SM-SD001 | U50: Engie, Electrica Furnizare, Premier Energy Trading, Premier Energy, Restart Energy, Wiee România, E.On Energie, E.On Gaz Furnizare, Petrom Gas, Cez Vânzare, Enel Energie, Gas&Power, Gaz Est, Met România Energy, Nova Power, Energy Distribution, CPL Concordia, Hargaz, Prisma Serv, Conef Gaz, Distrigaz Vest, Next Energy Distribution, Cis Gaz, Aderro GP, Tinmar, Enel Muntenia, RWE Supply, Cyeb, Entrex, Petrom, Electric&Gas, Pado Group, Design Proiect, Hermes, Eva Energy, Gazmir, SST Grup, Tetarom, Energy Gas Provider, RWE Energie, ICCO Energ, Delagaz, Mihoc Oil, Gaz Vest, Renovatio | V50: Delgaz Grid | W50: - | X50: 2018-12-10 | Y50: 09:45:00 | Z50: 2018-12-10 | AA50: 11:00:00 | AB50: Arad | AC50: Efectuată | AD50: - | AE50: 2018-12-10 | AF50: 09:45:00 | AG50: 2018-12-10 | AH50: 10:15:00 | AI50: 2018-12-10 | AJ50: 10:51:00 | AK50: 2018-12-10 | AL50: 10:38:00 | AM50: fără FM | AN50: DA | AQ50: =IF(B50="X",IF(AN50="","Afectat sau NU?",IF(AN50="DA",IF(((AK50+AL50)-(AE50+AF50))*24<-720,"Neinformat",((AK50+AL50)-(AE50+AF50))*24),"Nu a fost afectat producator/consumator")),"") -> 0.8833333334 | AR50: =IF(B50="X",IF(AN50="DA",IF(AQ50<6,LEN(TRIM(V50))-LEN(SUBSTITUTE(V50,CHAR(44),""))+1,0),"-"),"") -> 1 | AS50: =IF(B50="X",IF(AN50="DA",LEN(TRIM(V50))-LEN(SUBSTITUTE(V50,CHAR(44),""))+1,"-"),"") -> 1 | AT50: =IF(B50="X",IF(AN50="","Afectat sau NU?",IF(AN50="DA",IF(((AI50+AJ50)-(AE50+AF50))*24<-720,"Neinformat",((AI50+AJ50)-(AE50+AF50))*24),"Nu a fost afectat producator/consumator")),"") -> 1.1 | AU50: =IF(B50="X",IF(AN50="DA",IF(AT50<6,LEN(TRIM(U50))-LEN(SUBSTITUTE(U50,CHAR(44),""))+1,0),"-"),"") -> 45 | AV50: =IF(B50="X",IF(AN50="DA",LEN(TRIM(U50))-LEN(SUBSTITUTE(U50,CHAR(44),""))+1,"-"),"") -> 45 | AW50: =IF(B50="X",IF(AN50="","Afectat sau NU?",IF(AN50="DA",((AG50+AH50)-(AE50+AF50))*24,"Nu a fost afectat producator/consumator")),"") -> 0.5000000001 | AX50: =IF(B50="X",IF(AN50="DA",IF(AW50>24,IF(AZ50="NU",0,LEN(TRIM(V50))-LEN(SUBSTITUTE(V50,CHAR(44),""))+1),0),"-"),"") -> 0 | AY50: =IF(B50="X",IF(AN50="DA",IF(AW50>24,LEN(TRIM(V50))-LEN(SUBSTITUTE(V50,CHAR(44),""))+1,0),"-"),"") -> 0
A51: 36 | B51: X | C51: - | D51: înlocuire contor cu pistoane cu un contor cu turbină la SRM Rucăr | E51: 42236 | F51: Rucăr | G51: Brașov | H51: 514200.71 | I51: 431834.29 | J51: 514200.71 | K51: 431834.29 | L51: - | M51: - | N51: SM0938D0 | O51: Rucăr | P51: - | Q51: - | R51: - | S51: - | T51: SM-SD001 | U51: Engie, Electrica Furnizare, Premier Energy Trading, Premier Energy, Restart Energy, Wiee România, E.On Energie, Petrom Gas, Cez Vânzare, Enel Energie, Gas&Power, Gaz Est, Met România, Nova Power, Euro Seven Industry, Oligopol, Energy Distribution, Electrocentrale Constanța, Hargaz, Conef Gaz, Megaconstruct, Distrigaz Vest, Electrocentrale București, Next Energy, Ciz Gaz, Transenergo, Aderro, Tinmar, Enel Muntenia, RWE Supply, Romgaz, Cyeb, Entrex, Petrom, Electric&Gas, Hermes, Eva Energy, Gas Energy Echotern, Energy Gas Provider, RWE Energie, Icco Energ, Delagaz, Top Gas Network, Covi Construct, Renovatio | V51: Distrigaz Sud Rețele | W51: - | X51: 2018-12-20 | Y51: 09:00:00 | Z51: 2018-12-20 | AA51: 12:00:00 | AB51: Brașov | AC51: Efectuată | AD51: - | AE51: 2018-12-20 | AF51: 09:00:00 | AG51: 2018-12-20 | AH51: 11:05:00 | AI51: 2018-12-20 | AJ51: 09:41:00 | AK51: 2018-12-20 | AL51: 09:33:00 | AM51: 5052/19.12.2018 | AN51: DA | AQ51: =IF(B51="X",IF(AN51="","Afectat sau NU?",IF(AN51="DA",IF(((AK51+AL51)-(AE51+AF51))*24<-720,"Neinformat",((AK51+AL51)-(AE51+AF51))*24),"Nu a fost afectat producator/consumator")),"") -> 0.55 | AR51: =IF(B51="X",IF(AN51="DA",IF(AQ51<6,LEN(TRIM(V51))-LEN(SUBSTITUTE(V51,CHAR(44),""))+1,0),"-"),"") -> 1 | AS51: =IF(B51="X",IF(AN51="DA",LEN(TRIM(V51))-LEN(SUBSTITUTE(V51,CHAR(44),""))+1,"-"),"") -> 1 | AT51: =IF(B51="X",IF(AN51="","Afectat sau NU?",IF(AN51="DA",IF(((AI51+AJ51)-(AE51+AF51))*24<-720,"Neinformat",((AI51+AJ51)-(AE51+AF51))*24),"Nu a fost afectat producator/consumator")),"") -> 0.6833333333 | AU51: =IF(B51="X",IF(AN51="DA",IF(AT51<6,LEN(TRIM(U51))-LEN(SUBSTITUTE(U51,CHAR(44),""))+1,0),"-"),"") -> 45 | AV51: =IF(B51="X",IF(AN51="DA",LEN(TRIM(U51))-LEN(SUBSTITUTE(U51,CHAR(44),""))+1,"-"),"") -> 45 | AW51: =IF(B51="X",IF(AN51="","Afectat sau NU?",IF(AN51="DA",((AG51+AH51)-(AE51+AF51))*24,"Nu a fost afectat producator/consumator")),"") -> 2.083333333 | AX51: =IF(B51="X",IF(AN51="DA",IF(AW51>24,IF(AZ51="NU",0,LEN(TRIM(V51))-LEN(SUBSTITUTE(V51,CHAR(44),""))+1),0),"-"),"") -> 0 | AY51: =IF(B51="X",IF(AN51="DA",IF(AW51>24,LEN(TRIM(V51))-LEN(SUBSTITUTE(V51,CHAR(44),""))+1,0),"-"),"") -> 0
A52: 37 | B52: X | C52: - | D52: Întrerupere accidentală SRM Călărași CJ | E52: 56425 | F52: Călărași | G52: Cluj | H52: 415665.63 | I52: 553271.43 | J52: 415665.63 | K52: 553271.43 | L52: - | M52: - | N52: SM0608D0 | O52: Călărași CJ | P52: - | Q52: - | R52: - | S52: - | T52: SM-SD001 | U52: Engie, Electrica Furnizare, Premier Energy Trading, Premier Energy, Restart Energy, WIEE, E.On Energie, E.On Gaz Furnizare, Petrom Gas, CEZ Vânzare, Enel Energie, Gas&Power, Gaz Est, MET România, Nova Power, Energy Distribution, CPL Concordia, Hargaz, Prisma Serv, Conef Gaz, Distrigaz Vest, Next Energy, CIS Gaz, Aderro GP, Tinmar, Enel Muntenia, RWE Supply, Cyeb, Entrex, Petrom, Electric&Gas, Pado Group, Design Proiect, Hermes, Eva Energy, Gazmir, SST Grup, Tetarom, Energy Gas Provider, RWE Energie, Icco Energ, Delagaz, Mihoc Oil, Gaz Vest, Renovatio | V52: Delgaz Grid | W52: - | X52: 2018-12-25 | Y52: 10:30:00 | Z52: 2018-12-25 | AA52: 13:00:00 | AB52: Cluj | AC52: Efectuată | AD52: - | AE52: 2018-12-25 | AF52: 10:30:00 | AG52: 2018-12-25 | AH52: 13:00:00 | AI52: 2018-12-25 | AJ52: 11:03:00 | AK52: 2018-12-25 | AL52: 10:49:00 | AM52: - | AN52: DA | AQ52: 0.3166666667 | AR52: 1 | AS52: 1 | AT52: 0.55 | AU52: 45 | AV52: 45 | AW52: 2.5 | AX52: 0 | AY52: 0
A53: 38 | B53: - | C53: X | D53: Curățire înainte de inspecție 28” Nădlac - Arad, 63km | E53: 9627 | F53: Nădlac | G53: Arad | H53: 171367.09 | I53: 530638.06 | J53: 171367.09 | K53: 530638.06 | L53: SM1154D0 | M53: Nădlac | N53: - | O53: - | P53: - | Q53: - | R53: - | S53: - | T53: SM-SD001 | U53: Cez Vânzare, CPL Concordia, E.on Energie, E.on Gaz Furnizare, Enel Energie, Energy Distribution, Engie, Gazmir, Met Romania, Premier Energy, RWE Supply, Aderro GP, Cis Gaz, Conef Gaz, Cyeb, Design Proiect, Distrigaz Vest, Electric&Gas, Enel Muntenia, Gas&Power, Energy Gas Provider, Entrex, Eva Energy, Gaz Est, Hargaz, Hermes Energy, Next Energy, Nova Power, Petrom Gas, Petrom, Pado Group, Premier Energy, Prisma Serv, Renovatio, Restart Energy, RWE, SST Grup, Tetarom, Wiee, Tinmar | V53: Delgaz Grid | W53: aprilie - septembrie | X53: 2019-04-16 | Y53: 10:00:00 | Z53: 2019-04-16 | AA53: 17:00:00 | AB53: Arad | AC53: Efectuată (NU a mai fost necesară limitarea) | AM53: 3446/11.04.2019 | AN53: NU | AQ53: =IF(B53="X",IF(AN53="","Afectat sau NU?",IF(AN53="DA",IF(((AK53+AL53)-(AE53+AF53))*24<-720,"Neinformat",((AK53+AL53)-(AE53+AF53))*24),"Nu a fost afectat producator/consumator")),"") ->  | AR53: =IF(B53="X",IF(AN53="DA",IF(AQ53<6,LEN(TRIM(V53))-LEN(SUBSTITUTE(V53,CHAR(44),""))+1,0),"-"),"") ->  | AS53: =IF(B53="X",IF(AN53="DA",LEN(TRIM(V53))-LEN(SUBSTITUTE(V53,CHAR(44),""))+1,"-"),"") ->  | AT53: =IF(B53="X",IF(AN53="","Afectat sau NU?",IF(AN53="DA",IF(((AI53+AJ53)-(AE53+AF53))*24<-720,"Neinformat",((AI53+AJ53)-(AE53+AF53))*24),"Nu a fost afectat producator/consumator")),"") ->  | AU53: =IF(B53="X",IF(AN53="DA",IF(AT53<6,LEN(TRIM(U53))-LEN(SUBSTITUTE(U53,CHAR(44),""))+1,0),"-"),"") ->  | AV53: =IF(B53="X",IF(AN53="DA",LEN(TRIM(U53))-LEN(SUBSTITUTE(U53,CHAR(44),""))+1,"-"),"") ->  | AW53: =IF(B53="X",IF(AN53="","Afectat sau NU?",IF(AN53="DA",((AG53+AH53)-(AE53+AF53))*24,"Nu a fost afectat producator/consumator")),"") ->  | AX53: =IF(B53="X",IF(AN53="DA",IF(AW53>24,IF(AZ53="NU",0,LEN(TRIM(V53))-LEN(SUBSTITUTE(V53,CHAR(44),""))+1),0),"-"),"") ->  | AY53: =IF(B53="X",IF(AN53="DA",IF(AW53>24,LEN(TRIM(V53))-LEN(SUBSTITUTE(V53,CHAR(44),""))+1,0),"-"),"") ->  | BE53: Nu a fost afectat producator/consumator | BF53: =IF(C53="X",IF(AN53="DA",IF(AND(BE53>=5,AK53<>""),LEN(TRIM(V53))-LEN(SUBSTITUTE(V53,CHAR(44),""))+1,0),"-"),"") -> - | BG53: =IF(C53="X",IF(AN53="DA",LEN(TRIM(V53))-LEN(SUBSTITUTE(V53,CHAR(44),""))+1,"-"),"") -> - | BH53: Nu a fost afectat producator/consumator | BI53: =IF(C53="X",IF(AN53="DA",IF(AND(BH53>=5,AI53<>""),LEN(TRIM(U53))-LEN(SUBSTITUTE(U53,CHAR(44),""))+1,0),"-"),"") -> - | BJ53: =IF(C53="X",IF(AN53="DA",LEN(TRIM(U53))-LEN(SUBSTITUTE(U53,CHAR(44),""))+1,"-"),"") -> - | BK53: =IF(C53="X",IF(AN53="","Afectat sau NU?",IF(AN53="DA",((AG53+AH53)-(Z53+AA53))*24,"Nu a fost afectat producator/consumator")),"") -> Nu a fost afectat producator/consumator | BL53: =IF(C53="X",IF(AN53<>"DA","-",IF(AND(AN53="DA",BK53<=0),LEN(TRIM(V53))-LEN(SUBSTITUTE(V53,CHAR(44),""))+1+LEN(TRIM(U53))-LEN(SUBSTITUTE(U53,CHAR(44),""))+1,0)),"") -> - | BM53: =IF(C53="X",IF(AN53="DA",LEN(TRIM(V53))-LEN(SUBSTITUTE(V53,CHAR(44),""))+1+LEN(TRIM(U53))-LEN(SUBSTITUTE(U53,CHAR(44),""))+1,"-"),"") -> -
X54: 2019-04-17 | Y54: 10:00:00 | Z54: 2019-04-17 | AA54: 17:00:00 | AC54: Efectuată (NU a mai fost necesară limitarea) | AM54: 3446/11.04.2020 | AN54: NU | AQ54: =IF(B54="X",IF(AN54="","Afectat sau NU?",IF(AN54="DA",IF(((AK54+AL54)-(AE54+AF54))*24<-720,"Neinformat",((AK54+AL54)-(AE54+AF54))*24),"Nu a fost afectat producator/consumator")),"") ->  | AR54: =IF(B54="X",IF(AN54="DA",IF(AQ54<6,LEN(TRIM(V54))-LEN(SUBSTITUTE(V54,CHAR(44),""))+1,0),"-"),"") ->  | AS54: =IF(B54="X",IF(AN54="DA",LEN(TRIM(V54))-LEN(SUBSTITUTE(V54,CHAR(44),""))+1,"-"),"") ->  | AT54: =IF(B54="X",IF(AN54="","Afectat sau NU?",IF(AN54="DA",IF(((AI54+AJ54)-(AE54+AF54))*24<-720,"Neinformat",((AI54+AJ54)-(AE54+AF54))*24),"Nu a fost afectat producator/consumator")),"") ->  | AU54: =IF(B54="X",IF(AN54="DA",IF(AT54<6,LEN(TRIM(U54))-LEN(SUBSTITUTE(U54,CHAR(44),""))+1,0),"-"),"") ->  | AV54: =IF(B54="X",IF(AN54="DA",LEN(TRIM(U54))-LEN(SUBSTITUTE(U54,CHAR(44),""))+1,"-"),"") ->  | AW54: =IF(B54="X",IF(AN54="","Afectat sau NU?",IF(AN54="DA",((AG54+AH54)-(AE54+AF54))*24,"Nu a fost afectat producator/consumator")),"") ->  | AX54: =IF(B54="X",IF(AN54="DA",IF(AW54>24,IF(AZ54="NU",0,LEN(TRIM(V54))-LEN(SUBSTITUTE(V54,CHAR(44),""))+1),0),"-"),"") ->  | AY54: =IF(B54="X",IF(AN54="DA",IF(AW54>24,LEN(TRIM(V54))-LEN(SUBSTITUTE(V54,CHAR(44),""))+1,0),"-"),"") ->  | BE54: =IF(C53="X",IF(AN54="","Afectat sau NU?",IF(AN54="DA",IF(AK54="","Neinformat",NETWORKDAYS(AK54+AL54,AE54+AF54,$BR$2:$BR$14)-2),"Nu a fost afectat producator/consumator")),"") -> Nu a fost afectat producator/consumator | BF54: =IF(C53="X",IF(AN54="DA",IF(AND(BE54>=5,AK54<>""),LEN(TRIM(V54))-LEN(SUBSTITUTE(V54,CHAR(44),""))+1,0),"-"),"") -> - | BG54: =IF(C53="X",IF(AN54="DA",LEN(TRIM(V54))-LEN(SUBSTITUTE(V54,CHAR(44),""))+1,"-"),"") -> - | BH54: =IF(C53="X",IF(AN54="","Afectat sau NU?",IF(AN54="DA",IF(AI54="","Neinformat",NETWORKDAYS(AI54+AJ54,AE54+AF54,$BR$2:$BR$14)-2),"Nu a fost afectat producator/consumator")),"") -> Nu a fost afectat producator/consumator | BI54: =IF(C53="X",IF(AN54="DA",IF(AND(BH54>=5,AI54<>""),LEN(TRIM(U54))-LEN(SUBSTITUTE(U54,CHAR(44),""))+1,0),"-"),"") -> - | BJ54: =IF(C53="X",IF(AN54="DA",LEN(TRIM(U54))-LEN(SUBSTITUTE(U54,CHAR(44),""))+1,"-"),"") -> - | BK54: =IF(C53="X",IF(AN54="","Afectat sau NU?",IF(AN54="DA",((AG54+AH54)-(Z54+AA54))*24,"Nu a fost afectat producator/consumator")),"") -> Nu a fost afectat producator/consumator | BL54: =IF(C53="X",IF(AN54<>"DA","-",IF(AND(AN54="DA",BK54<=0),LEN(TRIM(V54))-LEN(SUBSTITUTE(V54,CHAR(44),""))+1+LEN(TRIM(U54))-LEN(SUBSTITUTE(U54,CHAR(44),""))+1,0)),"") -> - | BM54: =IF(C53="X",IF(AN54="DA",LEN(TRIM(V54))-LEN(SUBSTITUTE(V54,CHAR(44),""))+1+LEN(TRIM(U54))-LEN(SUBSTITUTE(U54,CHAR(44),""))+1,"-"),"") -> -
A55: =A53+1 -> 39 | B55: - | C55: X | D55: Curățire înainte de inspecție 28” Nădlac - Arad, 63km | E55: 11584 | F55: Pecica | G55: Arad | H55: 198438.37 | I55: 527271.7 | J55: 198438.37 | K55: 527271.7 | L55: SM1033D0 | M55: Pecica | N55: - | O55: - | P55: - | Q55: - | R55: - | S55: - | T55: SM-SD001 | U55: Cez Vânzare, CPL Concordia, E.on Energie, E.on Gaz Furnizare, Enel Energie, Energy Distribution, Engie, Gazmir, Met Romania, Premier Energy, RWE Supply, Aderro GP, Cis Gaz, Conef Gaz, Cyeb, Design Proiect, Distrigaz Vest, Electric&Gas, Enel Muntenia, Gas&Power, Energy Gas Provider, Entrex, Eva Energy, Gaz Est, Hargaz, Hermes Energy, Next Energy, Nova Power, Petrom Gas, Petrom, Pado Group, Premier Energy, Prisma Serv, Renovatio, Restart Energy, RWE, SST Grup, Tetarom, Wiee, Tinmar | V55: Delgaz Grid | W55: aprilie - septembrie | X55: 2019-04-16 | Y55: 10:00:00 | Z55: 2019-04-16 | AA55: 17:00:00 | AB55: Arad | AC55: Efectuată (NU a mai fost necesară limitarea) | AM55: 3446/11.04.2021 | AN55: NU | BE55: Nu a fost afectat producator/consumator | BF55: =IF(C55="X",IF(AN55="DA",IF(AND(BE55>=5,AK55<>""),LEN(TRIM(V55))-LEN(SUBSTITUTE(V55,CHAR(44),""))+1,0),"-"),"") -> - | BG55: - | BH55: Nu a fost afectat producator/consumator | BI55: - | BJ55: - | BK55: Nu a fost afectat producator/consumator | BL55: - | BM55: -
X56: 2019-04-17 | Y56: 10:00:00 | Z56: 2019-04-17 | AA56: 17:00:00 | AC56: Efectuată (NU a mai fost necesară limitarea) | AM56: 3446/11.04.2022 | AN56: NU | AQ56: =IF(B56="X",IF(AN56="","Afectat sau NU?",IF(AN56="DA",IF(((AK56+AL56)-(AE56+AF56))*24<-720,"Neinformat",((AK56+AL56)-(AE56+AF56))*24),"Nu a fost afectat producator/consumator")),"") ->  | AR56: =IF(B56="X",IF(AN56="DA",IF(AQ56<6,LEN(TRIM(V56))-LEN(SUBSTITUTE(V56,CHAR(44),""))+1,0),"-"),"") ->  | AS56: =IF(B56="X",IF(AN56="DA",LEN(TRIM(V56))-LEN(SUBSTITUTE(V56,CHAR(44),""))+1,"-"),"") ->  | AT56: =IF(B56="X",IF(AN56="","Afectat sau NU?",IF(AN56="DA",IF(((AI56+AJ56)-(AE56+AF56))*24<-720,"Neinformat",((AI56+AJ56)-(AE56+AF56))*24),"Nu a fost afectat producator/consumator")),"") ->  | AU56: =IF(B56="X",IF(AN56="DA",IF(AT56<6,LEN(TRIM(U56))-LEN(SUBSTITUTE(U56,CHAR(44),""))+1,0),"-"),"") ->  | AV56: =IF(B56="X",IF(AN56="DA",LEN(TRIM(U56))-LEN(SUBSTITUTE(U56,CHAR(44),""))+1,"-"),"") ->  | AW56: =IF(B56="X",IF(AN56="","Afectat sau NU?",IF(AN56="DA",((AG56+AH56)-(AE56+AF56))*24,"Nu a fost afectat producator/consumator")),"") ->  | AX56: =IF(B56="X",IF(AN56="DA",IF(AW56>24,IF(AZ56="NU",0,LEN(TRIM(V56))-LEN(SUBSTITUTE(V56,CHAR(44),""))+1),0),"-"),"") ->  | AY56: =IF(B56="X",IF(AN56="DA",IF(AW56>24,LEN(TRIM(V56))-LEN(SUBSTITUTE(V56,CHAR(44),""))+1,0),"-"),"") ->  | BE56: =IF(C55="X",IF(AN56="","Afectat sau NU?",IF(AN56="DA",IF(AK56="","Neinformat",NETWORKDAYS(AK56+AL56,AE56+AF56,$BR$2:$BR$14)-2),"Nu a fost afectat producator/consumator")),"") -> Nu a fost afectat producator/consumator | BF56: =IF(C55="X",IF(AN56="DA",IF(AND(BE56>=5,AK56<>""),LEN(TRIM(V56))-LEN(SUBSTITUTE(V56,CHAR(44),""))+1,0),"-"),"") -> - | BG56: =IF(C55="X",IF(AN56="DA",LEN(TRIM(V56))-LEN(SUBSTITUTE(V56,CHAR(44),""))+1,"-"),"") -> - | BH56: =IF(C55="X",IF(AN56="","Afectat sau NU?",IF(AN56="DA",IF(AI56="","Neinformat",NETWORKDAYS(AI56+AJ56,AE56+AF56,$BR$2:$BR$14)-2),"Nu a fost afectat producator/consumator")),"") -> Nu a fost afectat producator/consumator | BI56: =IF(C55="X",IF(AN56="DA",IF(AND(BH56>=5,AI56<>""),LEN(TRIM(U56))-LEN(SUBSTITUTE(U56,CHAR(44),""))+1,0),"-"),"") -> - | BJ56: =IF(C55="X",IF(AN56="DA",LEN(TRIM(U56))-LEN(SUBSTITUTE(U56,CHAR(44),""))+1,"-"),"") -> - | BK56: =IF(C55="X",IF(AN56="","Afectat sau NU?",IF(AN56="DA",((AG56+AH56)-(Z56+AA56))*24,"Nu a fost afectat producator/consumator")),"") -> Nu a fost afectat producator/consumator | BL56: =IF(C55="X",IF(AN56<>"DA","-",IF(AND(AN56="DA",BK56<=0),LEN(TRIM(V56))-LEN(SUBSTITUTE(V56,CHAR(44),""))+1+LEN(TRIM(U56))-LEN(SUBSTITUTE(U56,CHAR(44),""))+1,0)),"") -> - | BM56: =IF(C55="X",IF(AN56="DA",LEN(TRIM(V56))-LEN(SUBSTITUTE(V56,CHAR(44),""))+1+LEN(TRIM(U56))-LEN(SUBSTITUTE(U56,CHAR(44),""))+1,"-"),"") -> -
A57: =A55+1 -> 40 | B57: - | C57: X | D57: Curățire înainte de inspecție 20” Recaș - Timișoara, 25km | E57: 158314 | F57: Recaș | G57: Timiș | H57: 228618.53 | I57: 484544.85 | J57: 228618.53 | K57: 484544.85 | L57: SM0332D0 | M57: Recaș | N57: - | O57: - | P57: - | Q57: - | R57: - | S57: - | T57: SM-SD001 | U57: Cez Vânzare, E.on Energie, Enel Energie, Energy Distribution, Engie, Met Romania, Distrigaz Vest, Electric&Gas, Energy Gas Provider, Gaz Est, Gaz Vest, Petrom Gas, Renovatio, Restart Energy, Tinmar, Nova Power, Premier Energy, Electrica Furnizare, Enel Muntenia | V57: Gaz Vest | W57: aprilie - septembrie iunie - septembrie | AB57: Arad | AC57: reducere pe perioada trecerii PIG-ului / întrerupere în caz de blocare PIG | AD57: Reprogramare facută de Serviciul Diagnosticare Conducte | BE57: Afectat sau NU? | BF57: - | BG57: - | BH57: Afectat sau NU? | BI57: - | BJ57: - | BK57: Afectat sau NU? | BL57: - | BM57: -
A58: =A57+1 -> 41 | B58: - | C58: X | D58: Curățire înainte de inspecție 20” Recaș - Timișoara, 25km | E58: 158314 | F58: Izvin | G58: Timiș | H58: 224757.02 | I58: 484415.36 | J58: 224757.02 | K58: 484415.36 | L58: SM0331D0 | M58: Izvin | N58: - | O58: - | P58: - | Q58: - | R58: - | S58: - | T58: SM-SD001 | U58: Cez Vânzare, E.on Energie, Enel Energie, Energy Distribution, Engie, Met Romania, Distrigaz Vest, Electric&Gas, Energy Gas Provider, Gaz Est, Gaz Vest, Petrom Gas, Renovatio, Restart Energy, Tinmar, Nova Power, Premier Energy, Electrica Furnizare, Enel Muntenia | V58: Gaz Vest | W58: aprilie - septembrie iunie - septembrie | AB58: Arad | AC58: reducere pe perioada trecerii PIG-ului / întrerupere în caz de blocare PIG | AD58: Reprogramare facută de Serviciul Diagnosticare Conducte | AQ58: =IF(B58="X",IF(AN58="","Afectat sau NU?",IF(AN58="DA",IF(((AK58+AL58)-(AE58+AF58))*24<-720,"Neinformat",((AK58+AL58)-(AE58+AF58))*24),"Nu a fost afectat producator/consumator")),"") ->  | AR58: =IF(B58="X",IF(AN58="DA",IF(AQ58<6,LEN(TRIM(V58))-LEN(SUBSTITUTE(V58,CHAR(44),""))+1,0),"-"),"") ->  | AS58: =IF(B58="X",IF(AN58="DA",LEN(TRIM(V58))-LEN(SUBSTITUTE(V58,CHAR(44),""))+1,"-"),"") ->  | AT58: =IF(B58="X",IF(AN58="","Afectat sau NU?",IF(AN58="DA",IF(((AI58+AJ58)-(AE58+AF58))*24<-720,"Neinformat",((AI58+AJ58)-(AE58+AF58))*24),"Nu a fost afectat producator/consumator")),"") ->  | AU58: =IF(B58="X",IF(AN58="DA",IF(AT58<6,LEN(TRIM(U58))-LEN(SUBSTITUTE(U58,CHAR(44),""))+1,0),"-"),"") ->  | AV58: =IF(B58="X",IF(AN58="DA",LEN(TRIM(U58))-LEN(SUBSTITUTE(U58,CHAR(44),""))+1,"-"),"") ->  | AW58: =IF(B58="X",IF(AN58="","Afectat sau NU?",IF(AN58="DA",((AG58+AH58)-(AE58+AF58))*24,"Nu a fost afectat producator/consumator")),"") ->  | AX58: =IF(B58="X",IF(AN58="DA",IF(AW58>24,IF(AZ58="NU",0,LEN(TRIM(V58))-LEN(SUBSTITUTE(V58,CHAR(44),""))+1),0),"-"),"") ->  | AY58: =IF(B58="X",IF(AN58="DA",IF(AW58>24,LEN(TRIM(V58))-LEN(SUBSTITUTE(V58,CHAR(44),""))+1,0),"-"),"") ->  | BE58: Afectat sau NU? | BF58: - | BG58: - | BH58: Afectat sau NU? | BI58: - | BJ58: - | BK58: Afectat sau NU? | BL58: - | BM58: -
A59: 42 | B59: - | C59: X | D59: Curățire înainte de inspecție 20” Recaș - Timișoara, 25km | E59: 158396 | F59: Remetea Mare | G59: Timiș | H59: 219348.36 | I59: 482046.97 | J59: 219348.36 | K59: 482046.97 | L59: SM0333D0 | M59: Remetea Mare | N59: - | O59: - | P59: - | Q59: - | R59: - | S59: - | T59: SM-SD001 | U59: Cez Vânzare, E.on Energie, Enel Energie, Energy Distribution, Engie, Met Romania, Distrigaz Vest, Electric&Gas, Energy Gas Provider, Gaz Est, Gaz Vest, Petrom Gas, Renovatio, Restart Energy, Tinmar, Nova Power, Premier Energy, Electrica Furnizare, Enel Muntenia | V59: Gaz Vest | W59: aprilie - septembrie iunie - septembrie | AB59: Arad | AC59: reducere pe perioada trecerii PIG-ului / întrerupere în caz de blocare PIG | AD59: Reprogramare facută de Serviciul Diagnosticare Conducte | BE59: Afectat sau NU? | BF59: - | BG59: - | BH59: Afectat sau NU? | BI59: - | BJ59: - | BK59: Afectat sau NU? | BL59: - | BM59: -
A60: 43 | B60: - | C60: X | D60: Curățire înainte de inspecție 20” Recaș - Timișoara, 25km | E60: 159516 | F60: Bucovăț | G60: Timiș | H60: 219649.42 | I60: 478583.35 | J60: 219649.42 | K60: 478583.35 | L60: SM1174D0 | M60: Bucovăț | N60: - | O60: - | P60: - | Q60: - | R60: - | S60: - | T60: SM-SD001 | U60: Cez Vânzare, E.on Energie, Enel Energie, Energy Distribution, Engie, Met Romania, Distrigaz Vest, Electric&Gas, Energy Gas Provider, Gaz Est, Gaz Vest, Petrom Gas, Renovatio, Restart Energy, Tinmar, Nova Power, Premier Energy, Electrica Furnizare, Enel Muntenia | V60: Gaz Vest | W60: aprilie - septembrie iunie - septembrie | AB60: Arad | AC60: reducere pe perioada trecerii PIG-ului / întrerupere în caz de blocare PIG | AD60: Reprogramare facută de Serviciul Diagnosticare Conducte | BE60: Afectat sau NU? | BF60: - | BG60: - | BH60: Afectat sau NU? | BI60: - | BJ60: - | BK60: Afectat sau NU? | BL60: - | BM60: -
A61: 44 | B61: - | C61: X | D61: Curățire înainte de inspecție 20” Recaș - Timișoara, 25km | E61: 157861 | F61: Moșnița Veche | G61: Timiș | H61: 214047.26 | I61: 479657.04 | J61: 214047.26 | K61: 479657.04 | L61: SM1261D0 | M61: Moșnița Nouă | N61: - | O61: - | P61: - | Q61: - | R61: - | S61: - | T61: SM-SD001 | U61: Cez Vânzare, E.on Energie, Electrica Furnizare, Enel Energie, Energy Distribution, Engie, Met Romania, Premier Energy, RWE Supply, Aderro GP, Cis Gaz, Conef Gaz, Cyeb, Distrigaz Vest, Electric&Gas, Enel Muntenia, Gas&Power, Energy Gas Provider, Entrex, Eva Energy, Gaz Est, Hargaz, Next Energy, Nova Power, Petrom Gas, Petrom, Premier Energy Trading, Renovatio, Restart Energy, Wiee, Tinmar, Oligopol, Euro Seven, Electrocentrale Constanța, Megaconstruct, Electrocentrale București, Transenergo, Romgaz, Echoterm, Monsson, Electric Planners | V61: Delgaz Grid | W61: aprilie - septembrie iunie - septembrie | AB61: Arad | AC61: reducere pe perioada trecerii PIG-ului / întrerupere în caz de blocare PIG | AD61: Reprogramare facută de Serviciul Diagnosticare Conducte | BE61: Afectat sau NU? | BF61: - | BG61: - | BH61: Afectat sau NU? | BI61: - | BJ61: - | BK61: Afectat sau NU? | BL61: - | BM61: -
A62: 45 | B62: - | C62: X | D62: Curățire înainte de inspecție 20” Hurezani - Drăgășani, 70km | E62: 80506 | F62: Hurezani | G62: Gorj | H62: 394216.24 | I62: 369063.53 | J62: 443476.28 | K62: 353552.9 | L62: - | M62: - | N62: - | O62: - | P62: PM0205 | Q62: Hurezani SU | R62: - | S62: - | T62: PM-PP001 | U62: Romgaz | V62: Romgaz | W62: martie - aprilie iunie - septembrie | AB62: Craiova | AC62: reducere pe perioada trecerii PIG-ului / întrerupere în caz de blocare PIG | AD62: Reprogramare facută de Serviciul Diagnosticare Conducte | BE62: Afectat sau NU? | BF62: - | BG62: - | BH62: Afectat sau NU? | BI62: - | BJ62: - | BK62: Afectat sau NU? | BL62: - | BM62: -
A63: 46 | B63: - | C63: X | D63: Curățire înainte de inspecție 20” Hurezani - Drăgășani, 70km | E63: 80515 | F63: Hurezani | G63: Gorj | H63: 394216.24 | I63: 369063.53 | J63: 443476.28 | K63: 353552.9 | L63: - | M63: - | N63: - | O63: - | P63: PM0062 | Q63: Hurezani Bulbuceni | R63: - | S63: - | T63: PM-PP001 | U63: Petrom | V63: Petrom | W63: martie - aprilie iunie - septembrie | AB63: Craiova | AC63: reducere pe perioada trecerii PIG-ului / întrerupere în caz de blocare PIG | AD63: Reprogramare facută de Serviciul Diagnosticare Conducte | BE63: Afectat sau NU? | BF63: - | BG63: - | BH63: Afectat sau NU? | BI63: - | BJ63: - | BK63: Afectat sau NU? | BL63: - | BM63: -
A64: 47 | B64: - | C64: X | D64: Curățire înainte de inspecție 20” Hurezani - Drăgășani, 70km | E64: 80757 | F64: Hurezani | G64: Gorj | H64: 394216.24 | I64: 369063.53 | J64: 443476.28 | K64: 353552.9 | L64: - | M64: - | N64: - | O64: - | P64: PM0253 | Q64: Hurezani Bustuchini | R64: - | S64: - | T64: PM-PP001 | U64: Petrom | V64: Petrom | W64: martie - aprilie iunie - septembrie | AB64: Craiova | AC64: reducere pe perioada trecerii PIG-ului / întrerupere în caz de blocare PIG | AD64: Reprogramare facută de Serviciul Diagnosticare Conducte | BE64: Afectat sau NU? | BF64: - | BG64: - | BH64: Afectat sau NU? | BI64: - | BJ64: - | BK64: Afectat sau NU? | BL64: - | BM64: -
A65: 48 | B65: - | C65: X | D65: Curățire înainte de inspecție 20” Hurezani - Drăgășani, 70km | E65: 172377 | F65: Popești | G65: Vâlcea | H65: 394216.24 | I65: 369063.53 | J65: 443476.28 | K65: 353552.9 | L65: - | M65: - | N65: - | O65: - | P65: PM0034 | Q65: Popești Lăpușata | R65: - | S65: - | T65: PM-PP001 | U65: Petrom | V65: Petrom | W65: martie - aprilie iunie - septembrie | AB65: Craiova | AC65: reducere pe perioada trecerii PIG-ului / întrerupere în caz de blocare PIG | AD65: Reprogramare facută de Serviciul Diagnosticare Conducte | BE65: Afectat sau NU? | BF65: - | BG65: - | BH65: Afectat sau NU? | BI65: - | BJ65: - | BK65: Afectat sau NU? | BL65: - | BM65: -
A66: 49 | B66: - | C66: X | D66: Curățire înainte de inspecție 20” Hurezani - Drăgășani, 70km | E66: 168434 | F66: Tătărani | G66: Vâlcea | H66: 394216.24 | I66: 369063.53 | J66: 443476.28 | K66: 353552.9 | L66: - | M66: - | N66: - | O66: - | P66: PM0068 | Q66: Tătărani | R66: - | S66: - | T66: PM-PP001 | U66: Petrom | V66: Petrom | W66: martie - aprilie iunie - septembrie | AB66: Craiova | AC66: reducere pe perioada trecerii PIG-ului / întrerupere în caz de blocare PIG | AD66: Reprogramare facută de Serviciul Diagnosticare Conducte | BE66: Afectat sau NU? | BF66: - | BG66: - | BH66: Afectat sau NU? | BI66: - | BJ66: - | BK66: Afectat sau NU? | BL66: - | BM66: -
A67: 50 | B67: - | C67: X | D67: Curățire înainte de inspecție 20” Hurezani - Drăgășani, 70km | E67: 170872 | F67: Pârâienii de Jos | G67: Vâlcea | H67: 394216.24 | I67: 369063.53 | J67: 443476.28 | K67: 353552.9 | L67: - | M67: - | N67: - | O67: - | P67: PM0259 | Q67: Pârâienii de Jos | R67: - | S67: - | T67: PM-PP001 | U67: Petrom | V67: Petrom | W67: martie - aprilie iunie - septembrie | AB67: Craiova | AC67: reducere pe perioada trecerii PIG-ului / întrerupere în caz de blocare PIG | AD67: Reprogramare facută de Serviciul Diagnosticare Conducte | BE67: Afectat sau NU? | BF67: - | BG67: - | BH67: Afectat sau NU? | BI67: - | BJ67: - | BK67: Afectat sau NU? | BL67: - | BM67: -
A68: 51 | B68: - | C68: X | D68: Curățire înainte de inspecție 20” Hurezani - Drăgășani, 70km | E68: 170346 | F68: Grădiștea | G68: Vâlcea | H68: 394216.24 | I68: 369063.53 | J68: 443476.28 | K68: 353552.9 | L68: - | M68: - | N68: - | O68: - | P68: PM0053 | Q68: Grădiștea | R68: - | S68: - | T68: PM-PP001 | U68: Romgaz, Petrom | V68: Romgaz, Petrom | W68: martie - aprilie iunie - septembrie | AB68: Craiova | AC68: reducere pe perioada trecerii PIG-ului / întrerupere în caz de blocare PIG | AD68: Reprogramare facută de Serviciul Diagnosticare Conducte | BE68: Afectat sau NU? | BF68: - | BG68: - | BH68: Afectat sau NU? | BI68: - | BJ68: - | BK68: Afectat sau NU? | BL68: - | BM68: -
A69: 52 | B69: - | C69: X | D69: Curățire înainte de inspecție 20” Hurezani - Drăgășani, 70km | E69: 82243 | F69: Stejari (Băcești) | G69: Gorj | H69: 394216.24 | I69: 369063.53 | J69: 443476.28 | K69: 353552.9 | L69: - | M69: - | N69: - | O69: - | P69: PM0206 | Q69: Piscu Stejari SU | R69: - | S69: - | T69: PM-PP001 | U69: Romgaz | V69: Romgaz | W69: martie - aprilie iunie - septembrie | AB69: Craiova | AC69: reducere pe perioada trecerii PIG-ului / întrerupere în caz de blocare PIG | AD69: Reprogramare facută de Serviciul Diagnosticare Conducte | BE69: Afectat sau NU? | BF69: - | BG69: - | BH69: Afectat sau NU? | BI69: - | BJ69: - | BK69: Afectat sau NU? | BL69: - | BM69: -
A70: 53 | B70: - | C70: X | D70: Curățire înainte de inspecție 20” Hurezani - Drăgășani, 70km | E70: 174290 | F70: Zătreni | G70: Vâlcea | H70: 394216.24 | I70: 369063.53 | J70: 443476.28 | K70: 353552.9 | L70: - | M70: - | N70: - | O70: - | P70: PM0270 | Q70: SU Zătreni | R70: - | S70: - | T70: PM-PP001 | U70: Romgaz, Amromco, Foraj Sonde | V70: Romgaz, Amromco, Foraj Sonde | W70: martie - aprilie iunie - septembrie | AB70: Craiova | AC70: reducere pe perioada trecerii PIG-ului / întrerupere în caz de blocare PIG | AD70: Reprogramare facută de Serviciul Diagnosticare Conducte | BE70: Afectat sau NU? | BF70: - | BG70: - | BH70: Afectat sau NU? | BI70: - | BJ70: - | BK70: Afectat sau NU? | BL70: - | BM70: -
A71: 54 | B71: - | C71: X | D71: Curățire înainte de inspecție 20” Hurezani - Drăgășani, 70km | E71: 174290 | F71: Zătreni | G71: Vâlcea | H71: 394216.24 | I71: 369063.53 | J71: 443476.28 | K71: 353552.9 | L71: - | M71: - | N71: - | O71: - | P71: PM0054 | Q71: Zătreni | R71: - | S71: - | T71: PM-PP001 | U71: Romgaz, Amromco | V71: Romgaz, Amromco | W71: martie - aprilie iunie - septembrie | AB71: Craiova | AC71: reducere pe perioada trecerii PIG-ului / întrerupere în caz de blocare PIG | AD71: Reprogramare facută de Serviciul Diagnosticare Conducte | BE71: Afectat sau NU? | BF71: - | BG71: - | BH71: Afectat sau NU? | BI71: - | BJ71: - | BK71: Afectat sau NU? | BL71: - | BM71: -
A72: 55 | B72: - | C72: X | D72: Curățire înainte de inspecție 20” Hurezani - Drăgășani, 70km | E72: 171209 | F72: Mamu (Creteni) | G72: Vâlcea | H72: 394216.24 | I72: 369063.53 | J72: 443476.28 | K72: 353552.9 | L72: - | M72: - | N72: - | O72: - | P72: PM0296 | Q72: Mamu (Crețeni) | R72: - | S72: - | T72: PM-PP001 | U72: Petrom | V72: Petrom | W72: martie - aprilie iunie - septembrie | AB72: Craiova | AC72: reducere pe perioada trecerii PIG-ului / întrerupere în caz de blocare PIG | AD72: Reprogramare facută de Serviciul Diagnosticare Conducte | BE72: Afectat sau NU? | BF72: - | BG72: - | BH72: Afectat sau NU? | BI72: - | BJ72: - | BK72: Afectat sau NU? | BL72: - | BM72: -
A73: 56 | B73: - | C73: X | D73: Curățire înainte de inspecție 20” Hurezani - Drăgășani, 70km | E73: 171218 | F73: Mădulari | G73: Vâlcea | H73: 394216.24 | I73: 369063.53 | J73: 443476.28 | K73: 353552.9 | L73: - | M73: - | N73: - | O73: - | P73: PM0191 | Q73: Mădulari | R73: - | S73: - | T73: PM-PP001 | U73: Amromco, Petrom | V73: Amromco, Petrom | W73: martie - aprilie iunie - septembrie | AB73: Craiova | AC73: reducere pe perioada trecerii PIG-ului / întrerupere în caz de blocare PIG | AD73: Reprogramare facută de Serviciul Diagnosticare Conducte | BE73: Afectat sau NU? | BF73: - | BG73: - | BH73: Afectat sau NU? | BI73: - | BJ73: - | BK73: Afectat sau NU? | BL73: - | BM73: -
A74: 57 | B74: - | C74: X | D74: Curățire înainte de inspecție 20” Hurezani - Sâmbotin, 68km | E74: 78828 | F74: Socu | G74: Gorj | H74: 394190.83 | I74: 369053.71 | J74: 368939.5 | K74: 406604.47 | L74: - | M74: - | N74: - | O74: - | P74: PM0065 | Q74: Socu | R74: - | S74: - | T74: PM-PP001 | U74: Amromco | V74: Amromco | W74: martie - aprilie iunie - septembrie | AB74: Craiova | AC74: reducere pe perioada trecerii PIG-ului / întrerupere în caz de blocare PIG | AD74: Reprogramare facută de Serviciul Diagnosticare Conducte | BE74: Afectat sau NU? | BF74: - | BG74: - | BH74: Afectat sau NU? | BI74: - | BJ74: - | BK74: Afectat sau NU? | BL74: - | BM74: -
A75: 58 | B75: - | C75: X | D75: Curățire înainte de inspecție 20” Hurezani - Sâmbotin, 68km | E75: 78828 | F75: Socu | G75: Gorj | H75: 394190.83 | I75: 369053.71 | J75: 368939.5 | K75: 406604.47 | L75: - | M75: - | N75: - | O75: - | P75: PM0289 | Q75: Socu II | R75: - | S75: - | T75: PM-PP001 | U75: Amromco | V75: Amromco | W75: martie - aprilie iunie - septembrie | AB75: Craiova | AC75: reducere pe perioada trecerii PIG-ului / întrerupere în caz de blocare PIG | AD75: Reprogramare facută de Serviciul Diagnosticare Conducte | BE75: Afectat sau NU? | BF75: - | BG75: - | BH75: Afectat sau NU? | BI75: - | BJ75: - | BK75: Afectat sau NU? | BL75: - | BM75: -
A76: 59 | B76: - | C76: X | D76: Curățire înainte de inspecție 20” Hurezani - Sâmbotin, 68km | E76: 78855 | F76: Petrești | G76: Gorj | H76: 394190.83 | I76: 369053.71 | J76: 368939.5 | K76: 406604.47 | L76: - | M76: - | N76: - | O76: - | P76: PM0223 | Q76: Petrești-Bărbătești | R76: - | S76: - | T76: PM-PP001 | U76: Petrom | V76: Petrom | W76: martie - aprilie iunie - septembrie | AB76: Craiova | AC76: reducere pe perioada trecerii PIG-ului / întrerupere în caz de blocare PIG | AD76: Reprogramare facută de Serviciul Diagnosticare Conducte | BE76: Afectat sau NU? | BF76: - | BG76: - | BH76: Afectat sau NU? | BI76: - | BJ76: - | BK76: Afectat sau NU? | BL76: - | BM76: -
A77: 60 | B77: - | C77: X | D77: Curățire înainte de inspecție 20” Hurezani - Sâmbotin, 68km | E77: 78463 | F77: Țicleni | G77: Gorj | H77: 394190.83 | I77: 369053.71 | J77: 368939.5 | K77: 406604.47 | L77: - | M77: - | N77: - | O77: - | P77: PM0272 | Q77: Dezbenzinare Țicleni | R77: - | S77: - | T77: PM-PP001 | U77: Petrom | V77: Petrom | W77: martie - aprilie iunie - septembrie | AB77: Craiova | AC77: reducere pe perioada trecerii PIG-ului / întrerupere în caz de blocare PIG | AD77: Reprogramare facută de Serviciul Diagnosticare Conducte | BE77: Afectat sau NU? | BF77: - | BG77: - | BH77: Afectat sau NU? | BI77: - | BJ77: - | BK77: Afectat sau NU? | BL77: - | BM77: -
A78: 61 | B78: - | C78: X | D78: Curățire înainte de inspecție 20” Hurezani - Sâmbotin, 68km | E78: 82555 | F78: Turburea | G78: Gorj | H78: 394190.83 | I78: 369053.71 | J78: 368939.5 | K78: 406604.47 | L78: - | M78: - | N78: - | O78: - | P78: PM0201 | Q78: Turburea C2 | R78: - | S78: - | T78: PM-PP001 | U78: Petrom | V78: Petrom | W78: martie - aprilie iunie - septembrie | AB78: Craiova | AC78: reducere pe perioada trecerii PIG-ului / întrerupere în caz de blocare PIG | AD78: Reprogramare facută de Serviciul Diagnosticare Conducte | BE78: Afectat sau NU? | BF78: - | BG78: - | BH78: Afectat sau NU? | BI78: - | BJ78: - | BK78: Afectat sau NU? | BL78: - | BM78: -
A79: 62 | B79: - | C79: X | D79: Curățire înainte de inspecție 20” Hurezani - Sâmbotin, 68km | E79: 71064 | F79: Brădești | G79: Dolj | H79: 394190.83 | I79: 369053.71 | J79: 368939.5 | K79: 406604.47 | L79: - | M79: - | N79: - | O79: - | P79: PM0277 | Q79: Brădești | R79: - | S79: - | T79: PM-PP001 | U79: Petrom | V79: Petrom | W79: martie - aprilie iunie - septembrie | AB79: Craiova | AC79: reducere pe perioada trecerii PIG-ului / întrerupere în caz de blocare PIG | AD79: Reprogramare facută de Serviciul Diagnosticare Conducte | BE79: Afectat sau NU? | BF79: - | BG79: - | BH79: Afectat sau NU? | BI79: - | BJ79: - | BK79: Afectat sau NU? | BL79: - | BM79: -
A80: 63 | B80: - | C80: X | D80: Curățire înainte de inspecție 20” Hurezani - Sâmbotin, 68km | E80: 81816 | F80: Bibești | G80: Gorj | H80: 394190.83 | I80: 369053.71 | J80: 368939.5 | K80: 406604.47 | L80: - | M80: - | N80: - | O80: - | P80: PM0196 | Q80: Bibești | R80: - | S80: - | T80: PM-PP001 | U80: Romgaz, Amromco | V80: Romgaz, Amromco | W80: martie - aprilie iunie - septembrie | AB80: Craiova | AC80: reducere pe perioada trecerii PIG-ului / întrerupere în caz de blocare PIG | AD80: Reprogramare facută de Serviciul Diagnosticare Conducte | BE80: Afectat sau NU? | BF80: - | BG80: - | BH80: Afectat sau NU? | BI80: - | BJ80: - | BK80: Afectat sau NU? | BL80: - | BM80: -
A81: 64 | B81: - | C81: X | D81: Curățire înainte de inspecție 20” Hurezani - Sâmbotin, 68km | E81: 80506 | F81: Hurezani | G81: Gorj | H81: 394190.83 | I81: 369053.71 | J81: 368939.5 | K81: 406604.47 | L81: - | M81: - | N81: - | O81: - | P81: PM0205 | Q81: Hurezani SU | R81: - | S81: - | T81: PM-PP001 | U81: Romgaz | V81: Romgaz | W81: martie - aprilie iunie - septembrie | AB81: Craiova | AC81: reducere pe perioada trecerii PIG-ului / întrerupere în caz de blocare PIG | AD81: Reprogramare facută de Serviciul Diagnosticare Conducte | BE81: Afectat sau NU? | BF81: - | BG81: - | BH81: Afectat sau NU? | BI81: - | BJ81: - | BK81: Afectat sau NU? | BL81: - | BM81: -
A82: 65 | B82: - | C82: X | D82: Curățire înainte de inspecție 20” Hurezani - Sâmbotin, 68km | E82: 78089 | F82: Turcinești | G82: Gorj | H82: 394190.83 | I82: 369053.71 | J82: 368939.5 | K82: 406604.47 | L82: - | M82: - | N82: SM0200D0 | O82: Turcinești | P82: - | Q82: - | R82: - | S82: - | T82: SM-SD001 | U82: Engie, Electrica Furnizare, Premier Energy Trading, Premier Energy, Restart Energy, Wiee România, E.On Energie, Petrom Gas, Cez Vânzare, Enel Energie, Gas&Power, Gaz Est, Met România, Nova Power, Euro Seven Industry, Oligopol, Energy Distribution, Electrocentrale Constanța, Hargaz, Conef Gaz, Megaconstruct, Distrigaz Vest, Electrocentrale București, Next Energy, Cis Gaz, Transenergo, Aderro, Tinmar, Enel Muntenia, RWE Supply, Romgaz, Cyeb, Entrex, Petrom, Electric&Gas, Eva Energy, Gas Energy Echoterm, Energy Gas Provider, Renovatio, Monsson | V82: Distrigaz Sud Rețele | W82: martie - aprilie iunie - septembrie | AB82: Craiova | AC82: întrerupere în caz de blocare PIG | AD82: Reprogramare facută de Serviciul Diagnosticare Conducte | BE82: =IF(C82="X",IF(AN82="","Afectat sau NU?",IF(AN82="DA",IF(AK82="","Neinformat",NETWORKDAYS(AK82+AL82,AE82+AF82,$BR$2:$BR$14)-2),"Nu a fost afectat producator/consumator")),"") -> Afectat sau NU? | BF82: - | BG82: - | BH82: =IF(C82="X",IF(AN82="","Afectat sau NU?",IF(AN82="DA",IF(AI82="","Neinformat",NETWORKDAYS(AI82+AJ82,AE82+AF82,$BR$2:$BR$14)-2),"Nu a fost afectat producator/consumator")),"") -> Afectat sau NU? | BI82: - | BJ82: - | BK82: Afectat sau NU? | BL82: - | BM82: -
A83: 66 | B83: - | C83: X | D83: Curățire înainte de inspecție 20” Hurezani - Sâmbotin, 68km | E83: 78089 | F83: Rugi | G83: Gorj | H83: 394190.83 | I83: 369053.71 | J83: 368939.5 | K83: 406604.47 | L83: - | M83: - | N83: SM0187D0 | O83: Rugi | P83: - | Q83: - | R83: - | S83: - | T83: SM-SD001 | U83: Engie, Electrica Furnizare, Premier Energy Trading, Premier Energy, Restart Energy, Wiee România, E.On Energie, Petrom Gas, Cez Vânzare, Enel Energie, Gas&Power, Gaz Est, Met România, Nova Power, Euro Seven Industry, Oligopol, Energy Distribution, Electrocentrale Constanța, Hargaz, Conef Gaz, Megaconstruct, Distrigaz Vest, Electrocentrale București, Next Energy, Cis Gaz, Transenergo, Aderro, Tinmar, Enel Muntenia, RWE Supply, Romgaz, Cyeb, Entrex, Petrom, Electric&Gas, Eva Energy, Gas Energy Echoterm, Energy Gas Provider, Renovatio, Monsson | V83: Distrigaz Sud Rețele | W83: martie - aprilie iunie - septembrie | AB83: Craiova | AC83: întrerupere în caz de blocare PIG | AD83: Reprogramare facută de Serviciul Diagnosticare Conducte | BE83: Afectat sau NU? | BF83: - | BG83: - | BH83: Afectat sau NU? | BI83: - | BJ83: - | BK83: Afectat sau NU? | BL83: - | BM83: -
A84: 67 | B84: - | C84: X | D84: Curățire înainte de inspecție 20” Hurezani - Sâmbotin, 68km | E84: 82136 | F84: Alexeni | G84: Gorj | H84: 394190.83 | I84: 369053.71 | J84: 368939.5 | K84: 406604.47 | L84: - | M84: - | N84: SM0188D0 | O84: Alexeni | P84: - | Q84: - | R84: - | S84: - | T84: SM-SD001 | U84: Engie, Electrica Furnizare, Premier Energy Trading, Premier Energy, Restart Energy, Wiee România, E.On Energie, Petrom Gas, Cez Vânzare, Enel Energie, Gas&Power, Gaz Est, Met România, Nova Power, Euro Seven Industry, Oligopol, Energy Distribution, Electrocentrale Constanța, Hargaz, Conef Gaz, Megaconstruct, Distrigaz Vest, Electrocentrale București, Next Energy, Cis Gaz, Transenergo, Aderro, Tinmar, Enel Muntenia, RWE Supply, Romgaz, Cyeb, Entrex, Petrom, Electric&Gas, Eva Energy, Gas Energy Echoterm, Energy Gas Provider, Renovatio, Monsson | V84: Distrigaz Sud Rețele | W84: martie - aprilie iunie - septembrie | AB84: Craiova | AC84: întrerupere în caz de blocare PIG | AD84: Reprogramare facută de Serviciul Diagnosticare Conducte | BE84: Afectat sau NU? | BF84: - | BG84: - | BH84: Afectat sau NU? | BI84: - | BJ84: - | BK84: Afectat sau NU? | BL84: - | BM84: -
A85: 68 | B85: - | C85: X | D85: Curățire înainte de inspecție 20” Hurezani - Sâmbotin, 68km | E85: 82136 | F85: Pârvulești | G85: Gorj | H85: 394190.83 | I85: 369053.71 | J85: 368939.5 | K85: 406604.47 | L85: - | M85: - | N85: SM0189D0 | O85: Pârvulești | P85: - | Q85: - | R85: - | S85: - | T85: SM-SD001 | U85: Engie, Electrica Furnizare, Premier Energy Trading, Premier Energy, Restart Energy, Wiee România, E.On Energie, Petrom Gas, Cez Vânzare, Enel Energie, Gas&Power, Gaz Est, Met România, Nova Power, Euro Seven Industry, Oligopol, Energy Distribution, Electrocentrale Constanța, Hargaz, Conef Gaz, Megaconstruct, Distrigaz Vest, Electrocentrale București, Next Energy, Cis Gaz, Transenergo, Aderro, Tinmar, Enel Muntenia, RWE Supply, Romgaz, Cyeb, Entrex, Petrom, Electric&Gas, Eva Energy, Gas Energy Echoterm, Energy Gas Provider, Renovatio, Monsson | V85: Distrigaz Sud Rețele | W85: martie - aprilie iunie - septembrie | AB85: Craiova | AC85: întrerupere în caz de blocare PIG | AD85: Reprogramare facută de Serviciul Diagnosticare Conducte | BE85: Afectat sau NU? | BF85: - | BG85: - | BH85: Afectat sau NU? | BI85: - | BJ85: - | BK85: Afectat sau NU? | BL85: - | BM85: -
A86: 69 | B86: - | C86: X | D86: Curățire înainte de inspecție 20” Hurezani - Sâmbotin, 68km | E86: 81576 | F86: Runcu | G86: Gorj | H86: 394190.83 | I86: 369053.71 | J86: 368939.5 | K86: 406604.47 | L86: - | M86: - | N86: SM0186D0 | O86: Spitalul de PNF Tudor Vladimirescu Runcu | P86: - | Q86: - | R86: - | S86: - | T86: SM-CF001 | U86: Engie | V86: Spitalul de PNF Tudor Vladimirescu Runcu | W86: martie - aprilie iunie - septembrie | AB86: Craiova | AC86: întrerupere în caz de blocare PIG | AD86: Reprogramare facută de Serviciul Diagnosticare Conducte | BE86: Afectat sau NU? | BF86: - | BG86: - | BH86: Afectat sau NU? | BI86: - | BJ86: - | BK86: Afectat sau NU? | BL86: - | BM86: -
A87: 70 | B87: - | C87: X | D87: Curățire înainte de inspecție 20” Hurezani - Sâmbotin, 68km | E87: 77812 | F87: Tg. Jiu | G87: Gorj | H87: 394190.83 | I87: 369053.71 | J87: 368939.5 | K87: 406604.47 | L87: - | M87: - | N87: SM0195D0 | O87: SC Piroux România Târgu Jiu | P87: - | Q87: - | R87: - | S87: - | T87: SM-CF001 | U87: Cez Vânzare | V87: SC Piroux Industrie România SRL | W87: martie - aprilie iunie - septembrie | AB87: Craiova | AC87: întrerupere în caz de blocare PIG | AD87: Reprogramare facută de Serviciul Diagnosticare Conducte | BE87: Afectat sau NU? | BF87: - | BG87: - | BH87: Afectat sau NU? | BI87: - | BJ87: - | BK87: Afectat sau NU? | BL87: - | BM87: -
A88: 71 | B88: - | C88: X | D88: Curățire după reparație 32” Onești - Cosmești, 66km | E88: 174922 | F88: Mărășești | G88: Vrancea | H88: 671646.37 | I88: 489878.34 | J88: 671646.37 | K88: 489878.34 | L88: SM0516D2 | M88: Mărășești | N88: - | O88: - | P88: - | Q88: - | R88: - | S88: - | T88: SM-SD001 | U88: Engie, Electrica Furnizare, Premier Energy Trading, Premier Energy, Restart Energy, Wiee România, E.On Energie, Petrom Gas, Cez Vânzare, Enel Energie, Gas&Power, Gaz Est, Met România, Nova Power, Euro Seven Industry, Oligopol, Energy Distribution, Electrocentrale Constanța, Hargaz, Conef Gaz, Megaconstruct, Distrigaz Vest, Electrocentrale București, Next Energy, Cis Gaz, Transenergo, Aderro, Tinmar, Enel Muntenia, RWE Supply, Romgaz, Cyeb, Entrex, Petrom, Electric&Gas, Eva Energy, Gas Energy Echotern, Energy Gas Provider, Renovatio | V88: Distrigaz Sud Rețele | W88: aprilie - septembrie | AB88: Brăila | AC88: reducere pe perioada trecerii PIG-ului / întrerupere în caz de blocare PIG | AD88: Datorită soluției tehnice adoptate, respectiv dublă cuplare amonte aval robinet de secționare, nu mai este cazul | BE88: Afectat sau NU? | BF88: - | BG88: - | BH88: Afectat sau NU? | BI88: - | BJ88: - | BK88: Afectat sau NU? | BL88: - | BM88: -
A89: 72 | B89: - | C89: X | D89: Curățire după reparație 20” Șendreni - Albești, 100km | E89: 46830 | F89: Ghergheasa | G89: Buzău | H89: 673802.17 | I89: 417606.33 | J89: 673802.17 | K89: 417606.33 | L89: SM0181D0 | M89: Ghergheasa | N89: - | O89: - | P89: - | Q89: - | R89: - | S89: - | T89: SM-SD001 | U89: Engie, Electrica Furnizare, Premier Energy Trading, Premier Energy, Restart Energy, Wiee România, E.On Energie, Petrom Gas, Cez Vânzare, Enel Energie, Gas&Power, Gaz Est, Met România, Nova Power, Euro Seven Industry, Oligopol, Energy Distribution, Electrocentrale Constanța, Hargaz, Conef Gaz, Megaconstruct, Distrigaz Vest, Electrocentrale București, Next Energy, Cis Gaz, Transenergo, Aderro, Tinmar, Enel Muntenia, RWE Supply, Romgaz, Cyeb, Entrex, Petrom, Electric&Gas, Eva Energy, Gas Energy Echotern, Energy Gas Provider, Renovatio | V89: Distrigaz Sud Rețele | W89: mai - septembrie | AB89: Brăila | AC89: reducere pe perioada trecerii PIG-ului / întrerupere în caz de blocare PIG | AD89: Datorită soluției tehnice adoptate, respectiv dublă cuplare amonte aval robinet de secționare, nu mai este cazul | BE89: Afectat sau NU? | BF89: - | BG89: - | BH89: Afectat sau NU? | BI89: - | BJ89: - | BK89: Afectat sau NU? | BL89: - | BM89: -
A90: 73 | B90: - | C90: X | D90: Curățire după reparație 20” Șendreni - Albești, 100km | E90: 46377 | F90: Bobocu | G90: Buzău | H90: 652992.72 | I90: 415050.79 | J90: 652992.72 | K90: 415050.79 | L90: SM0180D0 | M90: UM Bobocu | N90: - | O90: - | P90: - | Q90: - | R90: - | S90: - | T90: SM-CF001 | U90: Premier Energy | V90: UM 01838 Bobocu | W90: mai - septembrie | AB90: Brăila | AC90: reducere pe perioada trecerii PIG-ului / întrerupere în caz de blocare PIG | AD90: Datorită soluției tehnice adoptate, respectiv dublă cuplare amonte aval robinet de secționare, nu mai este cazul | BE90: Afectat sau NU? | BF90: - | BG90: - | BH90: Afectat sau NU? | BI90: - | BJ90: - | BK90: Afectat sau NU? | BL90: - | BM90: -
A91: 74 | B91: - | C91: X | D91: Curățire după reparație 20” Șendreni - Albești, 100km | E91: 48771 | F91: Poșta Câlnău | G91: Buzău | H91: 651135.92 | I91: 415783.19 | J91: 651135.92 | K91: 415783.19 | L91: SM1136D0 | M91: Poșta Câlnău | N91: - | O91: - | P91: - | Q91: - | R91: - | S91: - | T91: SM-SD001 | U91: Engie, Electrica Furnizare, Premier Energy Trading, Premier Energy, Restart Energy, Wiee România, E.On Energie, Petrom Gas, Cez Vânzare, Enel Energie, Gas&Power, Gaz Est, Met România, Nova Power, Euro Seven Industry, Oligopol, Energy Distribution, Electrocentrale Constanța, Hargaz, Conef Gaz, Megaconstruct, Distrigaz Vest, Electrocentrale București, Next Energy, Cis Gaz, Transenergo, Aderro, Tinmar, Enel Muntenia, RWE Supply, Romgaz, Cyeb, Entrex, Petrom, Electric&Gas, Eva Energy, Gas Energy Echotern, Energy Gas Provider, Renovatio | V91: Distrigaz Sud Rețele | W91: mai - septembrie | AB91: Brăila | AC91: reducere pe perioada trecerii PIG-ului / întrerupere în caz de blocare PIG | AD91: Datorită soluției tehnice adoptate, respectiv dublă cuplare amonte aval robinet de secționare, nu mai este cazul | BE91: Afectat sau NU? | BF91: - | BG91: - | BH91: Afectat sau NU? | BI91: - | BJ91: - | BK91: Afectat sau NU? | BL91: - | BM91: -
A92: 75 | B92: - | C92: X | D92: Curățire după reparație 20” Șendreni - Albești, 100km | E92: 44934 | F92: Balta Albă | G92: Buzău | H92: 687098.79 | I92: 421724.52 | J92: 687098.79 | K92: 421724.52 | L92: - | M92: - | N92: - | O92: - | P92: PM0248 | Q92: Balta Albă | R92: - | S92: - | T92: PM-PP001 | U92: Amromco | V92: Amromco | W92: mai - septembrie august - septembrie | AB92: Brăila | AC92: reducere pe perioada trecerii PIG-ului / întrerupere în caz de blocare PIG | AD92: Curățarea este condiționată de finalizarea reabilitării conductei 20" Șendreni-Albești (Buzău) | BE92: Afectat sau NU? | BF92: - | BG92: - | BH92: Afectat sau NU? | BI92: - | BJ92: - | BK92: Afectat sau NU? | BL92: - | BM92: -
A93: 76 | B93: - | C93: X | D93: Curățire după reparație 20” Șendreni - Albești, 100km | E93: 43279 | F93: Grădiștea | G93: Brăila | H93: 689791.29 | I93: 424094.77 | J93: 689791.29 | K93: 424094.77 | L93: - | M93: - | N93: - | O93: - | P93: PM0265 | Q93: Balta Albă Gr 22 | R93: - | S93: - | T93: PM-PP001 | U93: Amromco | V93: Amromco | W93: mai - septembrie | AB93: Brăila | AC93: reducere pe perioada trecerii PIG-ului / întrerupere în caz de blocare PIG | AD93: Datorită soluției tehnice adoptate, respectiv dublă cuplare amonte aval robinet de secționare, nu mai este cazul | BE93: Afectat sau NU? | BF93: - | BG93: - | BH93: Afectat sau NU? | BI93: - | BJ93: - | BK93: Afectat sau NU? | BL93: - | BM93: -
A94: 77 | B94: - | C94: X | D94: Curățire după reparație 20” Șendreni - Albești, 100km | E94: 43279 | F94: Grădiștea | G94: Brăila | H94: 689791.29 | I94: 424094.77 | J94: 689791.29 | K94: 424094.77 | L94: - | M94: - | N94: - | O94: - | P94: PM0300 | Q94: Balta Albă Gr 22 II | R94: - | S94: - | T94: PM-PP001 | U94: Amromco | V94: Amromco | W94: mai - septembrie august - septembrie | AB94: Brăila | AC94: reducere pe perioada trecerii PIG-ului / întrerupere în caz de blocare PIG | AD94: Curățarea este condiționată de finalizarea reabilitării conductei 20" Șendreni-Albești (Buzău) | BE94: Afectat sau NU? | BF94: - | BG94: - | BH94: Afectat sau NU? | BI94: - | BJ94: - | BK94: Afectat sau NU? | BL94: - | BM94: -
A95: 78 | B95: - | C95: X | D95: Curățire după reparație 20” Șendreni - Albești, 100km | E95: 46830 | F95: Ghergheasa | G95: Buzău | H95: 673818.97 | I95: 417579.15 | J95: 673818.97 | K95: 417579.15 | L95: - | M95: - | N95: - | O95: - | P95: PM0021 | Q95: Ghergheasa (Boldu) | R95: - | S95: - | T95: PM-PP001 | U95: E.on Energie, Enel Energie, Engie, Cordun Gaz, Petrom Gas | V95: Romgaz | W95: mai - septembrie | AB95: Brăila | AC95: reducere pe perioada trecerii PIG-ului / întrerupere în caz de blocare PIG | AD95: Datorită soluției tehnice adoptate, respectiv dublă cuplare amonte aval robinet de secționare, nu mai este cazul | BE95: Afectat sau NU? | BF95: - | BG95: - | BH95: Afectat sau NU? | BI95: - | BJ95: - | BK95: Afectat sau NU? | BL95: - | BM95: -
A96: 79 | B96: - | C96: X | D96: Curățire după reparație 20” Șendreni - Albești, 100km | E96: 46830 | F96: Ghergheasa | G96: Buzău | H96: 673818.16 | I96: 417578.22 | J96: 673818.16 | K96: 417578.22 | L96: - | M96: - | N96: - | O96: - | P96: PM0261 | Q96: Ghergheasa | R96: - | S96: - | T96: PM-PP001 | U96: Amromco | V96: Amromco | W96: mai - septembrie | AB96: Brăila | AC96: reducere pe perioada trecerii PIG-ului / întrerupere în caz de blocare PIG | AD96: Datorită soluției tehnice adoptate, respectiv dublă cuplare amonte aval robinet de secționare, nu mai este cazul | BE96: Afectat sau NU? | BF96: - | BG96: - | BH96: Afectat sau NU? | BI96: - | BJ96: - | BK96: Afectat sau NU? | BL96: - | BM96: -
A97: 80 | B97: - | C97: X | D97: Curățire după reparație 20” Șendreni - Albești, 100km | E97: 43180 | F97: Galbenu | G97: Brăila | H97: 668594.85 | I97: 412338.03 | J97: 668594.85 | K97: 412338.03 | L97: - | M97: - | N97: - | O97: - | P97: PM0264 | Q97: Galbenu | R97: - | S97: - | T97: PM-PP001 | U97: Romgaz | V97: Romgaz | W97: mai - septembrie august - septembrie | AB97: Brăila | AC97: reducere pe perioada trecerii PIG-ului / întrerupere în caz de blocare PIG | AD97: Curățarea este condiționată de finalizarea reabilitării 20" Șendreni-Albești (Buzău) | BE97: Afectat sau NU? | BF97: - | BG97: - | BH97: Afectat sau NU? | BI97: - | BJ97: - | BK97: Afectat sau NU? | BL97: - | BM97: -
A98: 81 | B98: - | C98: X | D98: Curățire după reparație 20” Șendreni - Albești, 100km | E98: 43180 | F98: Galbenu | G98: Brăila | H98: 668600.18 | I98: 412323.17 | J98: 668600.18 | K98: 412323.17 | L98: - | M98: - | N98: - | O98: - | P98: PM0299 | Q98: Galbenu II | R98: - | S98: - | T98: PM-PP001 | U98: Romgaz | V98: Romgaz | W98: mai - septembrie august - septembrie | AB98: Brăila | AC98: reducere pe perioada trecerii PIG-ului / întrerupere în caz de blocare PIG | AD98: Curățarea este condiționată de finalizarea reabilitării 20" Șendreni-Albești (Buzău) | BE98: Afectat sau NU? | BF98: - | BG98: - | BH98: Afectat sau NU? | BI98: - | BJ98: - | BK98: Afectat sau NU? | BL98: - | BM98: -
A99: 82 | B99: - | C99: X | D99: Curățire după reparație 20” Șendreni - Albești, 100km | E99: 46377 | F99: Roșioru | G99: Buzău | H99: 664697.46 | I99: 411738.54 | J99: 664697.46 | K99: 411738.54 | L99: - | M99: - | N99: - | O99: - | P99: PM0022 | Q99: Roșioru | R99: - | S99: - | T99: PM-PP001 | U99: Romgaz, Amromco | V99: Romgaz, Amromco | W99: mai - septembrie | AB99: Brăila | AC99: reducere pe perioada trecerii PIG-ului / întrerupere în caz de blocare PIG | AD99: Datorită soluției tehnice adoptate, respectiv dublă cuplare amonte aval robinet de secționare, nu mai este cazul | BE99: Afectat sau NU? | BF99: - | BG99: - | BH99: Afectat sau NU? | BI99: - | BJ99: - | BK99: Afectat sau NU? | BL99: - | BM99: -
A100: 83 | B100: - | C100: X | D100: Curățire după reparație 20” Șendreni - Albești, 100km | E100: 46787 | F100: Bentu | G100: Buzău | H100: 655767.71 | I100: 398942.51 | J100: 655767.71 | K100: 398942.51 | L100: - | M100: - | N100: - | O100: - | P100: PM0033 | Q100: Bentu | R100: - | S100: - | T100: PM-PP001 | U100: Petrom | V100: Petrom | W100: mai - septembrie | AB100: Brăila | AC100: reducere pe perioada trecerii PIG-ului / întrerupere în caz de blocare PIG | AD100: Datorită soluției tehnice adoptate, respectiv dublă cuplare amonte aval robinet de secționare, nu mai este cazul | BE100: Afectat sau NU? | BF100: - | BG100: - | BH100: Afectat sau NU? | BI100: - | BJ100: - | BK100: Afectat sau NU? | BL100: - | BM100: -
A101: 84 | B101: - | C101: X | D101: Curățire după reparație 24” Crăciunel - Băcia, Vest III, 82km | E101: 1071 | F101: Teleac | G101: Alba | H101: 395426.3845 | I101: 510215.4042 | J101: 395426.3845 | K101: 510215.4042 | L101: SM0281D0 | M101: Teleac AB | N101: - | O101: - | P101: - | Q101: - | R101: - | S101: - | T101: SM-SD001 | U101: Cez Vânzare, CPL Concordia, E.on Energie, E.on Gaz Furnizare, Enel Energie, Energy Distribution, Engie, Gazmir, Met Romania, Premier Energy, RWE Supply, Aderro GP, Cis Gaz, Conef Gaz, Cyeb, Design Proiect, Distrigaz Vest, Electric&Gas, Enel Muntenia, Gas&Power, Energy Gas Provider, Entrex, Eva Energy, Gaz Est, Hargaz, Hermes Energy, Next Energy, Nova Power, Petrom Gas, Petrom, Pado Group, Premier Energy, Prisma Serv, Renovatio, Restart Energy, RWE, SST Grup, Tetarom, Wiee, Tinmar | V101: Delgaz Grid | W101: aprilie - septembrie | AB101: Mediaș | AC101: reducere pe perioada trecerii PIG-ului / întrerupere în caz de blocare PIG | BE101: Afectat sau NU? | BF101: - | BG101: - | BH101: Afectat sau NU? | BI101: - | BJ101: - | BK101: Afectat sau NU? | BL101: - | BM101: -
A102: 85 | B102: - | C102: X | D102: Curățire după reparație 24” Crăciunel - Băcia, Vest III, 82km | E102: 7384 | F102: Dumitra | G102: Alba | H102: 397685.9834 | I102: 511910.9719 | J102: 397685.9834 | K102: 511910.9719 | L102: SM0277D0 | M102: Dumitra | N102: - | O102: - | P102: - | Q102: - | R102: - | S102: - | T102: SM-SD001 | U102: Cez Vânzare, CPL Concordia, E.on Energie, E.on Gaz Furnizare, Enel Energie, Energy Distribution, Engie, Gazmir, Met Romania, Premier Energy, RWE Supply, Aderro GP, Cis Gaz, Conef Gaz, Cyeb, Design Proiect, Distrigaz Vest, Electric&Gas, Enel Muntenia, Gas&Power, Energy Gas Provider, Entrex, Eva Energy, Gaz Est, Hargaz, Hermes Energy, Next Energy, Nova Power, Petrom Gas, Petrom, Pado Group, Premier Energy, Prisma Serv, Renovatio, Restart Energy, RWE, SST Grup, Tetarom, Wiee, Tinmar | V102: Delgaz Grid | W102: aprilie - septembrie | AB102: Mediaș | AC102: reducere pe perioada trecerii PIG-ului / întrerupere în caz de blocare PIG | BE102: Afectat sau NU? | BF102: - | BG102: - | BH102: Afectat sau NU? | BI102: - | BJ102: - | BK102: Afectat sau NU? | BL102: - | BM102: -
A103: 86 | B103: - | C103: X | D103: Curățire după reparație 24” Crăciunel - Băcia, Vest III, 82km | E103: 1071 | F103: Ciugud | G103: Alba | H103: 392105.692 | I103: 506483.019 | J103: 392105.692 | K103: 506483.019 | L103: SM0280D0 | M103: Ciugud | N103: - | O103: - | P103: - | Q103: - | R103: - | S103: - | T103: SM-SD001 | U103: Cez Vânzare, CPL Concordia, E.on Energie, E.on Gaz Furnizare, Enel Energie, Energy Distribution, Engie, Gazmir, Met Romania, Premier Energy, RWE Supply, Aderro GP, Cis Gaz, Conef Gaz, Cyeb, Design Proiect, Distrigaz Vest, Electric&Gas, Enel Muntenia, Gas&Power, Energy Gas Provider, Entrex, Eva Energy, Gaz Est, Hargaz, Hermes Energy, Next Energy, Nova Power, Petrom Gas, Petrom, Pado Group, Premier Energy, Prisma Serv, Renovatio, Restart Energy, RWE, SST Grup, Tetarom, Wiee, Tinmar | V103: Delgaz Grid | W103: aprilie - septembrie | AB103: Mediaș | AC103: reducere pe perioada trecerii PIG-ului / întrerupere în caz de blocare PIG | BE103: Afectat sau NU? | BF103: - | BG103: - | BH103: Afectat sau NU? | BI103: - | BJ103: - | BK103: Afectat sau NU? | BL103: - | BM103: -
A104: 87 | B104: - | C104: X | D104: Curățire după reparație 24” Crăciunel - Băcia, Vest III, 82km | E104: 1874 | F104: Lancrăm | G104: Alba | H104: 387512.8883 | I104: 503448.9788 | J104: 387512.8883 | K104: 503448.9788 | L104: SM0882D0 | M104: Lancrăm I Horia | N104: - | O104: - | P104: - | Q104: - | R104: - | S104: - | T104: SM-SD001 | U104: Cez Vânzare, CPL Concordia, E.on Energie, E.on Gaz Furnizare, Enel Energie, Energy Distribution, Engie, Gazmir, Met Romania, Premier Energy, RWE Supply, Aderro GP, Cis Gaz, Conef Gaz, Cyeb, Design Proiect, Distrigaz Vest, Electric&Gas, Enel Muntenia, Gas&Power, Energy Gas Provider, Entrex, Eva Energy, Gaz Est, Hargaz, Hermes Energy, Next Energy, Nova Power, Petrom Gas, Petrom, Pado Group, Premier Energy, Prisma Serv, Renovatio, Restart Energy, RWE, SST Grup, Tetarom, Wiee, Tinmar | V104: Delgaz Grid | W104: aprilie - septembrie | AB104: Mediaș | AC104: reducere pe perioada trecerii PIG-ului / întrerupere în caz de blocare PIG | BE104: Afectat sau NU? | BF104: - | BG104: - | BH104: Afectat sau NU? | BI104: - | BJ104: - | BK104: Afectat sau NU? | BL104: - | BM104: -
A105: 88 | B105: - | C105: X | D105: Curățire după reparație 24” Crăciunel - Băcia, Vest III, 82km | E105: 1874 | F105: Lancrăm | G105: Alba | H105: 387215.4047 | I105: 503365.8149 | J105: 387215.4047 | K105: 503365.8149 | L105: SM1124D0 | M105: Lancrăm II | N105: - | O105: - | P105: - | Q105: - | R105: - | S105: - | T105: SM-SD001 | U105: Cez Vânzare, CPL Concordia, E.on Energie, E.on Gaz Furnizare, Enel Energie, Energy Distribution, Engie, Gazmir, Met Romania, Premier Energy, RWE Supply, Aderro GP, Cis Gaz, Conef Gaz, Cyeb, Design Proiect, Distrigaz Vest, Electric&Gas, Enel Muntenia, Gas&Power, Energy Gas Provider, Entrex, Eva Energy, Gaz Est, Hargaz, Hermes Energy, Next Energy, Nova Power, Petrom Gas, Petrom, Pado Group, Premier Energy, Prisma Serv, Renovatio, Restart Energy, RWE, SST Grup, Tetarom, Wiee, Tinmar | V105: Delgaz Grid | W105: aprilie - septembrie | AB105: Mediaș | AC105: reducere pe perioada trecerii PIG-ului / întrerupere în caz de blocare PIG | BE105: Afectat sau NU? | BF105: - | BG105: - | BH105: Afectat sau NU? | BI105: - | BJ105: - | BK105: Afectat sau NU? | BL105: - | BM105: -
A106: 89 | B106: - | C106: X | D106: Curățire după reparație 20” Giurgiu - Podișor, 68km | E106: 100521 | F106: Giurgiu | G106: Giurgiu | H106: 580148.33 | I106: 269506.6 | J106: 555279.97 | K106: 322933.18 | L106: SM1047D0 | M106: Giurgiu | N106: - | O106: - | P106: - | Q106: - | R106: - | S106: - | T106: SM-SD001 | U106: Cez Vânzare, E.on Furnizare, Engie, Petrom Gas, Petrom | V106: Wirom | W106: iunie - septembrie august - septembrie | AB106: București | AC106: reducere pe perioada trecerii PIG-ului / întrerupere în caz de blocare PIG | AD106: Nu au fost finalizate lucrările de reparație a conductei, în vederea reclasificării acesteia de la Pn 40 la Pn 50 bar | BE106: Afectat sau NU? | BF106: - | BG106: - | BH106: Afectat sau NU? | BI106: - | BJ106: - | BK106: Afectat sau NU? | BL106: - | BM106: -
A107: 90 | B107: - | C107: X | D107: Inspecție 28” Nădlac - Arad, 63km | E107: 9627 | F107: Nădlac | G107: Arad | H107: 171367.09 | I107: 530638.06 | J107: 171367.09 | K107: 530638.06 | L107: SM1154D0 | M107: Nădlac | N107: - | O107: - | P107: - | Q107: - | R107: - | S107: - | T107: SM-SD001 | U107: Cez Vânzare, E.on Energie, Electrica Furnizare, Enel Energie, Energy Distribution, Engie, Met Romania, Premier Energy, RWE Supply, Aderro GP, Cis Gaz, Conef Gaz, Cyeb, Distrigaz Vest, Electric&Gas, Enel Muntenia, Gas&Power, Energy Gas Provider, Entrex, Eva Energy, Gaz Est, Hargaz, Next Energy, Nova Power, Petrom Gas, Petrom, Premier Energy Trading, Renovatio, Restart Energy, Wiee, Tinmar, Oligopol, Euro Seven, Electrocentrale Constanța, Megaconstruct, Electrocentrale București, Transenergo, Romgaz, Echoterm, Monsson, Electric Planners | V107: Delgaz Grid | W107: mai - iulie iunie - iulie | AB107: Arad | AC107: reducere pe perioada trecerii PIG-ului / întrerupere în caz de blocare PIG | AD107: Reprogramare facută de Serviciul Diagnosticare Conducte | BE107: Afectat sau NU? | BF107: - | BG107: - | BH107: Afectat sau NU? | BI107: - | BJ107: - | BK107: Afectat sau NU? | BL107: - | BM107: -
A108: 91 | B108: - | C108: X | D108: Inspecție 28” Nădlac - Arad, 63km | E108: 11584 | F108: Pecica | G108: Arad | H108: 198438.37 | I108: 527271.7 | J108: 198438.37 | K108: 527271.7 | L108: SM1033D0 | M108: Pecica | N108: - | O108: - | P108: - | Q108: - | R108: - | S108: - | T108: SM-SD001 | U108: Cez Vânzare, E.on Energie, Electrica Furnizare, Enel Energie, Energy Distribution, Engie, Met Romania, Premier Energy, RWE Supply, Aderro GP, Cis Gaz, Conef Gaz, Cyeb, Distrigaz Vest, Electric&Gas, Enel Muntenia, Gas&Power, Energy Gas Provider, Entrex, Eva Energy, Gaz Est, Hargaz, Next Energy, Nova Power, Petrom Gas, Petrom, Premier Energy Trading, Renovatio, Restart Energy, Wiee, Tinmar, Oligopol, Euro Seven, Electrocentrale Constanța, Megaconstruct, Electrocentrale București, Transenergo, Romgaz, Echoterm, Monsson, Electric Planners | V108: Delgaz Grid | W108: mai - iulie iunie - iulie | AB108: Arad | AC108: reducere pe perioada trecerii PIG-ului / întrerupere în caz de blocare PIG | AD108: Reprogramare facută de Serviciul Diagnosticare Conducte | BE108: Afectat sau NU? | BF108: - | BG108: - | BH108: Afectat sau NU? | BI108: - | BJ108: - | BK108: Afectat sau NU? | BL108: - | BM108: -
A109: 92 | B109: - | C109: X | D109: Inspecție 20” Recaș - Timișoara, 25km | E109: 158314 | F109: Recaș | G109: Timiș | H109: 228618.53 | I109: 484544.85 | J109: 228618.53 | K109: 484544.85 | L109: SM0332D0 | M109: Recaș | N109: - | O109: - | P109: - | Q109: - | R109: - | S109: - | T109: SM-SD001 | U109: Cez Vânzare, E.on Energie, Enel Energie, Energy Distribution, Engie, Met Romania, Distrigaz Vest, Electric&Gas, Energy Gas Provider, Gaz Est, Gaz Vest, Petrom Gas, Renovatio, Restart Energy, RWE, Tinmar | V109: Gaz Vest | W109: iunie - august | AB109: Arad | AC109: reducere pe perioada trecerii PIG-ului / întrerupere în caz de blocare PIG | BE109: Afectat sau NU? | BF109: - | BG109: - | BH109: Afectat sau NU? | BI109: - | BJ109: - | BK109: Afectat sau NU? | BL109: - | BM109: -
A110: 93 | B110: - | C110: X | D110: Inspecție 20” Recaș - Timișoara, 25km | E110: 158314 | F110: Izvin | G110: Timiș | H110: 224757.02 | I110: 484415.36 | J110: 224757.02 | K110: 484415.36 | L110: SM0331D0 | M110: Izvin | N110: - | O110: - | P110: - | Q110: - | R110: - | S110: - | T110: SM-SD001 | U110: Cez Vânzare, E.on Energie, Enel Energie, Energy Distribution, Engie, Met Romania, Distrigaz Vest, Electric&Gas, Energy Gas Provider, Gaz Est, Gaz Vest, Petrom Gas, Renovatio, Restart Energy, RWE, Tinmar | V110: Gaz Vest | W110: iunie - august | AB110: Arad | AC110: reducere pe perioada trecerii PIG-ului / întrerupere în caz de blocare PIG | BE110: Afectat sau NU? | BF110: - | BG110: - | BH110: Afectat sau NU? | BI110: - | BJ110: - | BK110: Afectat sau NU? | BL110: - | BM110: -
A111: 94 | B111: - | C111: X | D111: Inspecție 20” Recaș - Timișoara, 25km | E111: 158396 | F111: Remetea Mare | G111: Timiș | H111: 219348.36 | I111: 482046.97 | J111: 219348.36 | K111: 482046.97 | L111: SM0333D0 | M111: Remetea Mare | N111: - | O111: - | P111: - | Q111: - | R111: - | S111: - | T111: SM-SD001 | U111: Cez Vânzare, E.on Energie, Enel Energie, Energy Distribution, Engie, Met Romania, Distrigaz Vest, Electric&Gas, Energy Gas Provider, Gaz Est, Gaz Vest, Petrom Gas, Renovatio, Restart Energy, RWE, Tinmar | V111: Gaz Vest | W111: iunie - august | AB111: Arad | AC111: reducere pe perioada trecerii PIG-ului / întrerupere în caz de blocare PIG | BE111: Afectat sau NU? | BF111: - | BG111: - | BH111: Afectat sau NU? | BI111: - | BJ111: - | BK111: Afectat sau NU? | BL111: - | BM111: -
A112: 95 | B112: - | C112: X | D112: Inspecție 20” Recaș - Timișoara, 25km | E112: 159516 | F112: Bucovăț | G112: Timiș | H112: 219649.42 | I112: 478583.35 | J112: 219649.42 | K112: 478583.35 | L112: SM1174D0 | M112: Bucovăț | N112: - | O112: - | P112: - | Q112: - | R112: - | S112: - | T112: SM-SD001 | U112: Cez Vânzare, E.on Energie, Enel Energie, Energy Distribution, Engie, Met Romania, Distrigaz Vest, Electric&Gas, Energy Gas Provider, Gaz Est, Gaz Vest, Petrom Gas, Renovatio, Restart Energy, RWE, Tinmar | V112: Gaz Vest | W112: iunie - august | AB112: Arad | AC112: reducere pe perioada trecerii PIG-ului / întrerupere în caz de blocare PIG | BE112: Afectat sau NU? | BF112: - | BG112: - | BH112: Afectat sau NU? | BI112: - | BJ112: - | BK112: Afectat sau NU? | BL112: - | BM112: -
A113: 96 | B113: - | C113: X | D113: Inspecție 20” Recaș - Timișoara, 25km | E113: 157861 | F113: Moșnița Veche | G113: Timiș | H113: 214047.26 | I113: 479657.04 | J113: 214047.26 | K113: 479657.04 | L113: SM1261D0 | M113: Moșnița Nouă | N113: - | O113: - | P113: - | Q113: - | R113: - | S113: - | T113: SM-SD001 | U113: Cez Vânzare, CPL Concordia, E.on Energie, E.on Gaz Furnizare, Electrica Furnizare, Enel Energie, Energy Distribution, Engie, Gazmir, Met Romania, Premier Energy, RWE Supply, Aderro GP, Cis Gaz, Conef Gaz, Cyeb, Design Proiect, Distrigaz Vest, Electric&Gas, Enel Muntenia, Gas&Power, Energy Gas Provider, Entrex, Eva Energy, Gaz Est, Hargaz, Hermes Energy, Next Energy, Nova Power, Petrom Gas, Petrom, Pado Group, Premier Energy, Prisma Serv, Renovatio, Restart Energy, RWE, SST Grup, Tetarom, Wiee, Tinmar | V113: Delgaz Grid | W113: iunie - august | AB113: Arad | AC113: reducere pe perioada trecerii PIG-ului / întrerupere în caz de blocare PIG | BE113: Afectat sau NU? | BF113: - | BG113: - | BH113: Afectat sau NU? | BI113: - | BJ113: - | BK113: Afectat sau NU? | BL113: - | BM113: -
A114: 97 | B114: - | C114: X | D114: Inspecție 20” Hurezani - Drăgășani, 70km | E114: 80506 | F114: Hurezani | G114: Gorj | H114: 394216.24 | I114: 369063.53 | J114: 443476.28 | K114: 353552.9 | L114: - | M114: - | N114: - | O114: - | P114: PM0205 | Q114: Hurezani SU | R114: - | S114: - | T114: PM-PP001 | U114: Romgaz | V114: Romgaz | W114: martie - aprilie iunie - septembrie | AB114: Craiova | AC114: reducere pe perioada trecerii PIG-ului / întrerupere în caz de blocare PIG | AD114: Reprogramare facută de Serviciul Diagnosticare Conducte | BE114: Afectat sau NU? | BF114: - | BG114: - | BH114: Afectat sau NU? | BI114: - | BJ114: - | BK114: Afectat sau NU? | BL114: - | BM114: -
A115: 98 | B115: - | C115: X | D115: Inspecție 20” Hurezani - Drăgășani, 70km | E115: 80515 | F115: Hurezani | G115: Gorj | H115: 394216.24 | I115: 369063.53 | J115: 443476.28 | K115: 353552.9 | L115: - | M115: - | N115: - | O115: - | P115: PM0062 | Q115: Hurezani Bulbuceni | R115: - | S115: - | T115: PM-PP001 | U115: Petrom | V115: Petrom | W115: martie - aprilie iunie - septembrie | AB115: Craiova | AC115: reducere pe perioada trecerii PIG-ului / întrerupere în caz de blocare PIG | AD115: Reprogramare facută de Serviciul Diagnosticare Conducte | BE115: Afectat sau NU? | BF115: - | BG115: - | BH115: Afectat sau NU? | BI115: - | BJ115: - | BK115: Afectat sau NU? | BL115: - | BM115: -
A116: 99 | B116: - | C116: X | D116: Inspecție 20” Hurezani - Drăgășani, 70km | E116: 80757 | F116: Hurezani | G116: Gorj | H116: 394216.24 | I116: 369063.53 | J116: 443476.28 | K116: 353552.9 | L116: - | M116: - | N116: - | O116: - | P116: PM0253 | Q116: Hurezani Bustuchini | R116: - | S116: - | T116: PM-PP001 | U116: Petrom | V116: Petrom | W116: martie - aprilie iunie - septembrie | AB116: Craiova | AC116: reducere pe perioada trecerii PIG-ului / întrerupere în caz de blocare PIG | AD116: Reprogramare facută de Serviciul Diagnosticare Conducte | BE116: Afectat sau NU? | BF116: - | BG116: - | BH116: Afectat sau NU? | BI116: - | BJ116: - | BK116: Afectat sau NU? | BL116: - | BM116: -
A117: 100 | B117: - | C117: X | D117: Inspecție 20” Hurezani - Drăgășani, 70km | E117: 172377 | F117: Popești | G117: Vâlcea | H117: 394216.24 | I117: 369063.53 | J117: 443476.28 | K117: 353552.9 | L117: - | M117: - | N117: - | O117: - | P117: PM0034 | Q117: Popești Lăpușata | R117: - | S117: - | T117: PM-PP001 | U117: Petrom | V117: Petrom | W117: martie - aprilie iunie - septembrie | AB117: Craiova | AC117: reducere pe perioada trecerii PIG-ului / întrerupere în caz de blocare PIG | AD117: Reprogramare facută de Serviciul Diagnosticare Conducte | BE117: Afectat sau NU? | BF117: - | BG117: - | BH117: Afectat sau NU? | BI117: - | BJ117: - | BK117: Afectat sau NU? | BL117: - | BM117: -
A118: 101 | B118: - | C118: X | D118: Inspecție 20” Hurezani - Drăgășani, 70km | E118: 168434 | F118: Tătărani | G118: Vâlcea | H118: 394216.24 | I118: 369063.53 | J118: 443476.28 | K118: 353552.9 | L118: - | M118: - | N118: - | O118: - | P118: PM0068 | Q118: Tătărani | R118: - | S118: - | T118: PM-PP001 | U118: Petrom | V118: Petrom | W118: martie - aprilie iunie - septembrie | AB118: Craiova | AC118: reducere pe perioada trecerii PIG-ului / întrerupere în caz de blocare PIG | AD118: Reprogramare facută de Serviciul Diagnosticare Conducte | BE118: Afectat sau NU? | BF118: - | BG118: - | BH118: Afectat sau NU? | BI118: - | BJ118: - | BK118: Afectat sau NU? | BL118: - | BM118: -
A119: 102 | B119: - | C119: X | D119: Inspecție 20” Hurezani - Drăgășani, 70km | E119: 170872 | F119: Pârâienii de Jos | G119: Vâlcea | H119: 394216.24 | I119: 369063.53 | J119: 443476.28 | K119: 353552.9 | L119: - | M119: - | N119: - | O119: - | P119: PM0259 | Q119: Pârâienii de Jos | R119: - | S119: - | T119: PM-PP001 | U119: Petrom | V119: Petrom | W119: martie - aprilie iunie - septembrie | AB119: Craiova | AC119: reducere pe perioada trecerii PIG-ului / întrerupere în caz de blocare PIG | AD119: Reprogramare facută de Serviciul Diagnosticare Conducte | BE119: Afectat sau NU? | BF119: =IF(C119="X",IF(AN119="DA",IF(AND(BE119>=5,AK119<>""),LEN(TRIM(V119))-LEN(SUBSTITUTE(V119,CHAR(44),""))+1,0),"-"),"") -> - | BG119: =IF(C119="X",IF(AN119="DA",LEN(TRIM(V119))-LEN(SUBSTITUTE(V119,CHAR(44),""))+1,"-"),"") -> - | BH119: Afectat sau NU? | BI119: =IF(C119="X",IF(AN119="DA",IF(AND(BH119>=5,AI119<>""),LEN(TRIM(U119))-LEN(SUBSTITUTE(U119,CHAR(44),""))+1,0),"-"),"") -> - | BJ119: =IF(C119="X",IF(AN119="DA",LEN(TRIM(U119))-LEN(SUBSTITUTE(U119,CHAR(44),""))+1,"-"),"") -> - | BK119: =IF(C119="X",IF(AN119="","Afectat sau NU?",IF(AN119="DA",((AG119+AH119)-(Z119+AA119))*24,"Nu a fost afectat producator/consumator")),"") -> Afectat sau NU? | BL119: =IF(C119="X",IF(AN119<>"DA","-",IF(AND(AN119="DA",BK119<=0),LEN(TRIM(V119))-LEN(SUBSTITUTE(V119,CHAR(44),""))+1+LEN(TRIM(U119))-LEN(SUBSTITUTE(U119,CHAR(44),""))+1,0)),"") -> - | BM119: =IF(C119="X",IF(AN119="DA",LEN(TRIM(V119))-LEN(SUBSTITUTE(V119,CHAR(44),""))+1+LEN(TRIM(U119))-LEN(SUBSTITUTE(U119,CHAR(44),""))+1,"-"),"") -> -
A120: 103 | B120: - | C120: X | D120: Inspecție 20” Hurezani - Drăgășani, 70km | E120: 170346 | F120: Grădiștea | G120: Vâlcea | H120: 394216.24 | I120: 369063.53 | J120: 443476.28 | K120: 353552.9 | L120: - | M120: - | N120: - | O120: - | P120: PM0053 | Q120: Grădiștea | R120: - | S120: - | T120: PM-PP001 | U120: Romgaz, Petrom | V120: Romgaz, Petrom | W120: martie - aprilie iunie - septembrie | AB120: Craiova | AC120: reducere pe perioada trecerii PIG-ului / întrerupere în caz de blocare PIG | AD120: Reprogramare facută de Serviciul Diagnosticare Conducte | BE120: Afectat sau NU? | BF120: - | BG120: - | BH120: Afectat sau NU? | BI120: - | BJ120: - | BK120: Afectat sau NU? | BL120: - | BM120: -
A121: =A120+1 -> 104 | B121: - | C121: X | D121: Inspecție 20” Hurezani - Drăgășani, 70km | E121: 82243 | F121: Stejari (Băcești) | G121: Gorj | H121: 394216.24 | I121: 369063.53 | J121: 443476.28 | K121: 353552.9 | L121: - | M121: - | N121: - | O121: - | P121: PM0206 | Q121: Piscu Stejari SU | R121: - | S121: - | T121: PM-PP001 | U121: Romgaz | V121: Romgaz | W121: martie - aprilie iunie - septembrie | AB121: Craiova | AC121: reducere pe perioada trecerii PIG-ului / întrerupere în caz de blocare PIG | AD121: Reprogramare facută de Serviciul Diagnosticare Conducte | BE121: Afectat sau NU? | BF121: - | BG121: - | BH121: Afectat sau NU? | BI121: - | BJ121: - | BK121: Afectat sau NU? | BL121: - | BM121: -
A122: 105 | B122: - | C122: X | D122: Inspecție 20” Hurezani - Drăgășani, 70km | E122: 174290 | F122: Zătreni | G122: Vâlcea | H122: 394216.24 | I122: 369063.53 | J122: 443476.28 | K122: 353552.9 | L122: - | M122: - | N122: - | O122: - | P122: PM0270 | Q122: SU Zătreni | R122: - | S122: - | T122: PM-PP001 | U122: Romgaz, Amromco, Foraj Sonde | V122: Romgaz, Amromco, Foraj Sonde | W122: martie - aprilie iunie - septembrie | AB122: Craiova | AC122: reducere pe perioada trecerii PIG-ului / întrerupere în caz de blocare PIG | AD122: Reprogramare facută de Serviciul Diagnosticare Conducte | AQ122: =IF(B122="X",IF(AN122="","Afectat sau NU?",IF(AN122="DA",IF(((AK122+AL122)-(AE122+AF122))*24<-720,"Neinformat",((AK122+AL122)-(AE122+AF122))*24),"Nu a fost afectat producator/consumator")),"") ->  | AR122: =IF(B122="X",IF(AN122="DA",IF(AQ122<6,LEN(TRIM(V122))-LEN(SUBSTITUTE(V122,CHAR(44),""))+1,0),"-"),"") ->  | AS122: =IF(B122="X",IF(AN122="DA",LEN(TRIM(V122))-LEN(SUBSTITUTE(V122,CHAR(44),""))+1,"-"),"") ->  | AT122: =IF(B122="X",IF(AN122="","Afectat sau NU?",IF(AN122="DA",IF(((AI122+AJ122)-(AE122+AF122))*24<-720,"Neinformat",((AI122+AJ122)-(AE122+AF122))*24),"Nu a fost afectat producator/consumator")),"") ->  | AU122: =IF(B122="X",IF(AN122="DA",IF(AT122<6,LEN(TRIM(U122))-LEN(SUBSTITUTE(U122,CHAR(44),""))+1,0),"-"),"") ->  | AV122: =IF(B122="X",IF(AN122="DA",LEN(TRIM(U122))-LEN(SUBSTITUTE(U122,CHAR(44),""))+1,"-"),"") ->  | AW122: =IF(B122="X",IF(AN122="","Afectat sau NU?",IF(AN122="DA",((AG122+AH122)-(AE122+AF122))*24,"Nu a fost afectat producator/consumator")),"") ->  | AX122: =IF(B122="X",IF(AN122="DA",IF(AW122>24,IF(AZ122="NU",0,LEN(TRIM(V122))-LEN(SUBSTITUTE(V122,CHAR(44),""))+1),0),"-"),"") ->  | AY122: =IF(B122="X",IF(AN122="DA",IF(AW122>24,LEN(TRIM(V122))-LEN(SUBSTITUTE(V122,CHAR(44),""))+1,0),"-"),"") ->  | BE122: Afectat sau NU? | BF122: - | BG122: - | BH122: Afectat sau NU? | BI122: - | BJ122: - | BK122: Afectat sau NU? | BL122: - | BM122: -
A123: 106 | B123: - | C123: X | D123: Inspecție 20” Hurezani - Drăgășani, 70km | E123: 174290 | F123: Zătreni | G123: Vâlcea | H123: 394216.24 | I123: 369063.53 | J123: 443476.28 | K123: 353552.9 | L123: - | M123: - | N123: - | O123: - | P123: PM0054 | Q123: Zătreni | R123: - | S123: - | T123: PM-PP001 | U123: Romgaz, Amromco | V123: Romgaz, Amromco | W123: martie - aprilie iunie - septembrie | AB123: Craiova | AC123: reducere pe perioada trecerii PIG-ului / întrerupere în caz de blocare PIG | AD123: Reprogramare facută de Serviciul Diagnosticare Conducte | BE123: Afectat sau NU? | BF123: - | BG123: - | BH123: Afectat sau NU? | BI123: - | BJ123: - | BK123: Afectat sau NU? | BL123: - | BM123: -
A124: 107 | B124: - | C124: X | D124: Inspecție 20” Hurezani - Drăgășani, 70km | E124: 171209 | F124: Mamu (Creteni) | G124: Vâlcea | H124: 394216.24 | I124: 369063.53 | J124: 443476.28 | K124: 353552.9 | L124: - | M124: - | N124: - | O124: - | P124: PM0296 | Q124: Mamu (Crețeni) | R124: - | S124: - | T124: PM-PP001 | U124: Petrom | V124: Petrom | W124: martie - aprilie iunie - septembrie | AB124: Craiova | AC124: reducere pe perioada trecerii PIG-ului / întrerupere în caz de blocare PIG | AD124: Reprogramare facută de Serviciul Diagnosticare Conducte | BE124: Afectat sau NU? | BF124: - | BG124: - | BH124: Afectat sau NU? | BI124: - | BJ124: - | BK124: Afectat sau NU? | BL124: - | BM124: -
A125: 108 | B125: - | C125: X | D125: Inspecție 20” Hurezani - Drăgășani, 70km | E125: 171218 | F125: Mădulari | G125: Vâlcea | H125: 394216.24 | I125: 369063.53 | J125: 443476.28 | K125: 353552.9 | L125: - | M125: - | N125: - | O125: - | P125: PM0191 | Q125: Mădulari | R125: - | S125: - | T125: PM-PP001 | U125: Amromco, Petrom | V125: Amromco, Petrom | W125: martie - aprilie iunie - septembrie | AB125: Craiova | AC125: reducere pe perioada trecerii PIG-ului / întrerupere în caz de blocare PIG | AD125: Reprogramare facută de Serviciul Diagnosticare Conducte | BE125: Afectat sau NU? | BF125: - | BG125: - | BH125: Afectat sau NU? | BI125: - | BJ125: - | BK125: Afectat sau NU? | BL125: - | BM125: -
A126: 109 | B126: - | C126: X | D126: Inspecție 20” Hurezani - Sâmbotin, 68km | E126: 78828 | F126: Socu | G126: Gorj | H126: 394190.83 | I126: 369053.71 | J126: 368939.5 | K126: 406604.47 | L126: - | M126: - | N126: - | O126: - | P126: PM0065 | Q126: Socu | R126: - | S126: - | T126: PM-PP001 | U126: Amromco | V126: Amromco | W126: martie - aprilie iunie - septembrie | AB126: Craiova | AC126: reducere pe perioada trecerii PIG-ului / întrerupere în caz de blocare PIG | AD126: Reprogramare facută de Serviciul Diagnosticare Conducte | BE126: Afectat sau NU? | BF126: - | BG126: - | BH126: Afectat sau NU? | BI126: - | BJ126: - | BK126: Afectat sau NU? | BL126: - | BM126: -
A127: 110 | B127: - | C127: X | D127: Inspecție 20” Hurezani - Sâmbotin, 68km | E127: 78828 | F127: Socu | G127: Gorj | H127: 394190.83 | I127: 369053.71 | J127: 368939.5 | K127: 406604.47 | L127: - | M127: - | N127: - | O127: - | P127: PM0289 | Q127: Socu II | R127: - | S127: - | T127: PM-PP001 | U127: Amromco | V127: Amromco | W127: martie - aprilie iunie - septembrie | AB127: Craiova | AC127: reducere pe perioada trecerii PIG-ului / întrerupere în caz de blocare PIG | AD127: Reprogramare facută de Serviciul Diagnosticare Conducte | BE127: Afectat sau NU? | BF127: - | BG127: - | BH127: Afectat sau NU? | BI127: - | BJ127: - | BK127: Afectat sau NU? | BL127: - | BM127: -
A128: 111 | B128: - | C128: X | D128: Inspecție 20” Hurezani - Sâmbotin, 68km | E128: 78855 | F128: Petrești | G128: Gorj | H128: 394190.83 | I128: 369053.71 | J128: 368939.5 | K128: 406604.47 | L128: - | M128: - | N128: - | O128: - | P128: PM0223 | Q128: Petrești-Bărbătești | R128: - | S128: - | T128: PM-PP001 | U128: Petrom | V128: Petrom | W128: martie - aprilie iunie - septembrie | AB128: Craiova | AC128: reducere pe perioada trecerii PIG-ului / întrerupere în caz de blocare PIG | AD128: Reprogramare facută de Serviciul Diagnosticare Conducte | BE128: Afectat sau NU? | BF128: - | BG128: - | BH128: Afectat sau NU? | BI128: - | BJ128: - | BK128: Afectat sau NU? | BL128: - | BM128: -
A129: 112 | B129: - | C129: X | D129: Inspecție 20” Hurezani - Sâmbotin, 68km | E129: 78463 | F129: Țicleni | G129: Gorj | H129: 394190.83 | I129: 369053.71 | J129: 368939.5 | K129: 406604.47 | L129: - | M129: - | N129: - | O129: - | P129: PM0272 | Q129: Dezbenzinare Țicleni | R129: - | S129: - | T129: PM-PP001 | U129: Petrom | V129: Petrom | W129: martie - aprilie iunie - septembrie | AB129: Craiova | AC129: reducere pe perioada trecerii PIG-ului / întrerupere în caz de blocare PIG | AD129: Reprogramare facută de Serviciul Diagnosticare Conducte | BE129: Afectat sau NU? | BF129: - | BG129: - | BH129: Afectat sau NU? | BI129: - | BJ129: - | BK129: Afectat sau NU? | BL129: - | BM129: -
A130: 113 | B130: - | C130: X | D130: Inspecție 20” Hurezani - Sâmbotin, 68km | E130: 82555 | F130: Turburea | G130: Gorj | H130: 394190.83 | I130: 369053.71 | J130: 368939.5 | K130: 406604.47 | L130: - | M130: - | N130: - | O130: - | P130: PM0201 | Q130: Turburea C2 | R130: - | S130: - | T130: PM-PP001 | U130: Petrom | V130: Petrom | W130: martie - aprilie iunie - septembrie | AB130: Craiova | AC130: reducere pe perioada trecerii PIG-ului / întrerupere în caz de blocare PIG | AD130: Reprogramare facută de Serviciul Diagnosticare Conducte | BE130: Afectat sau NU? | BF130: - | BG130: - | BH130: Afectat sau NU? | BI130: - | BJ130: - | BK130: Afectat sau NU? | BL130: - | BM130: -
A131: 114 | B131: - | C131: X | D131: Inspecție 20” Hurezani - Sâmbotin, 68km | E131: 71064 | F131: Brădești | G131: Dolj | H131: 394190.83 | I131: 369053.71 | J131: 368939.5 | K131: 406604.47 | L131: - | M131: - | N131: - | O131: - | P131: PM0277 | Q131: Brădești | R131: - | S131: - | T131: PM-PP001 | U131: Petrom | V131: Petrom | W131: martie - aprilie iunie - septembrie | AB131: Craiova | AC131: reducere pe perioada trecerii PIG-ului / întrerupere în caz de blocare PIG | AD131: Reprogramare facută de Serviciul Diagnosticare Conducte | BE131: Afectat sau NU? | BF131: - | BG131: - | BH131: Afectat sau NU? | BI131: - | BJ131: - | BK131: Afectat sau NU? | BL131: - | BM131: -
A132: 115 | B132: - | C132: X | D132: Inspecție 20” Hurezani - Sâmbotin, 68km | E132: 81816 | F132: Bibești | G132: Gorj | H132: 394190.83 | I132: 369053.71 | J132: 368939.5 | K132: 406604.47 | L132: - | M132: - | N132: - | O132: - | P132: PM0196 | Q132: Bibești | R132: - | S132: - | T132: PM-PP001 | U132: Romgaz, Amromco | V132: Romgaz, Amromco | W132: martie - aprilie iunie - septembrie | AB132: Craiova | AC132: reducere pe perioada trecerii PIG-ului / întrerupere în caz de blocare PIG | AD132: Reprogramare facută de Serviciul Diagnosticare Conducte | BE132: Afectat sau NU? | BF132: - | BG132: - | BH132: Afectat sau NU? | BI132: - | BJ132: - | BK132: Afectat sau NU? | BL132: - | BM132: -
A133: 116 | B133: - | C133: X | D133: Inspecție 20” Hurezani - Sâmbotin, 68km | E133: 80506 | F133: Hurezani | G133: Gorj | H133: 394190.83 | I133: 369053.71 | J133: 368939.5 | K133: 406604.47 | L133: - | M133: - | N133: - | O133: - | P133: PM0205 | Q133: Hurezani SU | R133: - | S133: - | T133: PM-PP001 | U133: Romgaz | V133: Romgaz | W133: martie - aprilie iunie - septembrie | AB133: Craiova | AC133: reducere pe perioada trecerii PIG-ului / întrerupere în caz de blocare PIG | AD133: Reprogramare facută de Serviciul Diagnosticare Conducte | BE133: Afectat sau NU? | BF133: - | BG133: - | BH133: Afectat sau NU? | BI133: - | BJ133: - | BK133: Afectat sau NU? | BL133: - | BM133: -
A134: 117 | B134: - | C134: X | D134: Inspecție 20” Hurezani - Sâmbotin, 68km | E134: 78089 | F134: Turcinești | G134: Gorj | H134: 394190.83 | I134: 369053.71 | J134: 368939.5 | K134: 406604.47 | L134: - | M134: - | N134: SM0200D0 | O134: Turcinești | P134: - | Q134: - | R134: - | S134: - | T134: SM-SD001 | U134: Engie, Electrica Furnizare, Premier Energy Trading, Premier Energy, Restart Energy, Wiee România, E.On Energie, Petrom Gas, Cez Vânzare, Enel Energie, Gas&Power, Gaz Est, Met România, Nova Power, Euro Seven Industry, Oligopol, Energy Distribution, Electrocentrale Constanța, Hargaz, Conef Gaz, Megaconstruct, Distrigaz Vest, Electrocentrale București, Next Energy, Cis Gaz, Transenergo, Aderro, Tinmar, Enel Muntenia, RWE Supply, Romgaz, Cyeb, Entrex, Petrom, Electric&Gas, Eva Energy, Gas Energy Echoterm, Energy Gas Provider, Renovatio, Monsson | V134: Distrigaz Sud Rețele | W134: martie - aprilie iunie - septembrie | AB134: Craiova | AC134: întrerupere în caz de blocare PIG | AD134: Reprogramare facută de Serviciul Diagnosticare Conducte | BE134: Afectat sau NU? | BF134: - | BG134: - | BH134: Afectat sau NU? | BI134: - | BJ134: - | BK134: Afectat sau NU? | BL134: - | BM134: -
A135: 118 | B135: - | C135: X | D135: Inspecție 20” Hurezani - Sâmbotin, 68km | E135: 78089 | F135: Rugi | G135: Gorj | H135: 394190.83 | I135: 369053.71 | J135: 368939.5 | K135: 406604.47 | L135: - | M135: - | N135: SM0187D0 | O135: Rugi | P135: - | Q135: - | R135: - | S135: - | T135: SM-SD001 | U135: Engie, Electrica Furnizare, Premier Energy Trading, Premier Energy, Restart Energy, Wiee România, E.On Energie, Petrom Gas, Cez Vânzare, Enel Energie, Gas&Power, Gaz Est, Met România, Nova Power, Euro Seven Industry, Oligopol, Energy Distribution, Electrocentrale Constanța, Hargaz, Conef Gaz, Megaconstruct, Distrigaz Vest, Electrocentrale București, Next Energy, Cis Gaz, Transenergo, Aderro, Tinmar, Enel Muntenia, RWE Supply, Romgaz, Cyeb, Entrex, Petrom, Electric&Gas, Eva Energy, Gas Energy Echoterm, Energy Gas Provider, Renovatio, Monsson | V135: Distrigaz Sud Rețele | W135: martie - aprilie iunie - septembrie | AB135: Craiova | AC135: întrerupere în caz de blocare PIG | AD135: Reprogramare facută de Serviciul Diagnosticare Conducte | BE135: Afectat sau NU? | BF135: - | BG135: - | BH135: Afectat sau NU? | BI135: - | BJ135: - | BK135: Afectat sau NU? | BL135: - | BM135: -
A136: 119 | B136: - | C136: X | D136: Inspecție 20” Hurezani - Sâmbotin, 68km | E136: 82136 | F136: Alexeni | G136: Gorj | H136: 394190.83 | I136: 369053.71 | J136: 368939.5 | K136: 406604.47 | L136: - | M136: - | N136: SM0188D0 | O136: Alexeni | P136: - | Q136: - | R136: - | S136: - | T136: SM-SD001 | U136: Engie, Electrica Furnizare, Premier Energy Trading, Premier Energy, Restart Energy, Wiee România, E.On Energie, Petrom Gas, Cez Vânzare, Enel Energie, Gas&Power, Gaz Est, Met România, Nova Power, Euro Seven Industry, Oligopol, Energy Distribution, Electrocentrale Constanța, Hargaz, Conef Gaz, Megaconstruct, Distrigaz Vest, Electrocentrale București, Next Energy, Cis Gaz, Transenergo, Aderro, Tinmar, Enel Muntenia, RWE Supply, Romgaz, Cyeb, Entrex, Petrom, Electric&Gas, Eva Energy, Gas Energy Echoterm, Energy Gas Provider, Renovatio, Monsson | V136: Distrigaz Sud Rețele | W136: martie - aprilie iunie - septembrie | AB136: Craiova | AC136: întrerupere în caz de blocare PIG | AD136: Reprogramare facută de Serviciul Diagnosticare Conducte | BE136: Afectat sau NU? | BF136: - | BG136: - | BH136: Afectat sau NU? | BI136: - | BJ136: - | BK136: Afectat sau NU? | BL136: - | BM136: -
A137: 120 | B137: - | C137: X | D137: Inspecție 20” Hurezani - Sâmbotin, 68km | E137: 82136 | F137: Pârvulești | G137: Gorj | H137: 394190.83 | I137: 369053.71 | J137: 368939.5 | K137: 406604.47 | L137: - | M137: - | N137: SM0189D0 | O137: Pârvulești | P137: - | Q137: - | R137: - | S137: - | T137: SM-SD001 | U137: Engie, Electrica Furnizare, Premier Energy Trading, Premier Energy, Restart Energy, Wiee România, E.On Energie, Petrom Gas, Cez Vânzare, Enel Energie, Gas&Power, Gaz Est, Met România, Nova Power, Euro Seven Industry, Oligopol, Energy Distribution, Electrocentrale Constanța, Hargaz, Conef Gaz, Megaconstruct, Distrigaz Vest, Electrocentrale București, Next Energy, Cis Gaz, Transenergo, Aderro, Tinmar, Enel Muntenia, RWE Supply, Romgaz, Cyeb, Entrex, Petrom, Electric&Gas, Eva Energy, Gas Energy Echoterm, Energy Gas Provider, Renovatio, Monsson | V137: Distrigaz Sud Rețele | W137: martie - aprilie iunie - septembrie | AB137: Craiova | AC137: întrerupere în caz de blocare PIG | AD137: Reprogramare facută de Serviciul Diagnosticare Conducte | BE137: Afectat sau NU? | BF137: - | BG137: - | BH137: Afectat sau NU? | BI137: - | BJ137: - | BK137: Afectat sau NU? | BL137: - | BM137: -
A138: 121 | B138: - | C138: X | D138: Inspecție 20” Hurezani - Sâmbotin, 68km | E138: 81576 | F138: Runcu | G138: Gorj | H138: 394190.83 | I138: 369053.71 | J138: 368939.5 | K138: 406604.47 | L138: - | M138: - | N138: SM0186D0 | O138: Spitalul de PNF Tudor Vladimirescu Runcu | P138: - | Q138: - | R138: - | S138: - | T138: SM-CF001 | U138: Engie | V138: Spitalul de PNF Tudor Vladimirescu Runcu | W138: martie - aprilie iunie - septembrie | AB138: Craiova | AC138: întrerupere în caz de blocare PIG | AD138: Reprogramare facută de Serviciul Diagnosticare Conducte | BE138: Afectat sau NU? | BF138: - | BG138: - | BH138: Afectat sau NU? | BI138: - | BJ138: - | BK138: Afectat sau NU? | BL138: - | BM138: -
A139: 122 | B139: - | C139: X | D139: Inspecție 20” Hurezani - Sâmbotin, 68km | E139: 77812 | F139: Tg. Jiu | G139: Gorj | H139: 394190.83 | I139: 369053.71 | J139: 368939.5 | K139: 406604.47 | L139: - | M139: - | N139: SM0195D0 | O139: SC Piroux România Târgu Jiu | P139: - | Q139: - | R139: - | S139: - | T139: SM-CF001 | U139: Cez Vânzare | V139: SC Piroux Industrie România SRL | W139: martie - aprilie iunie - septembrie | AB139: Craiova | AC139: întrerupere în caz de blocare PIG | AD139: Reprogramare facută de Serviciul Diagnosticare Conducte | BE139: Afectat sau NU? | BF139: - | BG139: - | BH139: Afectat sau NU? | BI139: - | BJ139: - | BK139: Afectat sau NU? | BL139: - | BM139: -
A140: 123 | B140: - | C140: X | D140: Reparație 6" racord alimentare ELSID Titu, zona SRM Elsid | E140: 66081 | F140: Titu | G140: Dimbovita | H140: 540271.56 | I140: 360541.04 | J140: 544542.8 | K140: 352331.31 | L140: - | M140: - | N140: SM0147D0 | O140: SC Elsid Titu | P140: - | Q140: - | R140: - | S140: - | T140: SM-CF001 | U140: E.on Energie | V140: Elsid Titu | W140: august - septembrie | AB140: București | BE140: Afectat sau NU? | BF140: - | BG140: - | BH140: Afectat sau NU? | BI140: - | BJ140: - | BK140: Afectat sau NU? | BL140: - | BM140: -
A141: 124 | B141: - | C141: X | D141: Reparație 20" Adjudul Vechi - Siliștea, zonele Braniștea, Schela și Independența | E141: 77153 | F141: Schela | G141: Galați | H141: 724254.19 | I141: 442629.69 | J141: 716510.08 | K141: 451620.98 | L141: - | M141: - | N141: SM0522D0 | O141: Schela | P141: - | Q141: - | R141: - | S141: - | T141: SM-SD001 | U141: Engie, Electrica Furnizare, Premier Energy Trading, Premier Energy, Restart Energy, Wiee România, E.On Energie, Petrom Gas, Cez Vânzare, Enel Energie, Gas&Power, Gaz Est, Met România, Nova Power, Euro Seven Industry, Oligopol, Energy Distribution, Electrocentrale Constanța, Hargaz, Conef Gaz, Megaconstruct, Distrigaz Vest, Electrocentrale București, Next Energy, Cis Gaz, Transenergo, Aderro, Tinmar, Enel Muntenia, RWE Supply, Romgaz, Cyeb, Entrex, Petrom, Electric&Gas, Eva Energy, Gas Energy Echotern, Energy Gas Provider, Renovatio, Monsson | V141: Distrigaz Sud Rețele | W141: aprilie iulie - septembrie | AB141: Brăila | AD141: Funcție de achiziționarea materialelor necesare/finalizarea procedurii de achiziție cu confirmarea Departamentului Dezvoltare care gestionează demararea/finalizarea lucrării | BE141: Afectat sau NU? | BF141: - | BG141: - | BH141: Afectat sau NU? | BI141: - | BJ141: - | BK141: Afectat sau NU? | BL141: - | BM141: -
A142: 125 | B142: - | C142: X | D142: Reparație 20" Adjudul Vechi - Siliștea, zonele Braniștea, Schela și Independența | E142: 76585 | F142: Independența | G142: Galați | H142: 724254.19 | I142: 442629.69 | J142: 716510.08 | K142: 451620.98 | L142: - | M142: - | N142: SM0523D2 | O142: Independența | P142: - | Q142: - | R142: - | S142: - | T142: SM-SD001 | U142: Engie, Electrica Furnizare, Premier Energy Trading, Premier Energy, Restart Energy, Wiee România, E.On Energie, Petrom Gas, Cez Vânzare, Enel Energie, Gas&Power, Gaz Est, Met România, Nova Power, Euro Seven Industry, Oligopol, Energy Distribution, Electrocentrale Constanța, Hargaz, Conef Gaz, Megaconstruct, Distrigaz Vest, Electrocentrale București, Next Energy, Cis Gaz, Transenergo, Aderro, Tinmar, Enel Muntenia, RWE Supply, Romgaz, Cyeb, Entrex, Petrom, Electric&Gas, Eva Energy, Gas Energy Echotern, Energy Gas Provider, Renovatio, Monsson | V142: Distrigaz Sud Rețele | W142: aprilie iulie - septembrie | AB142: Brăila | AD142: Funcție de achiziționarea materialelor necesare/finalizarea procedurii de achiziție cu confirmarea Departamentului Dezvoltare care gestionează demararea/finalizarea lucrării | BE142: Afectat sau NU? | BF142: - | BG142: - | BH142: Afectat sau NU? | BI142: - | BJ142: - | BK142: Afectat sau NU? | BL142: - | BM142: -
A143: =A142+1 -> 126 | B143: - | C143: X | D143: Reparație 20" Adjudul Vechi - Siliștea, zonele Braniștea, Schela și Independența | E143: 42682 | F143: Lascăr Catargiu | G143: Galați | H143: 724254.19 | I143: 442629.69 | J143: 716510.08 | K143: 451620.98 | L143: - | M143: - | N143: SM0519D0 | O143: Independența - Petrom | P143: - | Q143: - | R143: - | S143: - | T143: SM-CF001 | U143: Engie, E.On Furnizare, Petrom Gas, Cez Vânzare, Petrom | V143: Petrom | W143: aprilie iulie - septembrie | AB143: Brăila | AD143: Funcție de achiziționarea materialelor necesare/finalizarea procedurii de achiziție cu confirmarea Departamentului Dezvoltare care gestionează demararea/finalizarea lucrării | BE143: Afectat sau NU? | BF143: - | BG143: - | BH143: Afectat sau NU? | BI143: - | BJ143: - | BK143: Afectat sau NU? | BL143: - | BM143: -
A144: 127 | B144: - | C144: X | D144: Punere în siguranță a conductei 12" Vlădeni - Mănești, zona Vlădeni | E144: 67256 | F144: Vlădeni | G144: Dâmbovița | H144: 561830.12 | I144: 373144.01 | J144: 567501.55 | K144: 372878.02 | L144: - | M144: - | N144: SM0137D0 | O144: Vlădeni | P144: - | Q144: - | R144: - | S144: - | T144: SM-SD001 | U144: Engie, Electrica Furnizare, Premier Energy Trading, Premier Energy, Restart Energy, Wiee România, E.On Energie, Petrom Gas, Cez Vânzare, Enel Energie, Gas&Power, Gaz Est, Met România, Nova Power, Euro Seven Industry, Oligopol, Energy Distribution, Electrocentrale Constanța, Hargaz, Conef Gaz, Megaconstruct, Distrigaz Vest, Electrocentrale București, Next Energy, Cis Gaz, Transenergo, Aderro, Tinmar, Enel Muntenia, RWE Supply, Romgaz, Cyeb, Entrex, Petrom, Electric&Gas, Eva Energy, Gas Energy Echotern, Energy Gas Provider, Renovatio | V144: Distrigaz Sud Rețele | W144: septembrie | AB144: București | BE144: Afectat sau NU? | BF144: - | BG144: - | BH144: Afectat sau NU? | BI144: - | BJ144: - | BK144: Afectat sau NU? | BL144: - | BM144: -
A145: 128 | B145: - | C145: X | D145: Punere în siguranță a conductei 12" Vlădeni - Mănești, zona Vlădeni | E145: 134194 | F145: Coada Izvolului | G145: Prahova | H145: 561830.12 | I145: 373144.01 | J145: 567501.55 | K145: 372878.02 | L145: - | M145: - | N145: SM0033D0 | O145: Coada Izvorului | P145: - | Q145: - | R145: - | S145: - | T145: SM-SD001 | U145: Engie, Electrica Furnizare, Premier Energy Trading, Premier Energy, Restart Energy, Wiee România, E.On Energie, Petrom Gas, Cez Vânzare, Enel Energie, Gas&Power, Gaz Est, Met România, Nova Power, Euro Seven Industry, Oligopol, Energy Distribution, Electrocentrale Constanța, Hargaz, Conef Gaz, Megaconstruct, Distrigaz Vest, Electrocentrale București, Next Energy, Cis Gaz, Transenergo, Aderro, Tinmar, Enel Muntenia, RWE Supply, Romgaz, Cyeb, Entrex, Petrom, Electric&Gas, Eva Energy, Gas Energy Echotern, Energy Gas Provider, Renovatio | V145: Distrigaz Sud Rețele | W145: septembrie | AB145: București | BE145: Afectat sau NU? | BF145: - | BG145: - | BH145: Afectat sau NU? | BI145: - | BJ145: - | BK145: Afectat sau NU? | BL145: - | BM145: -
A146: 129 | B146: - | C146: X | D146: Punere în siguranță a conductei 12" Vlădeni - Mănești, zona Vlădeni | E146: 67256 | F146: Vlădeni | G146: Dâmbovița | H146: 561830.12 | I146: 373144.01 | J146: 567501.55 | K146: 372878.02 | L146: - | M146: - | N146: - | O146: - | P146: - | Q146: - | R146: PM0014 | S146: PM Vlădeni | T146: PM-PP001 | U146: Romgaz, Amromco | V146: Romgaz, Amromco | W146: septembrie | AB146: București | BE146: =IF(C146="X",IF(AN146="","Afectat sau NU?",IF(AN146="DA",IF(AK146="","Neinformat",NETWORKDAYS(AK146+AL146,AE146+AF146,$BR$2:$BR$14)-2),"Nu a fost afectat producator/consumator")),"") -> Afectat sau NU? | BF146: - | BG146: - | BH146: =IF(C146="X",IF(AN146="","Afectat sau NU?",IF(AN146="DA",IF(AI146="","Neinformat",NETWORKDAYS(AI146+AJ146,AE146+AF146,$BR$2:$BR$14)-2),"Nu a fost afectat producator/consumator")),"") -> Afectat sau NU? | BI146: - | BJ146: - | BK146: Afectat sau NU? | BL146: - | BM146: -
A147: 130 | B147: - | C147: X | D147: Înlocuire tronson conductă 32" pe conducta de transport 28" Platou Izvor Sinaia - Filipești (fir II), zona Drăgăneasa, lucrări de mentenanță robinete în NT Filipești, punere în siguranță a conductei 6” racord alimentare SRM Măgureni, zona Măgureni | E147: 134050 | F147: Măgureni | G147: Prahova | H147: 554239.9 | I147: 400506.9 | J147: 561557.84 | K147: 386871.14 | L147: - | M147: - | N147: SM0506D0 | O147: Măgureni | P147: - | Q147: - | R147: - | S147: - | T147: SM-SD001 | U147: Engie, Enel Muntenia, MM Data | V147: MMDATA | W147: septembrie | AB147: București | BE147: Afectat sau NU? | BF147: - | BG147: - | BH147: Afectat sau NU? | BI147: - | BJ147: - | BK147: Afectat sau NU? | BL147: - | BM147: -
A148: 131 | B148: - | C148: X | D148: Punere în siguranță a conductei 8 5/8" racord PM Alămor, zona Alămor | E148: 144795 | F148: Alămor | G148: Sibiu | H148: 422836.38 | I148: 493063.02 | J148: 422864.33 | K148: 492914.95 | L148: - | M148: - | N148: - | O148: - | P148: - | Q148: - | R148: PM0140 | S148: PM Alămor | T148: PM-PP001 | U148: E.on Energie, Enel Energie, Engie, Cordun Gaz, Petrom Gas | V148: Romgaz | W148: septembrie | AB148: Mediaș | BE148: Afectat sau NU? | BF148: - | BG148: - | BH148: Afectat sau NU? | BI148: - | BJ148: - | BK148: Afectat sau NU? | BL148: - | BM148: -
A149: 132 | B149: - | C149: X | D149: Punere în siguranță a conductei 8 5/8" racord PM Alămor, zona Alămor | E149: 144795 | F149: Alămor | G149: Sibiu | H149: 422836.38 | I149: 493063.02 | J149: 422864.33 | K149: 492914.95 | L149: - | M149: - | N149: SM0748D0 | O149: SRM Alămor | P149: - | Q149: - | R149: - | S149: - | T149: SM-SD001 | U149: Cez Vânzare, CPL Concordia, E.on Energie, E.on Gaz Furnizare, Electrica Furnizare, Enel Energie, Energy Distribution, Engie, Gazmir, Met Romania, Premier Energy, RWE Supply, Aderro GP, Cis Gaz, Conef Gaz, Cyeb, Design Proiect, Distrigaz Vest, Electric&Gas, Enel Muntenia, Gas&Power, Energy Gas Provider, Entrex, Eva Energy, Gaz Est, Hargaz, Hermes Energy, Next Energy, Nova Power, Petrom Gas, Petrom, Pado Group, Premier Energy, Prisma Serv, Renovatio, Restart Energy, RWE, SST Grup, Tetarom, Wiee, Tinmar | V149: Delgaz Grid | W149: septembrie | AB149: Mediaș | BE149: Afectat sau NU? | BF149: - | BG149: - | BH149: Afectat sau NU? | BI149: - | BJ149: - | BK149: Afectat sau NU? | BL149: - | BM149: -
A150: 133 | B150: - | C150: X | D150: Reabilitare 20" Șendreni - Albești, județul Buzău | E150: 46830 | F150: Ghergheasa | G150: Buzău | H150: 673804.03 | I150: 417584.6 | J150: 664130.82 | K150: 407745.49 | L150: - | M150: - | N150: SM0181D0 | O150: Ghergheasa | P150: - | Q150: - | R150: - | S150: - | T150: SM-SD001 | U150: Engie, Electrica Furnizare, Premier Energy Trading, Premier Energy, Restart Energy, Wiee România, E.On Energie, Petrom Gas, Cez Vânzare, Enel Energie, Gas&Power, Gaz Est, Met România, Nova Power, Euro Seven Industry, Oligopol, Energy Distribution, Electrocentrale Constanța, Hargaz, Conef Gaz, Megaconstruct, Distrigaz Vest, Electrocentrale București, Next Energy, Cis Gaz, Transenergo, Aderro, Tinmar, Enel Muntenia, RWE Supply, Romgaz, Cyeb, Entrex, Petrom, Electric&Gas, Eva Energy, Gas Energy Echotern, Energy Gas Provider, Renovatio, Monsson, Electric Planners | V150: Distrigaz Sud Rețele | W150: mai mai - septembrie | AB150: Brăila | AD150: Funcție de achiziționarea materialelor necesare/finalizarea procedurii de achiziție cu confirmarea Departamentului Dezvoltare care gestionează demararea/finalizarea lucrării | BE150: Afectat sau NU? | BF150: - | BG150: - | BH150: Afectat sau NU? | BI150: - | BJ150: - | BK150: Afectat sau NU? | BL150: - | BM150: -
A151: 134 | B151: - | C151: X | D151: Reabilitare 20" Șendreni - Albești, județul Buzău | E151: 46830 | F151: Ghergheasa | G151: Buzău | H151: 673815.46 | I151: 417595.58 | J151: 673804.03 | K151: 417584.6 | L151: - | M151: - | N151: - | O151: - | P151: - | Q151: - | R151: PM0021 | S151: Ghergheasa (Boldu) | T151: PM-PP001 | U151: Romgaz | V151: Romgaz | W151: mai mai - septembrie | AB151: Brăila | AD151: Funcție de achiziționarea materialelor necesare/finalizarea procedurii de achiziție cu confirmarea Departamentului Dezvoltare care gestionează demararea/finalizarea lucrării | BE151: Afectat sau NU? | BF151: - | BG151: - | BH151: Afectat sau NU? | BI151: - | BJ151: - | BK151: Afectat sau NU? | BL151: - | BM151: -
A152: 135 | B152: - | C152: X | D152: Reabilitare 20" Șendreni - Albești, județul Buzău | E152: 46830 | F152: Ghergheasa | G152: Buzău | H152: 673815.46 | I152: 417595.58 | J152: 673804.03 | K152: 417584.6 | L152: - | M152: - | N152: - | O152: - | P152: - | Q152: - | R152: PM0261 | S152: Ghergheasa | T152: PM-PP001 | U152: Amromco | V152: Amromco | W152: mai mai - septembrie | AB152: Brăila | AD152: Funcție de achiziționarea materialelor necesare/finalizarea procedurii de achiziție cu confirmarea Departamentului Dezvoltare care gestionează demararea/finalizarea lucrării | BE152: Afectat sau NU? | BF152: - | BG152: - | BH152: Afectat sau NU? | BI152: - | BJ152: - | BK152: Afectat sau NU? | BL152: - | BM152: -
A153: 136 | B153: - | C153: X | D153: Pregătirea conductei 20” Ișalnița - Cruce Ghercești pentru transformarea în conductă godevilabilă, zonele Melinești, CET II Craiova și Ghercești | E153: 72409 | F153: Ghercești | G153: Dolj | H153: 399121.4 | I153: 320728.24 | J153: 409613.93 | K153: 317372.3 | L153: - | M153: - | N153: - | O153: - | P153: PM0275 | Q153: Stație Centrală Ghercești EXTR | R153: - | S153: - | T153: VPM01 | U153: Transgaz | V153: Depogaz Ploiești | W153: august - septembrie an gazier 2019-2020 | AB153: Craiova | AD153: Se află în procedura de atribuire contract | BE153: Afectat sau NU? | BF153: - | BG153: - | BH153: Afectat sau NU? | BI153: - | BJ153: - | BK153: Afectat sau NU? | BL153: - | BM153: -
A154: 137 | B154: - | C154: X | D154: Pregătirea conductei 20” Ișalnița - Cruce Ghercești pentru transformarea în conductă godevilabilă, zonele Melinești, CET II Craiova și Ghercești | E154: 72409 | F154: Ghercești | G154: Dolj | H154: 399121.4 | I154: 320728.24 | J154: 409613.93 | K154: 317372.3 | L154: - | M154: - | N154: SM1142D0 | O154: Stație Centrală Ghercești INMA | P154: - | Q154: - | R154: - | S154: - | T154: VSM01 | U154: Axpo Energy, Petrom Gas | V154: Depogaz Ploiești | W154: august - septembrie an gazier 2019-2020 | AB154: Craiova | AD154: Se află în procedura de atribuire contract | BE154: Afectat sau NU? | BF154: - | BG154: - | BH154: Afectat sau NU? | BI154: - | BJ154: - | BK154: Afectat sau NU? | BL154: - | BM154: -
A155: 138 | B155: - | C155: X | D155: Pregătirea conductei 20” Ișalnița - Cruce Ghercești pentru transformarea în conductă godevilabilă, zonele Melinești, CET II Craiova și Ghercești | E155: 73246 | F155: Mischii | G155: Dolj | H155: 399121.4 | I155: 320728.24 | J155: 409613.93 | K155: 317372.3 | L155: - | M155: - | N155: SM1037D0 | O155: Mischii | P155: - | Q155: - | R155: - | S155: - | T155: SM-SD001 | U155: Engie, Electrica Furnizare, Premier Energy Trading, Premier Energy, Restart Energy, Wiee România, E.On Energie, Petrom Gas, Cez Vânzare, Enel Energie, Gas&Power, Gaz Est, Met România, Nova Power, Euro Seven Industry, Oligopol, Energy Distribution, Electrocentrale Constanța, Hargaz, Conef Gaz, Megaconstruct, Distrigaz Vest, Electrocentrale București, Next Energy, Cis Gaz, Transenergo, Aderro, Tinmar, Enel Muntenia, RWE Supply, Romgaz, Cyeb, Entrex, Petrom, Electric&Gas, Eva Energy, Gas Energy Echotern, Energy Gas Provider, Renovatio | V155: Distrigaz Sud Rețele | W155: august - septembrie an gazier 2019-2020 | AB155: Craiova | AD155: Se află în procedura de atribuire contract | BE155: Afectat sau NU? | BF155: - | BG155: - | BH155: Afectat sau NU? | BI155: - | BJ155: - | BK155: Afectat sau NU? | BL155: - | BM155: -
A156: 139 | B156: - | C156: X | D156: Pregătirea conductei 20” Ișalnița - Cruce Ghercești pentru transformarea în conductă godevilabilă, zonele Melinești, CET II Craiova și Ghercești | E156: 72418 | F156: Ghercești | G156: Dolj | H156: 399121.4 | I156: 320728.24 | J156: 409613.93 | K156: 317372.3 | L156: - | M156: - | N156: SM1146D0 | O156: Ghercești | P156: - | Q156: - | R156: - | S156: - | T156: SM-SD001 | U156: Petrom, Restart Energy, Romgaz | V156: Romgaz Distribuție | W156: august - septembrie an gazier 2019-2020 | AB156: Craiova | AD156: Se află în procedura de atribuire contract | BE156: Afectat sau NU? | BF156: - | BG156: - | BH156: Afectat sau NU? | BI156: - | BJ156: - | BK156: Afectat sau NU? | BL156: - | BM156: -
A157: 140 | B157: - | C157: X | D157: Pregătirea conductei 20” Ișalnița - Cruce Ghercești pentru transformarea în conductă godevilabilă, zonele Melinești, CET II Craiova și Ghercești | E157: 73629 | F157: Pielești | G157: Dolj | H157: 399121.4 | I157: 320728.24 | J157: 409613.93 | K157: 317372.3 | L157: - | M157: - | N157: SM1187D0 | O157: Pielești | P157: - | Q157: - | R157: - | S157: - | T157: SM-SD001 | U157: Cez Vânzare, E.on Energie, Enel Energie, Engie, Met Romania, Aderro GP, Enel Muntenia, Entrex Services, Megaconstruct, Petrom Gas, Petrom, Restart Energy, RWE, Tinmar | V157: Megaconstruct | W157: august - septembrie an gazier 2019-2020 | AB157: Craiova | AD157: Se află în procedura de atribuire contract | BE157: Afectat sau NU? | BF157: - | BG157: - | BH157: Afectat sau NU? | BI157: - | BJ157: - | BK157: Afectat sau NU? | BL157: - | BM157: -
A158: 141 | B158: - | C158: X | D158: Pregătirea conductei 20” Ișalnița - Cruce Ghercești pentru transformarea în conductă godevilabilă, zonele Melinești, CET II Craiova și Ghercești | E158: 69900 | F158: Craiova | G158: Dolj | H158: 399121.4 | I158: 320728.24 | J158: 409613.93 | K158: 317372.3 | L158: - | M158: - | N158: SM1158D0 | O158: CET Craiova II | P158: - | Q158: - | R158: - | S158: - | T158: SM-CF001 | U158: Premier Energy | V158: Complexul Energetic Oltenia | W158: august - septembrie an gazier 2019-2020 | AB158: Craiova | AD158: Se află în procedura de atribuire contract | BE158: Afectat sau NU? | BF158: - | BG158: - | BH158: Afectat sau NU? | BI158: - | BJ158: - | BK158: Afectat sau NU? | BL158: - | BM158: -
A159: 142 | B159: - | C159: X | D159: Pregătirea conductei 20” Ișalnița - Cruce Ghercești pentru transformarea în conductă godevilabilă, zonele Melinești, CET II Craiova și Ghercești | E159: 69900 | F159: Craiova | G159: Dolj | H159: 399121.4 | I159: 320728.24 | J159: 409613.93 | K159: 317372.3 | L159: - | M159: - | N159: SM0209D1 | O159: SC Ford Combinat | P159: - | Q159: - | R159: - | S159: - | T159: SM-CF001 | U159: Engie | V159: Ford România | W159: august - septembrie an gazier 2019-2020 | AB159: Craiova | AD159: Se află în procedura de atribuire contract | BE159: Afectat sau NU? | BF159: - | BG159: - | BH159: Afectat sau NU? | BI159: - | BJ159: - | BK159: Afectat sau NU? | BL159: - | BM159: -
A160: 143 | B160: - | C160: X | D160: Pregătirea conductei 20” Ișalnița - Cruce Ghercești pentru transformarea în conductă godevilabilă, zonele Melinești, CET II Craiova și Ghercești | E160: 69900 | F160: Craiova | G160: Dolj | H160: 399121.4 | I160: 320728.24 | J160: 409613.93 | K160: 317372.3 | L160: - | M160: - | N160: SM0209D2 | O160: Ford Craiova Casnici | P160: - | Q160: - | R160: - | S160: - | T160: SM-SD001 | U160: Engie, Electrica Furnizare, Premier Energy Trading, Premier Energy, Restart Energy, Wiee România, E.On Energie, Petrom Gas, Cez Vânzare, Enel Energie, Gas&Power, Gaz Est, Met România, Nova Power, Euro Seven Industry, Oligopol, Energy Distribution, Electrocentrale Constanța, Hargaz, Conef Gaz, Megaconstruct, Distrigaz Vest, Electrocentrale București, Next Energy, Cis Gaz, Transenergo, Aderro, Tinmar, Enel Muntenia, RWE Supply, Romgaz, Cyeb, Entrex, Petrom, Electric&Gas, Eva Energy, Gas Energy Echotern, Energy Gas Provider, Renovatio | V160: Distrigaz Sud Rețele | W160: august - septembrie an gazier 2019-2020 | AB160: Craiova | AD160: Se află în procedura de atribuire contract | BE160: Afectat sau NU? | BF160: - | BG160: - | BH160: Afectat sau NU? | BI160: - | BJ160: - | BK160: Afectat sau NU? | BL160: - | BM160: -
A161: 144 | B161: - | C161: X | D161: Pregătirea conductei 20” Ișalnița - Cruce Ghercești pentru transformarea în conductă godevilabilă, zonele Melinești, CET II Craiova și Ghercești | E161: 69900 | F161: Craiova | G161: Dolj | H161: 399121.4 | I161: 320728.24 | J161: 409613.93 | K161: 317372.3 | L161: - | M161: - | N161: SM0208D0 | O161: Craiova Sud | P161: - | Q161: - | R161: - | S161: - | T161: SM-SD001 | U161: Engie, Electrica Furnizare, Premier Energy Trading, Premier Energy, Restart Energy, Wiee România, E.On Energie, Petrom Gas, Cez Vânzare, Enel Energie, Gas&Power, Gaz Est, Met România, Nova Power, Euro Seven Industry, Oligopol, Energy Distribution, Electrocentrale Constanța, Hargaz, Conef Gaz, Megaconstruct, Distrigaz Vest, Electrocentrale București, Next Energy, Cis Gaz, Transenergo, Aderro, Tinmar, Enel Muntenia, RWE Supply, Romgaz, Cyeb, Entrex, Petrom, Electric&Gas, Eva Energy, Gas Energy Echotern, Energy Gas Provider, Renovatio | V161: Distrigaz Sud Rețele | W161: august - septembrie an gazier 2019-2020 | AB161: Craiova | AD161: Se află în procedura de atribuire contract | BE161: Afectat sau NU? | BF161: - | BG161: - | BH161: Afectat sau NU? | BI161: - | BJ161: - | BK161: Afectat sau NU? | BL161: - | BM161: -
A162: 145 | B162: - | C162: X | D162: Pregătirea conductei 20” Ișalnița - Cruce Ghercești pentru transformarea în conductă godevilabilă, zonele Melinești, CET II Craiova și Ghercești | E162: 70110 | F162: Podari | G162: Dolj | H162: 399121.4 | I162: 320728.24 | J162: 409613.93 | K162: 317372.3 | L162: - | M162: - | N162: SM1053D0 | O162: Podari | P162: - | Q162: - | R162: - | S162: - | T162: SM-SD001 | U162: Engie, Electrica Furnizare, Premier Energy Trading, Premier Energy, Restart Energy, Wiee România, E.On Energie, Petrom Gas, Cez Vânzare, Enel Energie, Gas&Power, Gaz Est, Met România, Nova Power, Euro Seven Industry, Oligopol, Energy Distribution, Electrocentrale Constanța, Hargaz, Conef Gaz, Megaconstruct, Distrigaz Vest, Electrocentrale București, Next Energy, Cis Gaz, Transenergo, Aderro, Tinmar, Enel Muntenia, RWE Supply, Romgaz, Cyeb, Entrex, Petrom, Electric&Gas, Eva Energy, Gas Energy Echotern, Energy Gas Provider, Renovatio | V162: Distrigaz Sud Rețele | W162: august - septembrie an gazier 2019-2020 | AB162: Craiova | AD162: Se află în procedura de atribuire contract | BE162: Afectat sau NU? | BF162: - | BG162: - | BH162: Afectat sau NU? | BI162: - | BJ162: - | BK162: Afectat sau NU? | BL162: - | BM162: -
A163: 146 | B163: - | C163: X | D163: Reabilitare 24" Paltin - Schitu Golești, județul Brașov | E163: 41621 | F163: Poiana Mărului | G163: Brașov | H163: 519566 | I163: 442939 | J163: 519566 | K163: 442939 | L163: - | M163: - | N163: SM0212D0 | O163: Poiana Mărului | P163: - | Q163: - | R163: - | S163: - | T163: SM-SD001 | U163: Engie, Electrica Furnizare, Premier Energy Trading, Premier Energy, Restart Energy, Wiee România, E.On Energie, Petrom Gas, Cez Vânzare, Enel Energie, Gas&Power, Gaz Est, Met România, Nova Power, Euro Seven Industry, Oligopol, Energy Distribution, Electrocentrale Constanța, Hargaz, Conef Gaz, Megaconstruct, Distrigaz Vest, Electrocentrale București, Next Energy, Cis Gaz, Transenergo, Aderro, Tinmar, Enel Muntenia, RWE Supply, Romgaz, Cyeb, Entrex, Petrom, Electric&Gas, Eva Energy, Gas Energy Echotern, Energy Gas Provider, Renovatio | V163: Distrigaz Sud Rețele | W163: august - septembrie | AB163: Brașov | BE163: Afectat sau NU? | BF163: - | BG163: - | BH163: Afectat sau NU? | BI163: - | BJ163: - | BK163: Afectat sau NU? | BL163: - | BM163: -
A164: 147 | B164: - | C164: X | D164: Reabilitare 24" Paltin - Schitu Golești, județul Brașov | E164: 40492 | F164: Zărnești | G164: Brașov | H164: 519566 | I164: 442939 | J164: 519566 | K164: 442939 | L164: - | M164: - | N164: SM1251D0 | O164: DS SMITH Paper Zărnești | P164: - | Q164: - | R164: - | S164: - | T164: SM-CF001 | U164: E.on Energie | V164: DS SMITH Paper Zărnești SRL | W164: august - septembrie | AB164: Brașov | BE164: Afectat sau NU? | BF164: - | BG164: - | BH164: Afectat sau NU? | BI164: - | BJ164: - | BK164: Afectat sau NU? | BL164: - | BM164: -
A165: 148 | B165: - | C165: X | D165: Reabilitare 24" Paltin - Schitu Golești, județul Brașov | E165: 41471 | F165: Moieciu de Jos | G165: Brașov | H165: 519566 | I165: 442939 | J165: 519566 | K165: 442939 | L165: - | M165: - | N165: SM1139D0 | O165: Moieciu | P165: - | Q165: - | R165: - | S165: - | T165: SM-SD001 | U165: Cez Vânzare, E.on Energie, Electrica Furnizare, Enel Energie, Energy Distribution, Engie, Met Romania, Premier Energy Trading, Aderro GP, Cis Gaz, Conef Gaz, Enel Muntenia, Energy Gas Provider, Eva Energy, Gaz Est, Hermes Energy, Megaconstruct, Next Energy, Nova Power, Petrom Gas, Petrom, Ottogaz, Premier Energy, Restart Energy, RWE, Top Gas Network, WIEE, Tinmar | V165: Premier Energy | W165: august - septembrie | AB165: Brașov | BE165: Afectat sau NU? | BF165: - | BG165: - | BH165: Afectat sau NU? | BI165: - | BJ165: - | BK165: Afectat sau NU? | BL165: - | BM165: -
A166: 149 | B166: - | C166: X | D166: Reabilitare 28" Seleuș - Cristur - Bățani, etapa 2B, județul Harghita | E166: 85582 | F166: Secuieni HG | G166: Harghita | H166: 528595 | I166: 498017 | J166: 528595 | K166: 498017 | L166: - | M166: - | N166: SM0374D0 | O166: Secuieni I HG | P166: - | Q166: - | R166: - | S166: - | T166: SM-SD001 | U166: E.on Energie, Electrica Furnizare, Engie, Electric&Gas, Gaz Est, Hargaz, Next Energy, Petrom Gas, Restart Energy, RWE | V166: Hargaz Harghita Gaz | W166: aprilie - septembrie | AB166: Brașov | BE166: Afectat sau NU? | BF166: - | BG166: - | BH166: Afectat sau NU? | BI166: - | BJ166: - | BK166: Afectat sau NU? | BL166: - | BM166: -
A167: 150 | B167: - | C167: X | D167: Reabilitare 28" Seleuș - Cristur - Bățani, etapa 2B, județul Harghita | E167: 85582 | F167: Secuieni HG | G167: Harghita | H167: 528595 | I167: 498017 | J167: 528595 | K167: 498017 | L167: - | M167: - | N167: SM0374D1 | O167: Secuieni II HG | P167: - | Q167: - | R167: - | S167: - | T167: SM-SD001 | U167: E.on Energie, Electrica Furnizare, Engie, Electric&Gas, Gaz Est, Hargaz, Next Energy, Petrom Gas, Restart Energy, RWE | V167: Hargaz Harghita Gaz | W167: aprilie - septembrie | AB167: Brașov | BE167: Afectat sau NU? | BF167: - | BG167: - | BH167: Afectat sau NU? | BI167: - | BJ167: - | BK167: Afectat sau NU? | BL167: - | BM167: -
A168: 151 | B168: - | C168: X | D168: Reabilitare 28" Seleuș - Cristur - Bățani, etapa 2B, județul Harghita | E168: 83525 | F168: Cristuru Secuiesc | G168: Harghita | H168: 502769 | I168: 530742 | J168: 502769 | K168: 530742 | L168: - | M168: - | N168: SM0373D0 | O168: Cristuru Secuiesc | P168: - | Q168: - | R168: - | S168: - | T168: SM-SD001 | U168: Cez Vânzare, CPL Concordia, E.on Energie, E.on Gaz Furnizare, Enel Energie, Energy Distribution, Engie, Gazmir, Met Romania, Premier Energy, RWE Supply, Aderro GP, Cis Gaz, Conef Gaz, Cyeb, Design Proiect, Distrigaz Vest, Electric&Gas, Enel Muntenia, Gas&Power, Energy Gas Provider, Entrex, Eva Energy, Gaz Est, Hargaz, Hermes Energy, Next Energy, Nova Power, Petrom Gas, Petrom, Pado Group, Premier Energy, Prisma Serv, Renovatio, Restart Energy, RWE, SST Grup, Tetarom, Wiee, Tinmar | V168: Delgaz Grid | W168: aprilie - septembrie | AB168: Brașov | BE168: Afectat sau NU? | BF168: - | BG168: - | BH168: Afectat sau NU? | BI168: - | BJ168: - | BK168: Afectat sau NU? | BL168: - | BM168: -
A169: 152 | B169: - | C169: X | D169: Reabilitare 28" Seleuș - Cristur - Bățani, etapa 2B, județul Harghita | E169: 85127 | F169: Porumbenii Mici | G169: Harghita | H169: 508388 | I169: 530078 | J169: 508388 | K169: 530078 | L169: - | M169: - | N169: SM0382D0 | O169: Porumbenii Mici | P169: - | Q169: - | R169: - | S169: - | T169: SM-SD001 | U169: E.on Energie, Electrica Furnizare, Engie, Electric&Gas, Gaz Est, Hargaz, Next Energy, Petrom Gas, Restart Energy, RWE | V169: Hargaz Harghita Gaz | W169: aprilie - septembrie | AB169: Brașov | BE169: Afectat sau NU? | BF169: - | BG169: - | BH169: Afectat sau NU? | BI169: - | BJ169: - | BK169: Afectat sau NU? | BL169: - | BM169: -
A170: 153 | B170: - | C170: X | D170: Reabilitare 28" Seleuș - Cristur - Bățani, etapa 2B, județul Harghita | E170: 85127 | F170: Porumbenii Mari | G170: Harghita | H170: 510975 | I170: 529795 | J170: 510975 | K170: 529795 | L170: - | M170: - | N170: SM0383D0 | O170: Porumbenii Mari | P170: - | Q170: - | R170: - | S170: - | T170: SM-SD001 | U170: E.on Energie, Electrica Furnizare, Engie, Electric&Gas, Gaz Est, Hargaz, Next Energy, Petrom Gas, Restart Energy, RWE | V170: Hargaz Harghita Gaz | W170: aprilie - septembrie | AB170: Brașov | BE170: Afectat sau NU? | BF170: - | BG170: - | BH170: Afectat sau NU? | BI170: - | BJ170: - | BK170: Afectat sau NU? | BL170: - | BM170: -
A171: 154 | B171: - | C171: X | D171: Reabilitare 28" Seleuș - Cristur - Bățani, etapa 2B, județul Harghita | E171: 85127 | F171: Lutița | G171: Harghita | H171: 514498 | I171: 528363 | J171: 514498 | K171: 528363 | L171: - | M171: - | N171: SM0384D0 | O171: Lutița | P171: - | Q171: - | R171: - | S171: - | T171: SM-SD001 | U171: Cez Vânzare, CPL Concordia, E.on Energie, E.on Gaz Furnizare, Enel Energie, Energy Distribution, Engie, Gazmir, Met Romania, Premier Energy, RWE Supply, Aderro GP, Cis Gaz, Conef Gaz, Cyeb, Design Proiect, Distrigaz Vest, Electric&Gas, Enel Muntenia, Gas&Power, Energy Gas Provider, Entrex, Eva Energy, Gaz Est, Hargaz, Hermes Energy, Next Energy, Nova Power, Petrom Gas, Petrom, Pado Group, Premier Energy, Prisma Serv, Renovatio, Restart Energy, RWE, SST Grup, Tetarom, Wiee, Tinmar | V171: Delgaz Grid | W171: aprilie - septembrie | AB171: Brașov | BE171: Afectat sau NU? | BF171: - | BG171: - | BH171: Afectat sau NU? | BI171: - | BJ171: - | BK171: Afectat sau NU? | BL171: - | BM171: -
A172: 155 | B172: - | C172: X | D172: Reparație după inspecție 32" Cosmești - Onești , multiple zone | E172: 174922 | F172: Mărășești | G172: Vrancea | H172: 671646.37 | I172: 489878.34 | J172: 671646.37 | K172: 489878.34 | L172: - | M172: - | N172: SM0516D2 | O172: Mărășești | P172: - | Q172: - | R172: - | S172: - | T172: SM-SD001 | U172: Engie, Electrica Furnizare, Premier Energy Trading, Premier Energy, Restart Energy, Wiee România, E.On Energie, Petrom Gas, Cez Vânzare, Enel Energie, Gas&Power, Gaz Est, Met România, Nova Power, Euro Seven Industry, Oligopol, Energy Distribution, Electrocentrale Constanța, Hargaz, Conef Gaz, Megaconstruct, Distrigaz Vest, Electrocentrale București, Next Energy, Cis Gaz, Transenergo, Aderro, Tinmar, Enel Muntenia, RWE Supply, Romgaz, Cyeb, Entrex, Petrom, Electric&Gas, Eva Energy, Gas Energy Echotern, Energy Gas Provider, Renovatio | V172: Distrigaz Sud Rețele | W172: aprilie | AB172: Brăila | AD172: Lucrarea este în desfășurare și nu vor fi afectați consumatori datorită adoptării unei noi soluții tehnice (teu obturator mecanic în zona racord Mărășești) | BE172: Afectat sau NU? | BF172: - | BG172: - | BH172: Afectat sau NU? | BI172: - | BJ172: - | BK172: Afectat sau NU? | BL172: - | BM172: -
A173: 156 | B173: - | C173: X | D173: Reparație după inspecție 32" Cosmești - Onești , multiple zone | E173: 176212 | F173: Doaga | G173: Vrancea | H173: 677156.45 | I173: 485571.49 | J173: 677156.45 | K173: 485571.49 | L173: - | M173: - | N173: SM0511D2 | O173: SC MBM Doaga | P173: - | Q173: - | R173: - | S173: - | T173: SM-SD001 | U173: Engie, Electrica Furnizare, Premier Energy Trading, Premier Energy, Restart Energy, Wiee România, E.On Energie, Petrom Gas, Cez Vânzare, Enel Energie, Gas&Power, Gaz Est, Met România, Nova Power, Euro Seven Industry, Oligopol, Energy Distribution, Electrocentrale Constanța, Hargaz, Conef Gaz, Megaconstruct, Distrigaz Vest, Electrocentrale București, Next Energy, Cis Gaz, Transenergo, Aderro, Tinmar, Enel Muntenia, RWE Supply, Romgaz, Cyeb, Entrex, Petrom, Electric&Gas, Eva Energy, Gas Energy Echotern, Energy Gas Provider, Renovatio | V173: Distrigaz Sud Rețele | W173: aprilie | AB173: Brăila | AD173: Lucrarea este în desfășurare și nu vor fi afectați consumatori datorită adoptării unei noi soluții tehnice (teu obturator mecanic în zona racord Mărășești) | BE173: Afectat sau NU? | BF173: - | BG173: - | BH173: Afectat sau NU? | BI173: - | BJ173: - | BK173: Afectat sau NU? | BL173: - | BM173: -
A174: 157 | B174: - | C174: X | D174: Reparație după inspecție 32" Cosmești - Onești , multiple zone | E174: 176212 | F174: Doaga | G174: Vrancea | H174: 677156.45 | I174: 485571.49 | J174: 677156.45 | K174: 485571.49 | L174: - | M174: - | N174: SM0511D1 | O174: SC Somaco Holding PL Doaga | P174: - | Q174: - | R174: - | S174: - | T174: SM-CF001 | U174: Enel Energie | V174: Somaco Holding | W174: aprilie | AB174: Brăila | AD174: Lucrarea este în desfășurare și nu vor fi afectați consumatori datorită adoptării unei noi soluții tehnice (teu obturator mecanic în zona racord Mărășești) | BE174: Afectat sau NU? | BF174: - | BG174: - | BH174: Afectat sau NU? | BI174: - | BJ174: - | BK174: Afectat sau NU? | BL174: - | BM174: -
A175: 158 | B175: - | C175: X | D175: Reparație după inspecție 32" Cosmești - Onești , multiple zone | E175: 174744 | F175: Focșani | G175: Vrancea | H175: 668732.43 | I175: 471274.5 | J175: 668732.43 | K175: 471274.5 | L175: - | M175: - | N175: SM0512D0 | O175: Focșani | P175: - | Q175: - | R175: - | S175: - | T175: SM-SD001 | U175: Engie, Electrica Furnizare, Premier Energy Trading, Premier Energy, Restart Energy, Wiee România, E.On Energie, Petrom Gas, Cez Vânzare, Enel Energie, Gas&Power, Gaz Est, Met România, Nova Power, Euro Seven Industry, Oligopol, Energy Distribution, Electrocentrale Constanța, Hargaz, Conef Gaz, Megaconstruct, Distrigaz Vest, Electrocentrale București, Next Energy, Cis Gaz, Transenergo, Aderro, Tinmar, Enel Muntenia, RWE Supply, Romgaz, Cyeb, Entrex, Petrom, Electric&Gas, Eva Energy, Gas Energy Echotern, Energy Gas Provider, Renovatio | V175: Distrigaz Sud Rețele | W175: aprilie | AB175: Brăila | AD175: Lucrarea este în desfășurare și nu vor fi afectați consumatori datorită adoptării unei noi soluții tehnice (teu obturator mecanic în zona racord Mărășești) | BE175: Afectat sau NU? | BF175: - | BG175: - | BH175: Afectat sau NU? | BI175: - | BJ175: - | BK175: Afectat sau NU? | BL175: - | BM175: -
A176: 159 | B176: - | C176: X | D176: Reparație după inspecție 32" Cosmești - Onești , multiple zone | E176: 174744 | F176: Focșani | G176: Vrancea | H176: 668726.07 | I176: 471267.26 | J176: 668726.07 | K176: 471267.26 | L176: - | M176: - | N176: SM1110D0 | O176: Odobești | P176: - | Q176: - | R176: - | S176: - | T176: SM-SD001 | U176: Cez Vânzare, E.on Energie, Enel Energie, Engie, Gazmir, Cis Gaz, Enel Muntenia, Entrex, Nova Power, Petrom Gas, Restart Energy | V176: Gazmir Iași | W176: aprilie | AB176: Brăila | AD176: Lucrarea este în desfășurare și nu vor fi afectați consumatori datorită adoptării unei noi soluții tehnice (teu obturator mecanic în zona racord Mărășești) | BE176: Afectat sau NU? | BF176: - | BG176: - | BH176: Afectat sau NU? | BI176: - | BJ176: - | BK176: Afectat sau NU? | BL176: - | BM176: -
A177: 160 | B177: - | C177: X | D177: Reparație după inspecție 32" Cosmești - Onești , multiple zone | E177: 175055 | F177: Panciu | G177: Vrancea | H177: 664854.47 | I177: 487960.19 | J177: 664854.47 | K177: 487960.19 | L177: - | M177: - | N177: SM1109D0 | O177: Panciu | P177: - | Q177: - | R177: - | S177: - | T177: SM-SD001 | U177: Cez Vânzare, E.on Energie, Enel Energie, Engie, Gazmir, Cis Gaz, Enel Muntenia, Entrex, Nova Power, Petrom Gas, Restart Energy | V177: Gazmir Iași | W177: aprilie | AB177: Brăila | AD177: Lucrarea este în desfășurare și nu vor fi afectați consumatori datorită adoptării unei noi soluții tehnice (teu obturator mecanic în zona racord Mărășești) | BE177: Afectat sau NU? | BF177: - | BG177: - | BH177: Afectat sau NU? | BI177: - | BJ177: - | BK177: Afectat sau NU? | BL177: - | BM177: -
A178: 161 | B178: - | C178: X | D178: Înlocuire 2 tronsoane pe conducta 3” racord alimentare SRM Bisericani, zona Bisericani | E178: 124938 | F178: Bisericani | G178: Neamț | H178: 594524.28 | I178: 607357.26 | J178: 594524.28 | K178: 607357.26 | L178: - | M178: - | N178: SM0456D0 | O178: Spitalul de Pneumoftiziologie Bisericani | P178: - | Q178: - | R178: - | S178: - | T178: SM-CF001 | U178: Met Romania | V178: Spitalul de Pneumoftiziologie Bisericani | W178: mai an gazier 2019-2020 | AB178: Bacău | AD178: Proiect tehnic de execuție nefinalizat | BE178: Afectat sau NU? | BF178: - | BG178: - | BH178: Afectat sau NU? | BI178: - | BJ178: - | BK178: Afectat sau NU? | BL178: - | BM178: -
A179: 162 | B179: - | C179: X | D179: Deviere 20" Moinești - Dărmănești, zona Moinești | E179: 20876 | F179: Moinești | G179: Bacău | H179: 613113.21 | I179: 553437.6 | J179: 613113.21 | K179: 553437.6 | L179: - | M179: - | N179: SM0440D0 | O179: Moinești I Dealu Mare | P179: - | Q179: - | R179: - | S179: - | T179: SM-SD001 | U179: Cez Vânzare, CPL Concordia, E.on Energie, E.on Gaz Furnizare, Electrica Furnizare, Enel Energie, Energy Distribution, Engie, Gazmir, Met Romania, Premier Energy, RWE Supply, Aderro GP, Cis Gaz, Conef Gaz, Cyeb, Design Proiect, Distrigaz Vest, Electric&Gas, Enel Muntenia, Gas&Power, Energy Gas Provider, Entrex, Eva Energy, Gaz Est, Hargaz, Hermes Energy, Next Energy, Nova Power, Petrom Gas, Petrom, Pado Group, Premier Energy, Prisma Serv, Renovatio, Restart Energy, RWE, SST Grup, Tetarom, Wiee, Tinmar | V179: Delgaz Grid | W179: august | AB179: Bacău | BE179: Afectat sau NU? | BF179: - | BG179: - | BH179: Afectat sau NU? | BI179: - | BJ179: - | BK179: Afectat sau NU? | BL179: - | BM179: -
A180: 163 | B180: - | C180: X | D180: Deviere 20" Moinești - Dărmănești, zona Moinești | E180: 20876 | F180: Moinești | G180: Bacău | H180: 612206.32 | I180: 550311.31 | J180: 612206.32 | K180: 550311.31 | L180: - | M180: - | N180: SM0437D0 | O180: Moinești II Văsâiești | P180: - | Q180: - | R180: - | S180: - | T180: SM-SD001 | U180: Cez Vânzare, CPL Concordia, E.on Energie, E.on Gaz Furnizare, Electrica Furnizare, Enel Energie, Energy Distribution, Engie, Gazmir, Met Romania, Premier Energy, RWE Supply, Aderro GP, Cis Gaz, Conef Gaz, Cyeb, Design Proiect, Distrigaz Vest, Electric&Gas, Enel Muntenia, Gas&Power, Energy Gas Provider, Entrex, Eva Energy, Gaz Est, Hargaz, Hermes Energy, Next Energy, Nova Power, Petrom Gas, Petrom, Pado Group, Premier Energy, Prisma Serv, Renovatio, Restart Energy, RWE, SST Grup, Tetarom, Wiee, Tinmar | V180: Delgaz Grid | W180: august | AB180: Bacău | BE180: Afectat sau NU? | BF180: - | BG180: - | BH180: Afectat sau NU? | BI180: - | BJ180: - | BK180: Afectat sau NU? | BL180: - | BM180: -
A181: 164 | B181: - | C181: X | D181: Refacere sudură pe 4” racord alimentare SRM Livezi localitate, în zona de cuplare în 20” Helegiu - Racova, fir I, zona Livezi | E181: 23289 | F181: Livezi | G181: Bacău | H181: 633228.87 | I181: 546356.48 | J181: 633228.87 | K181: 546356.48 | L181: - | M181: - | N181: SM0445D0 | O181: SC Olympus Spedition Livezi | P181: - | Q181: - | R181: - | S181: - | T181: SM-CF001 | U181: Tinmar | V181: SC Olympus Spedition SRL | W181: iulie an gazier 2019-2020 (octombrie) | AB181: Bacău | AD181: Condiționată de începerea și finalizarea lucrării ”Modernizare NT Racova” | BE181: Afectat sau NU? | BF181: - | BG181: - | BH181: Afectat sau NU? | BI181: - | BJ181: - | BK181: Afectat sau NU? | BL181: - | BM181: -
A182: 165 | B182: - | C182: X | D182: Înlocuire cupon 4” racord alimentare SRM Chizătău, zona Chizătău | E182: 155797 | F182: Chizătău | G182: Timiș | H182: 245548.82 | I182: 478985.71 | J182: 244953.95 | K182: 477628.21 | L182: - | M182: - | N182: SM0936D0 | O182: Chizătău | P182: - | Q182: - | R182: - | S182: - | T182: SM-SD001 | U182: Cez Vânzare, E.on Energie, Electrica Furnizare, Enel Energie, Energy Distribution, Engie, Met Romania, Premier Energy, RWE Supply, Aderro GP, Cis Gaz, Conef Gaz, Cyeb, Distrigaz Vest, Electric&Gas, Enel Muntenia, Gas&Power, Energy Gas Provider, Entrex, Eva Energy, Gaz Est, Hargaz, Next Energy, Nova Power, Petrom Gas, Petrom, Premier Energy Trading, Renovatio, Restart Energy, Wiee, Tinmar, Oligopol, Euro Seven, Electrocentrale Constanța, Megaconstruct, Electrocentrale București, Transenergo, Romgaz, Echoterm, Monsson, Electric Planners | V182: Delgaz Grid | W182: aprilie - iunie iunie | AB182: Arad | AD182: Lipsă materiale și utilaj | BE182: Afectat sau NU? | BF182: - | BG182: - | BH182: Afectat sau NU? | BI182: - | BJ182: - | BK182: Afectat sau NU? | BL182: - | BM182: -
A183: 166 | B183: - | C183: X | D183: Montarea 12” racord alimentare SRM Glimboca din Vest I subteran, zona Glimboca | E183: 52936 | F183: Glimboca | G183: Timiș | H183: 291179.96 | I183: 447187.58 | J183: 291402.51 | K183: 447056.39 | L183: - | M183: - | N183: SM0325D0 | O183: Glimboca | P183: - | Q183: - | R183: - | S183: - | T183: SM-SD001 | U183: Cez Vânzare, CPL Concordia, E.on Energie, E.on Gaz Furnizare, Enel Energie, Energy Distribution, Engie, Gazmir, Met Romania, Premier Energy, RWE Supply, Aderro GP, Cis Gaz, Conef Gaz, Cyeb, Design Proiect, Distrigaz Vest, Electric&Gas, Enel Muntenia, Gas&Power, Energy Gas Provider, Entrex, Eva Energy, Gaz Est, Hargaz, Hermes Energy, Next Energy, Nova Power, Petrom Gas, Petrom, Pado Group, Premier Energy, Prisma Serv, Renovatio, Restart Energy, RWE, SST Grup, Tetarom, Wiee, Tinmar | V183: Delgaz Grid | W183: aprilie - iunie an gazier 2019-2020 | AB183: Arad | AD183: S-a decis amânarea pentru anul gazier 2019-2020 | BE183: Afectat sau NU? | BF183: =IF(C183="X",IF(AN183="DA",IF(AND(BE183>=5,AK183<>""),LEN(TRIM(V183))-LEN(SUBSTITUTE(V183,CHAR(44),""))+1,0),"-"),"") -> - | BG183: =IF(C183="X",IF(AN183="DA",LEN(TRIM(V183))-LEN(SUBSTITUTE(V183,CHAR(44),""))+1,"-"),"") -> - | BH183: Afectat sau NU? | BI183: =IF(C183="X",IF(AN183="DA",IF(AND(BH183>=5,AI183<>""),LEN(TRIM(U183))-LEN(SUBSTITUTE(U183,CHAR(44),""))+1,0),"-"),"") -> - | BJ183: =IF(C183="X",IF(AN183="DA",LEN(TRIM(U183))-LEN(SUBSTITUTE(U183,CHAR(44),""))+1,"-"),"") -> - | BK183: =IF(C183="X",IF(AN183="","Afectat sau NU?",IF(AN183="DA",((AG183+AH183)-(Z183+AA183))*24,"Nu a fost afectat producator/consumator")),"") -> Afectat sau NU? | BL183: =IF(C183="X",IF(AN183<>"DA","-",IF(AND(AN183="DA",BK183<=0),LEN(TRIM(V183))-LEN(SUBSTITUTE(V183,CHAR(44),""))+1+LEN(TRIM(U183))-LEN(SUBSTITUTE(U183,CHAR(44),""))+1,0)),"") -> - | BM183: =IF(C183="X",IF(AN183="DA",LEN(TRIM(V183))-LEN(SUBSTITUTE(V183,CHAR(44),""))+1+LEN(TRIM(U183))-LEN(SUBSTITUTE(U183,CHAR(44),""))+1,"-"),"") -> -
A184: 167 | B184: - | C184: X | D184: Interconectare 32" Moșu - Podișor cu 16" Gura Șuții, zona Slobozia Moara și relocare Rv16 cu refulator. | E184: 68627 | F184: Răcari | G184: Dâmbovița | H184: 555001.09 | I184: 349955.82 | J184: 569137.31 | K184: 334164.8 | L184: - | M184: - | N184: SM0145D0 | O184: Răcari | P184: - | Q184: - | R184: - | S184: - | T184: SM-SD001 | U184: Engie, Electrica Furnizare, Premier Energy Trading, Premier Energy, Restart Energy, Wiee România, E.On Energie, Petrom Gas, Cez Vânzare, Enel Energie, Gas&Power, Gaz Est, Met România, Nova Power, Euro Seven Industry, Oligopol, Energy Distribution, Electrocentrale Constanța, Hargaz, Conef Gaz, Megaconstruct, Distrigaz Vest, Electrocentrale București, Next Energy, Cis Gaz, Transenergo, Aderro, Tinmar, Enel Muntenia, RWE Supply, Romgaz, Cyeb, Entrex, Petrom, Electric&Gas, Eva Energy, Gas Energy Echotern, Energy Gas Provider, Renovatio | V184: Distrigaz Sud Rețele | W184: iunie an gazier 2019-2020 | AB184: București | AD184: Nu a fost lansată Tema de proiectare | BE184: Afectat sau NU? | BF184: - | BG184: - | BH184: Afectat sau NU? | BI184: - | BJ184: - | BK184: Afectat sau NU? | BL184: - | BM184: -
A185: =A184+1 -> 168 | B185: - | C185: X | D185: Interconectare 32" Moșu - Podișor cu 16" Gura Șuții, zona Slobozia Moara și relocare Rv16 cu refulator. | E185: 105534 | F185: Tărtășești | G185: Dâmbovița | H185: 555001.09 | I185: 349955.82 | J185: 569137.31 | K185: 334164.8 | L185: - | M185: - | N185: SM0112D0 | O185: Tărtășești | P185: - | Q185: - | R185: - | S185: - | T185: SM-SD001 | U185: Cez Vânzare, E.on Energie, Electrica Furnizare, Enel Energie, Energy Distribution, Engie, Met Romania, Premier Energy Trading, Aderro GP, Cis Gaz, Conef Gaz, Enel Muntenia, Energy Gas Provider, Eva Energy, Gaz Est, Hermes Energy, Megaconstruct, Next Energy, Nova Power, Petrom Gas, Petrom, Ottogaz, Premier Energy, Restart Energy, RWE, Top Gas Network, WIEE, Tinmar | V185: Premier Energy | W185: iunie an gazier 2019-2020 | AB185: București | AD185: Nu a fost lansată Tema de proiectare | BE185: Afectat sau NU? | BF185: - | BG185: - | BH185: Afectat sau NU? | BI185: - | BJ185: - | BK185: Afectat sau NU? | BL185: - | BM185: -
A186: 169 | B186: - | C186: X | D186: Interconectare 32" Moșu - Podișor cu 16" Gura Șuții, zona Slobozia Moara și relocare Rv16 cu refulator. | E186: 103997 | F186: Săbăreni | G186: Giurgiu | H186: 555001.09 | I186: 349955.82 | J186: 569137.31 | K186: 334164.8 | L186: - | M186: - | N186: SM1086D0 | O186: Joița | P186: - | Q186: - | R186: - | S186: - | T186: SM-SD001 | U186: Enel Energie, Engie, Enel Muntenia, Euro Seven Industry, Petrom Gas | V186: EuroSeven | W186: iunie an gazier 2019-2020 | AB186: București | AD186: Nu a fost lansată Tema de proiectare | AQ186: =IF(B186="X",IF(AN186="","Afectat sau NU?",IF(AN186="DA",IF(((AK186+AL186)-(AE186+AF186))*24<-720,"Neinformat",((AK186+AL186)-(AE186+AF186))*24),"Nu a fost afectat producator/consumator")),"") ->  | AR186: =IF(B186="X",IF(AN186="DA",IF(AQ186<6,LEN(TRIM(V186))-LEN(SUBSTITUTE(V186,CHAR(44),""))+1,0),"-"),"") ->  | AS186: =IF(B186="X",IF(AN186="DA",LEN(TRIM(V186))-LEN(SUBSTITUTE(V186,CHAR(44),""))+1,"-"),"") ->  | AT186: =IF(B186="X",IF(AN186="","Afectat sau NU?",IF(AN186="DA",IF(((AI186+AJ186)-(AE186+AF186))*24<-720,"Neinformat",((AI186+AJ186)-(AE186+AF186))*24),"Nu a fost afectat producator/consumator")),"") ->  | AU186: =IF(B186="X",IF(AN186="DA",IF(AT186<6,LEN(TRIM(U186))-LEN(SUBSTITUTE(U186,CHAR(44),""))+1,0),"-"),"") ->  | AV186: =IF(B186="X",IF(AN186="DA",LEN(TRIM(U186))-LEN(SUBSTITUTE(U186,CHAR(44),""))+1,"-"),"") ->  | AW186: =IF(B186="X",IF(AN186="","Afectat sau NU?",IF(AN186="DA",((AG186+AH186)-(AE186+AF186))*24,"Nu a fost afectat producator/consumator")),"") ->  | AX186: =IF(B186="X",IF(AN186="DA",IF(AW186>24,IF(AZ186="NU",0,LEN(TRIM(V186))-LEN(SUBSTITUTE(V186,CHAR(44),""))+1),0),"-"),"") ->  | AY186: =IF(B186="X",IF(AN186="DA",IF(AW186>24,LEN(TRIM(V186))-LEN(SUBSTITUTE(V186,CHAR(44),""))+1,0),"-"),"") ->  | BE186: Afectat sau NU? | BF186: - | BG186: - | BH186: Afectat sau NU? | BI186: - | BJ186: - | BK186: Afectat sau NU? | BL186: - | BM186: -
A187: 170 | B187: - | C187: X | D187: Modificări panou Vaidei pentru separare SNT fată de conductele colectoare Romgaz, zona Vaidei | E187: 118575 | F187: Vaidei | G187: Mureș | H187: 445645.76 | I187: 555757.57 | J187: 445645.76 | K187: 555757.57 | L187: - | M187: - | N187: - | O187: - | P187: - | Q187: - | R187: PM0136 | S187: Vaideiu SU | T187: PM-PP001 | U187: E.on Energie, Enel Energie, Engie, Cordun Gaz, Petrom Gas | V187: Romgaz | W187: aprilie - septembrie | X187: 2019-02-22 | Y187: 08:00:00 | Z187: 2019-02-22 | AA187: 17:00:00 | AB187: Cluj | AC187: Efectuată (NU a mai fost necesară întreruperea) | AM187: Efectuată de ROMGAZ | AN187: NU | BE187: Nu a fost afectat producator/consumator | BF187: - | BG187: - | BH187: Nu a fost afectat producator/consumator | BI187: - | BJ187: - | BK187: Nu a fost afectat producator/consumator | BL187: - | BM187: -
A188: 171 | B188: - | C188: X | D188: Înlocuire cupon conductă 20” Adjudul Vechi - Siliștea, zona Malul Alb | E188: 76692 | F188: Matca | G188: Galați | H188: 689722 | I188: 482285.32 | J188: 702807.18 | K188: 468728.4 | L188: - | M188: - | N188: SM0980D0 | O188: Matca (Vega 93) | P188: - | Q188: - | R188: - | S188: - | T188: SM-SD001 | U188: Cez Vânzare, Enel Energie, Engie, Enel Muntenia, Gaz Est, WIEE, Tinmar | V188: Vega 93 | W188: mai - iulie iulie - septembrie | AB188: Brăila | AD188: Funcție de aprovizionarea materialelor necesare (Conductă Dn 500 mm; Dn 100 mm) de către Sucursala Mediaș | BE188: Afectat sau NU? | BF188: - | BG188: - | BH188: Afectat sau NU? | BI188: - | BJ188: - | BK188: Afectat sau NU? | BL188: - | BM188: -
A189: 172 | B189: - | C189: X | D189: Reabilitare 4” racord alimentare SRM Zagna Vădeni, tronson 1 (km1+206 - km1+963), zona Vădeni, L=757m și tronson 4 (km2+445 - km2+595), zona Vădeni, L=150m | E189: 44391 | F189: Vădeni | G189: Brăila | H189: 726933.61 | I189: 434717.27 | J189: 728777.17 | K189: 433056.66 | L189: - | M189: - | N189: SM0532D0 | O189: Zagna Vădeni | P189: - | Q189: - | R189: - | S189: - | T189: SM-SD001 | U189: Engie, Electrica Furnizare, Premier Energy Trading, Premier Energy, Restart Energy, Wiee România, E.On Energie, Petrom Gas, Cez Vânzare, Enel Energie, Gas&Power, Gaz Est, Met România, Nova Power, Euro Seven Industry, Oligopol, Energy Distribution, Electrocentrale Constanța, Hargaz, Conef Gaz, Megaconstruct, Distrigaz Vest, Electrocentrale București, Next Energy, Cis Gaz, Transenergo, Aderro, Tinmar, Enel Muntenia, RWE Supply, Romgaz, Cyeb, Entrex, Petrom, Electric&Gas, Eva Energy, Gas Energy Echotern, Energy Gas Provider, Renovatio | V189: Distrigaz Sud Rețele | W189: iunie - august | AB189: Brăila | BE189: Afectat sau NU? | BF189: - | BG189: - | BH189: Afectat sau NU? | BI189: - | BJ189: - | BK189: Afectat sau NU? | BL189: - | BM189: -
A190: 173 | B190: - | C190: X | D190: Reabilitare 24” Peceneaga - Siliștea, tronson 1 (km37+915 - km38+165) zona Țichilești | E190: 43313 | F190: Gropeni | G190: Brăila | H190: 728735.12 | I190: 411121.88 | J190: 728184.03 | K190: 400321.14 | L190: - | M190: - | N190: SM0115D0 | O190: SC Tebu Consult Invest Gropeni | P190: - | Q190: - | R190: - | S190: - | T190: SM-CF001 | U190: Tinmar | V190: Tebu Consult Invest | W190: iulie - septembrie | AB190: Brăila | BE190: Afectat sau NU? | BF190: - | BG190: - | BH190: Afectat sau NU? | BI190: - | BJ190: - | BK190: Afectat sau NU? | BL190: - | BM190: -
A191: 174 | B191: - | C191: X | D191: Reabilitare 24” Peceneaga - Siliștea, tronson 1 (km37+915 - km38+165) zona Țichilești | E191: 44177 | F191: Tichilești | G191: Brăila | H191: 728735.12 | I191: 411121.88 | J191: 728184.03 | K191: 400321.14 | L191: - | M191: - | N191: SM0528D0 | O191: Tichilești | P191: - | Q191: - | R191: - | S191: - | T191: SM-SD001 | U191: Engie, Electrica Furnizare, Premier Energy Trading, Premier Energy, Restart Energy, Wiee România, E.On Energie, Petrom Gas, Cez Vânzare, Enel Energie, Gas&Power, Gaz Est, Met România, Nova Power, Euro Seven Industry, Oligopol, Energy Distribution, Electrocentrale Constanța, Hargaz, Conef Gaz, Megaconstruct, Distrigaz Vest, Electrocentrale București, Next Energy, Cis Gaz, Transenergo, Aderro, Tinmar, Enel Muntenia, RWE Supply, Romgaz, Cyeb, Entrex, Petrom, Electric&Gas, Eva Energy, Gas Energy Echotern, Energy Gas Provider, Renovatio | V191: Distrigaz Sud Rețele | W191: iulie - septembrie | AB191: Brăila | BE191: Afectat sau NU? | BF191: - | BG191: - | BH191: Afectat sau NU? | BI191: - | BJ191: - | BK191: Afectat sau NU? | BL191: - | BM191: -
A192: 175 | B192: - | C192: X | D192: 20” Schitu Golești - Tigveni, zona Borobănești | E192: 19249 | F192: Blaju | G192: Argeș | H192: 465487.52 | I192: 404571.14 | J192: 474251.54 | K192: 409341.65 | L192: - | M192: - | N192: - | O192: - | P192: - | Q192: - | R192: PM0288 | S192: Ciofrângeni | T192: PM-PP001 | U192: Amromco | V192: Amromco | W192: iunie - iulie | AB192: Craiova | BE192: Afectat sau NU? | BF192: - | BG192: - | BH192: Afectat sau NU? | BI192: - | BJ192: - | BK192: Afectat sau NU? | BL192: - | BM192: -
A193: 176 | B193: - | C193: X | D193: 20” Schitu Golești - Tigveni, zona Borobănești | E193: 13819 | F193: Albeștii de Argeș | G193: Argeș | H193: 465487.52 | I193: 404571.14 | J193: 474251.54 | K193: 409341.65 | L193: - | M193: - | N193: SM1244D0 | O193: Albeștii de Argeș | P193: - | Q193: - | R193: - | S193: - | T193: SM-SD001 | U193: Engie, Electrica Furnizare, Premier Energy Trading, Premier Energy, Restart Energy, Wiee România, E.On Energie, Petrom Gas, Cez Vânzare, Enel Energie, Gas&Power, Gaz Est, Met România, Nova Power, Euro Seven Industry, Oligopol, Energy Distribution, Electrocentrale Constanța, Hargaz, Conef Gaz, Megaconstruct, Distrigaz Vest, Electrocentrale București, Next Energy, Cis Gaz, Transenergo, Aderro, Tinmar, Enel Muntenia, RWE Supply, Romgaz, Cyeb, Entrex, Petrom, Electric&Gas, Eva Energy, Gas Energy Echotern, Energy Gas Provider, Renovatio | V193: Distrigaz Sud Rețele | W193: iunie - iulie | AB193: Craiova | BE193: Afectat sau NU? | BF193: - | BG193: - | BH193: Afectat sau NU? | BI193: - | BJ193: - | BK193: Afectat sau NU? | BL193: - | BM193: -
A194: 177 | B194: - | C194: X | D194: Remediere definitivă prin cuponare 20” Hurezani - Corbu - București, fir II, tronson Drăgășani - Corbu, zona Jitaru - Oporelu | E194: 80515 | F194: Hurezani | G194: Gorj | H194: 453702.586 | I194: 343855.375 | J194: 463374.121 | K194: 337922.342 | L194: - | M194: - | N194: - | O194: - | P194: PM0205 | Q194: Hurezani SU | R194: - | S194: - | T194: PM-PP001 | U194: E.on Energie, Enel Energie, Engie, Cordun Gaz, Petrom Gas | V194: Romgaz | W194: aprilie - septembrie iunie - septembrie | AB194: Craiova | AD194: Volum mare de lucrări | BE194: Afectat sau NU? | BF194: - | BG194: - | BH194: Afectat sau NU? | BI194: - | BJ194: - | BK194: Afectat sau NU? | BL194: - | BM194: -
A195: 178 | B195: - | C195: X | D195: Remediere definitivă prin cuponare 20” Hurezani - Corbu - București, fir II, tronson Drăgășani - Corbu, zona Jitaru - Oporelu | E195: 80506 | F195: Hurezani | G195: Gorj | H195: 453702.586 | I195: 343855.375 | J195: 463374.121 | K195: 337922.342 | L195: - | M195: - | N195: - | O195: - | P195: PM0062 | Q195: Hurezani Bulbuceni | R195: - | S195: - | T195: PM-PP001 | U195: Petrom | V195: Petrom | W195: aprilie - septembrie iunie - septembrie | AB195: Craiova | AD195: Volum mare de lucrări | BE195: Afectat sau NU? | BF195: - | BG195: - | BH195: Afectat sau NU? | BI195: - | BJ195: - | BK195: Afectat sau NU? | BL195: - | BM195: -
A196: 179 | B196: - | C196: X | D196: Remediere definitivă prin cuponare 20” Hurezani - Corbu - București, fir II, tronson Drăgășani - Corbu, zona Jitaru - Oporelu | E196: 80757 | F196: Hurezani | G196: Gorj | H196: 453702.586 | I196: 343855.375 | J196: 463374.121 | K196: 337922.342 | L196: - | M196: - | N196: - | O196: - | P196: PM0253 | Q196: Hurezani Bustuchini | R196: - | S196: - | T196: PM-PP001 | U196: Petrom | V196: Petrom | W196: aprilie - septembrie iunie - septembrie | AB196: Craiova | AD196: Volum mare de lucrări | BE196: Afectat sau NU? | BF196: - | BG196: - | BH196: Afectat sau NU? | BI196: - | BJ196: - | BK196: Afectat sau NU? | BL196: - | BM196: -
A197: 180 | B197: - | C197: X | D197: Remediere definitivă prin cuponare 20” Hurezani - Corbu - București, fir II, tronson Drăgășani - Corbu, zona Jitaru - Oporelu | E197: 172377 | F197: Popești | G197: Vâlcea | H197: 453702.586 | I197: 343855.375 | J197: 463374.121 | K197: 337922.342 | L197: - | M197: - | N197: - | O197: - | P197: PM0034 | Q197: Popești Lăpușata | R197: - | S197: - | T197: PM-PP001 | U197: Petrom | V197: Petrom | W197: aprilie - septembrie iunie - septembrie | AB197: Craiova | AD197: Volum mare de lucrări | BE197: Afectat sau NU? | BF197: - | BG197: - | BH197: Afectat sau NU? | BI197: - | BJ197: - | BK197: Afectat sau NU? | BL197: - | BM197: -
A198: 181 | B198: - | C198: X | D198: Remediere definitivă prin cuponare 20” Hurezani - Corbu - București, fir II, tronson Drăgășani - Corbu, zona Jitaru - Oporelu | E198: 168434 | F198: Tătărani | G198: Vâlcea | H198: 453702.586 | I198: 343855.375 | J198: 463374.121 | K198: 337922.342 | L198: - | M198: - | N198: - | O198: - | P198: PM0068 | Q198: Tătărani | R198: - | S198: - | T198: PM-PP001 | U198: Petrom | V198: Petrom | W198: aprilie - septembrie iunie - septembrie | AB198: Craiova | AD198: Volum mare de lucrări | BE198: Afectat sau NU? | BF198: - | BG198: - | BH198: Afectat sau NU? | BI198: - | BJ198: - | BK198: Afectat sau NU? | BL198: - | BM198: -
A199: 182 | B199: - | C199: X | D199: Remediere definitivă prin cuponare 20” Hurezani - Corbu - București, fir II, tronson Drăgășani - Corbu, zona Jitaru - Oporelu | E199: 170872 | F199: Pârâienii de Jos | G199: Vâlcea | H199: 453702.586 | I199: 343855.375 | J199: 463374.121 | K199: 337922.342 | L199: - | M199: - | N199: - | O199: - | P199: PM0259 | Q199: Pârâienii de Jos | R199: - | S199: - | T199: PM-PP001 | U199: Petrom | V199: Petrom | W199: aprilie - septembrie iunie - septembrie | AB199: Craiova | AD199: Volum mare de lucrări | BE199: Afectat sau NU? | BF199: - | BG199: - | BH199: Afectat sau NU? | BI199: - | BJ199: - | BK199: Afectat sau NU? | BL199: - | BM199: -
A200: 183 | B200: - | C200: X | D200: Remediere definitivă prin cuponare 20” Hurezani - Corbu - București, fir II, tronson Drăgășani - Corbu, zona Jitaru - Oporelu | E200: 170346 | F200: Grădiștea | G200: Vâlcea | H200: 453702.586 | I200: 343855.375 | J200: 463374.121 | K200: 337922.342 | L200: - | M200: - | N200: - | O200: - | P200: PM0053 | Q200: Grădiștea | R200: - | S200: - | T200: PM-PP001 | U200: Romgaz, Petrom | V200: Romgaz, Petrom | W200: aprilie - septembrie iunie - septembrie | AB200: Craiova | AD200: Volum mare de lucrări | BE200: Afectat sau NU? | BF200: - | BG200: - | BH200: Afectat sau NU? | BI200: - | BJ200: - | BK200: Afectat sau NU? | BL200: - | BM200: -
... 182 more rows
